Organisation Code,Organisation Label,Effective Date,Organisational Unit,Service Division Label,Category Internal Name,Purpose,Detailed Expenditure Code,Payment Date,Transaction Number,Irrecoverable VAT Amount,Amount,Capital Or Revenue,Beneficiary Name,Procurement Card
Http://opendatacommunities.org/id/metropolitan-district-council/leeds,Leeds City Council,31/10/2022,Children and Families,Social Care,Supplies and Services,Consultancy Services,259,21/09/2022,2209-00001,0.00,5343.75,R,A & F Lloyd Training Limited,No
Http://opendatacommunities.org/id/metropolitan-district-council/leeds,Leeds City Council,31/10/2022,Children and Families,Social Care,Supplies and Services,Consultancy Services,259,21/09/2022,2209-00002,0.00,5733.70,R,A & F Lloyd Training Limited,No
Http://opendatacommunities.org/id/metropolitan-district-council/leeds,Leeds City Council,31/10/2022,Children and Families,Social Care,Supplies and Services,Consultancy Services,259,21/09/2022,2209-00003,0.00,7125.00,R,A & F Lloyd Training Limited,No
Http://opendatacommunities.org/id/metropolitan-district-council/leeds,Leeds City Council,31/10/2022,Adults and Health,Services For Older People Under 65 P/Dis,Agency Payments,Sheltered Accommodation,569,14/09/2022,2209-00004,0.00,5400.00,R,A & V TRANSITIONAL HOMES,No
Http://opendatacommunities.org/id/metropolitan-district-council/leeds,Leeds City Council,31/10/2022,Strategic Landlord,HRA Housing Leeds,Capital,OTHER COSTS,7,06/09/2022,2209-00005,0.00,170.09,C,REDACTED PERSONAL DATA,No
Http://opendatacommunities.org/id/metropolitan-district-council/leeds,Leeds City Council,31/10/2022,City Development,Libraries Arts & Heritage,Supplies and Services,Operational Furniture And Equipment,203,21/09/2022,2209-00006,0.00,1000.02,R,A C Entertainment Technologies Ltd,No
Http://opendatacommunities.org/id/metropolitan-district-council/leeds,Leeds City Council,31/10/2022,Children and Families,Social Care,Agency Payments,Placement Support,550,30/09/2022,2209-00007,0.00,250.00,R,REDACTED PERSONAL DATA,No
Http://opendatacommunities.org/id/metropolitan-district-council/leeds,Leeds City Council,31/10/2022,Resources,Leeds Building Services,Supplies and Services,Other Hired And Contracted Services,265,02/09/2022,2209-00008,0.00,21666.00,R,A Coole Electrical Ltd,No
Http://opendatacommunities.org/id/metropolitan-district-council/leeds,Leeds City Council,31/10/2022,Resources,Leeds Building Services,Supplies and Services,Other Hired And Contracted Services,265,02/09/2022,2209-00009,0.00,1852.00,R,A Coole Electrical Ltd,No
Http://opendatacommunities.org/id/metropolitan-district-council/leeds,Leeds City Council,31/10/2022,Resources,Leeds Building Services,Supplies and Services,Other Hired And Contracted Services,265,09/09/2022,2209-00010,0.00,4030.00,R,A Coole Electrical Ltd,No
Http://opendatacommunities.org/id/metropolitan-district-council/leeds,Leeds City Council,31/10/2022,Resources,Leeds Building Services,Supplies and Services,Other Hired And Contracted Services,265,09/09/2022,2209-00011,0.00,21320.00,R,A Coole Electrical Ltd,No
Http://opendatacommunities.org/id/metropolitan-district-council/leeds,Leeds City Council,31/10/2022,Resources,Leeds Building Services,Supplies and Services,Other Hired And Contracted Services,265,16/09/2022,2209-00012,0.00,3675.00,R,A Coole Electrical Ltd,No
Http://opendatacommunities.org/id/metropolitan-district-council/leeds,Leeds City Council,31/10/2022,Resources,Leeds Building Services,Supplies and Services,Other Hired And Contracted Services,265,22/09/2022,2209-00013,0.00,3175.00,R,A Coole Electrical Ltd,No
Http://opendatacommunities.org/id/metropolitan-district-council/leeds,Leeds City Council,31/10/2022,Resources,Leeds Building Services,Supplies and Services,Other Hired And Contracted Services,265,29/09/2022,2209-00014,0.00,10755.00,R,A Coole Electrical Ltd,No
Http://opendatacommunities.org/id/metropolitan-district-council/leeds,Leeds City Council,31/10/2022,Resources,Leeds Building Services,Supplies and Services,Other Hired And Contracted Services,265,30/09/2022,2209-00015,0.00,120.00,R,A Coole Electrical Ltd,No
Http://opendatacommunities.org/id/metropolitan-district-council/leeds,Leeds City Council,31/10/2022,Communities Housing and Environment,Customer Access,Supplies and Services,Bought In Professional Services,277,01/09/2022,2209-00016,0.00,27.00,R,REDACTED COMMERCIAL CONFIDENTIALITY,No
Http://opendatacommunities.org/id/metropolitan-district-council/leeds,Leeds City Council,31/10/2022,Communities Housing and Environment,Customer Access,Supplies and Services,Bought In Professional Services,277,14/09/2022,2209-00017,0.00,13.50,R,REDACTED COMMERCIAL CONFIDENTIALITY,No
Http://opendatacommunities.org/id/metropolitan-district-council/leeds,Leeds City Council,31/10/2022,Communities Housing and Environment,Customer Access,Supplies and Services,Bought In Professional Services,277,14/09/2022,2209-00018,0.00,9.00,R,REDACTED COMMERCIAL CONFIDENTIALITY,No
Http://opendatacommunities.org/id/metropolitan-district-council/leeds,Leeds City Council,31/10/2022,Communities Housing and Environment,Customer Access,Supplies and Services,Bought In Professional Services,277,22/09/2022,2209-00019,0.00,23.40,R,REDACTED COMMERCIAL CONFIDENTIALITY,No
Http://opendatacommunities.org/id/metropolitan-district-council/leeds,Leeds City Council,31/10/2022,Communities Housing and Environment,Customer Access,Supplies and Services,Bought In Professional Services,277,22/09/2022,2209-00020,0.00,22.50,R,REDACTED COMMERCIAL CONFIDENTIALITY,No
Http://opendatacommunities.org/id/metropolitan-district-council/leeds,Leeds City Council,31/10/2022,Communities Housing and Environment,Customer Access,Supplies and Services,Bought In Professional Services,277,22/09/2022,2209-00021,0.00,37.50,R,REDACTED COMMERCIAL CONFIDENTIALITY,No
Http://opendatacommunities.org/id/metropolitan-district-council/leeds,Leeds City Council,31/10/2022,Communities Housing and Environment,Customer Access,Supplies and Services,Bought In Professional Services,277,28/09/2022,2209-00022,0.00,27.00,R,REDACTED COMMERCIAL CONFIDENTIALITY,No
Http://opendatacommunities.org/id/metropolitan-district-council/leeds,Leeds City Council,31/10/2022,Communities Housing and Environment,Customer Access,Supplies and Services,Bought In Professional Services,277,28/09/2022,2209-00023,0.00,18.00,R,REDACTED COMMERCIAL CONFIDENTIALITY,No
Http://opendatacommunities.org/id/metropolitan-district-council/leeds,Leeds City Council,31/10/2022,Children and Families,Social Care,Agency Payments,Services Rendered By Other Organisations,511,02/09/2022,2209-00024,0.00,4613.90,R,REDACTED PERSONAL DATA,No
Http://opendatacommunities.org/id/metropolitan-district-council/leeds,Leeds City Council,31/10/2022,Children and Families,Social Care,Agency Payments,Services Rendered By Voluntary Sector,505,07/09/2022,2209-00025,0.00,1900.76,R,REDACTED PERSONAL DATA,No
Http://opendatacommunities.org/id/metropolitan-district-council/leeds,Leeds City Council,31/10/2022,Children and Families,Social Care,Agency Payments,Services Rendered By Voluntary Sector,505,28/09/2022,2209-00026,0.00,5200.00,R,REDACTED PERSONAL DATA,No
Http://opendatacommunities.org/id/metropolitan-district-council/leeds,Leeds City Council,31/10/2022,City Development,Libraries Arts & Heritage,Supplies and Services,Bought In Professional Services,277,09/09/2022,2209-00027,0.00,600.00,R,A F Miller,No
Http://opendatacommunities.org/id/metropolitan-district-council/leeds,Leeds City Council,31/10/2022,Children and Families,Social Care,Agency Payments,Services Rendered By Other Organisations,511,02/09/2022,2209-00028,0.00,233.03,R,REDACTED PERSONAL DATA,No
Http://opendatacommunities.org/id/metropolitan-district-council/leeds,Leeds City Council,31/10/2022,Adults and Health,Other Generic Services,Agency Payments,Fees To Carers,563,02/09/2022,2209-00029,0.00,125.31,R,REDACTED PERSONAL DATA,No
Http://opendatacommunities.org/id/metropolitan-district-council/leeds,Leeds City Council,31/10/2022,Adults and Health,Other Generic Services,Agency Payments,Fees To Carers,563,16/09/2022,2209-00030,0.00,576.00,R,REDACTED PERSONAL DATA,No
Http://opendatacommunities.org/id/metropolitan-district-council/leeds,Leeds City Council,31/10/2022,Adults and Health,Other Generic Services,Agency Payments,Fees To Carers,563,16/09/2022,2209-00031,0.00,63.00,R,REDACTED PERSONAL DATA,No
Http://opendatacommunities.org/id/metropolitan-district-council/leeds,Leeds City Council,31/10/2022,Adults and Health,Other Generic Services,Agency Payments,Fees To Carers,563,23/09/2022,2209-00032,0.00,167.08,R,REDACTED PERSONAL DATA,No
Http://opendatacommunities.org/id/metropolitan-district-council/leeds,Leeds City Council,31/10/2022,Adults and Health,Other Generic Services,Agency Payments,Fees To Carers,563,23/09/2022,2209-00033,0.00,41.77,R,REDACTED PERSONAL DATA,No
Http://opendatacommunities.org/id/metropolitan-district-council/leeds,Leeds City Council,31/10/2022,Adults and Health,Other Generic Services,Agency Payments,Fees To Carers,563,30/09/2022,2209-00034,0.00,125.31,R,REDACTED PERSONAL DATA,No
Http://opendatacommunities.org/id/metropolitan-district-council/leeds,Leeds City Council,31/10/2022,Resources,Leeds Building Services,Supplies and Services,Operational Materials,205,15/09/2022,2209-00035,0.00,878.00,R,A J H  Pump Supply & Repair Ltd,No
Http://opendatacommunities.org/id/metropolitan-district-council/leeds,Leeds City Council,31/10/2022,Resources,Leeds Building Services,Supplies and Services,Operational Materials,205,15/09/2022,2209-00036,0.00,957.00,R,A J H  Pump Supply & Repair Ltd,No
Http://opendatacommunities.org/id/metropolitan-district-council/leeds,Leeds City Council,31/10/2022,Resources,Corporate Property Management,Premises,Maintenance Of Buildings,101,16/09/2022,2209-00037,0.00,250.00,R,A J H  Pump Supply & Repair Ltd,No
Http://opendatacommunities.org/id/metropolitan-district-council/leeds,Leeds City Council,31/10/2022,Resources,Leeds Building Services,Supplies and Services,Operational Materials,205,16/09/2022,2209-00038,0.00,172.00,R,A J H  Pump Supply & Repair Ltd,No
Http://opendatacommunities.org/id/metropolitan-district-council/leeds,Leeds City Council,31/10/2022,Resources,Leeds Building Services,Supplies and Services,Operational Materials,205,30/09/2022,2209-00039,0.00,359.00,R,A J H  Pump Supply & Repair Ltd,No
Http://opendatacommunities.org/id/metropolitan-district-council/leeds,Leeds City Council,31/10/2022,Resources,Leeds Building Services,Supplies and Services,Operational Materials,205,30/09/2022,2209-00040,0.00,155.00,R,A J H  Pump Supply & Repair Ltd,No
Http://opendatacommunities.org/id/metropolitan-district-council/leeds,Leeds City Council,31/10/2022,City Development,Libraries Arts & Heritage,Supplies and Services,Resaleable Materials,204,02/09/2022,2209-00041,0.00,286.35,R,A J PROMOTIONS,No
Http://opendatacommunities.org/id/metropolitan-district-council/leeds,Leeds City Council,31/10/2022,Children and Families,Social Care,Agency Payments,Services Rendered By Other Organisations,511,02/09/2022,2209-00042,0.00,373.04,R,REDACTED PERSONAL DATA,No
Http://opendatacommunities.org/id/metropolitan-district-council/leeds,Leeds City Council,31/10/2022,Communities Housing and Environment,Customer Access,Supplies and Services,Bought In Professional Services,277,01/09/2022,2209-00043,0.00,180.00,R,A MOHAMMED,No
Http://opendatacommunities.org/id/metropolitan-district-council/leeds,Leeds City Council,31/10/2022,Communities Housing and Environment,Customer Access,Supplies and Services,Bought In Professional Services,277,01/09/2022,2209-00044,0.00,126.00,R,A MOHAMMED,No
Http://opendatacommunities.org/id/metropolitan-district-council/leeds,Leeds City Council,31/10/2022,Communities Housing and Environment,Customer Access,Supplies and Services,Bought In Professional Services,277,01/09/2022,2209-00045,0.00,18.00,R,A MOHAMMED,No
Http://opendatacommunities.org/id/metropolitan-district-council/leeds,Leeds City Council,31/10/2022,Communities Housing and Environment,Customer Access,Supplies and Services,Bought In Professional Services,277,01/09/2022,2209-00046,0.00,126.00,R,A MOHAMMED,No
Http://opendatacommunities.org/id/metropolitan-district-council/leeds,Leeds City Council,31/10/2022,Communities Housing and Environment,Customer Access,Supplies and Services,Bought In Professional Services,277,01/09/2022,2209-00047,0.00,126.00,R,A MOHAMMED,No
Http://opendatacommunities.org/id/metropolitan-district-council/leeds,Leeds City Council,31/10/2022,Communities Housing and Environment,Customer Access,Supplies and Services,Bought In Professional Services,277,01/09/2022,2209-00048,0.00,18.00,R,A MOHAMMED,No
Http://opendatacommunities.org/id/metropolitan-district-council/leeds,Leeds City Council,31/10/2022,Communities Housing and Environment,Customer Access,Supplies and Services,Bought In Professional Services,277,01/09/2022,2209-00049,0.00,40.50,R,A MOHAMMED,No
Http://opendatacommunities.org/id/metropolitan-district-council/leeds,Leeds City Council,31/10/2022,Communities Housing and Environment,Customer Access,Supplies and Services,Bought In Professional Services,277,08/09/2022,2209-00050,0.00,126.00,R,A MOHAMMED,No
Http://opendatacommunities.org/id/metropolitan-district-council/leeds,Leeds City Council,31/10/2022,Communities Housing and Environment,Customer Access,Supplies and Services,Bought In Professional Services,277,08/09/2022,2209-00051,0.00,126.00,R,A MOHAMMED,No
Http://opendatacommunities.org/id/metropolitan-district-council/leeds,Leeds City Council,31/10/2022,Communities Housing and Environment,Customer Access,Supplies and Services,Bought In Professional Services,277,08/09/2022,2209-00052,0.00,126.00,R,A MOHAMMED,No
Http://opendatacommunities.org/id/metropolitan-district-council/leeds,Leeds City Council,31/10/2022,Communities Housing and Environment,Customer Access,Supplies and Services,Bought In Professional Services,277,08/09/2022,2209-00053,0.00,126.00,R,A MOHAMMED,No
Http://opendatacommunities.org/id/metropolitan-district-council/leeds,Leeds City Council,31/10/2022,Communities Housing and Environment,Customer Access,Supplies and Services,Bought In Professional Services,277,08/09/2022,2209-00054,0.00,126.00,R,A MOHAMMED,No
Http://opendatacommunities.org/id/metropolitan-district-council/leeds,Leeds City Council,31/10/2022,Communities Housing and Environment,Customer Access,Supplies and Services,Bought In Professional Services,277,14/09/2022,2209-00055,0.00,126.00,R,A MOHAMMED,No
Http://opendatacommunities.org/id/metropolitan-district-council/leeds,Leeds City Council,31/10/2022,Communities Housing and Environment,Customer Access,Supplies and Services,Bought In Professional Services,277,14/09/2022,2209-00056,0.00,126.00,R,A MOHAMMED,No
Http://opendatacommunities.org/id/metropolitan-district-council/leeds,Leeds City Council,31/10/2022,Communities Housing and Environment,Customer Access,Supplies and Services,Bought In Professional Services,277,14/09/2022,2209-00057,0.00,126.00,R,A MOHAMMED,No
Http://opendatacommunities.org/id/metropolitan-district-council/leeds,Leeds City Council,31/10/2022,Communities Housing and Environment,Customer Access,Supplies and Services,Bought In Professional Services,277,14/09/2022,2209-00058,0.00,108.00,R,A MOHAMMED,No
Http://opendatacommunities.org/id/metropolitan-district-council/leeds,Leeds City Council,31/10/2022,Communities Housing and Environment,Customer Access,Supplies and Services,Bought In Professional Services,277,14/09/2022,2209-00059,0.00,18.00,R,A MOHAMMED,No
Http://opendatacommunities.org/id/metropolitan-district-council/leeds,Leeds City Council,31/10/2022,Communities Housing and Environment,Customer Access,Supplies and Services,Bought In Professional Services,277,14/09/2022,2209-00060,0.00,126.00,R,A MOHAMMED,No
Http://opendatacommunities.org/id/metropolitan-district-council/leeds,Leeds City Council,31/10/2022,Communities Housing and Environment,Customer Access,Supplies and Services,Bought In Professional Services,277,14/09/2022,2209-00061,0.00,18.00,R,A MOHAMMED,No
Http://opendatacommunities.org/id/metropolitan-district-council/leeds,Leeds City Council,31/10/2022,Communities Housing and Environment,Customer Access,Supplies and Services,Bought In Professional Services,277,22/09/2022,2209-00062,0.00,108.00,R,A MOHAMMED,No
Http://opendatacommunities.org/id/metropolitan-district-council/leeds,Leeds City Council,31/10/2022,Communities Housing and Environment,Customer Access,Supplies and Services,Bought In Professional Services,277,22/09/2022,2209-00063,0.00,108.00,R,A MOHAMMED,No
Http://opendatacommunities.org/id/metropolitan-district-council/leeds,Leeds City Council,31/10/2022,Communities Housing and Environment,Customer Access,Supplies and Services,Bought In Professional Services,277,22/09/2022,2209-00064,0.00,27.00,R,A MOHAMMED,No
Http://opendatacommunities.org/id/metropolitan-district-council/leeds,Leeds City Council,31/10/2022,Communities Housing and Environment,Customer Access,Supplies and Services,Bought In Professional Services,277,22/09/2022,2209-00065,0.00,108.00,R,A MOHAMMED,No
Http://opendatacommunities.org/id/metropolitan-district-council/leeds,Leeds City Council,31/10/2022,Communities Housing and Environment,Customer Access,Supplies and Services,Bought In Professional Services,277,22/09/2022,2209-00066,0.00,108.00,R,A MOHAMMED,No
Http://opendatacommunities.org/id/metropolitan-district-council/leeds,Leeds City Council,31/10/2022,Communities Housing and Environment,Customer Access,Supplies and Services,Bought In Professional Services,277,22/09/2022,2209-00067,0.00,126.00,R,A MOHAMMED,No
Http://opendatacommunities.org/id/metropolitan-district-council/leeds,Leeds City Council,31/10/2022,Communities Housing and Environment,Customer Access,Supplies and Services,Bought In Professional Services,277,22/09/2022,2209-00068,0.00,27.00,R,A MOHAMMED,No
Http://opendatacommunities.org/id/metropolitan-district-council/leeds,Leeds City Council,31/10/2022,Communities Housing and Environment,Customer Access,Supplies and Services,Bought In Professional Services,277,22/09/2022,2209-00069,0.00,108.00,R,A MOHAMMED,No
Http://opendatacommunities.org/id/metropolitan-district-council/leeds,Leeds City Council,31/10/2022,Communities Housing and Environment,Customer Access,Supplies and Services,Bought In Professional Services,277,22/09/2022,2209-00070,0.00,18.00,R,A MOHAMMED,No
Http://opendatacommunities.org/id/metropolitan-district-council/leeds,Leeds City Council,31/10/2022,Communities Housing and Environment,Customer Access,Supplies and Services,Bought In Professional Services,277,28/09/2022,2209-00071,0.00,18.00,R,A MOHAMMED,No
Http://opendatacommunities.org/id/metropolitan-district-council/leeds,Leeds City Council,31/10/2022,Communities Housing and Environment,Customer Access,Supplies and Services,Bought In Professional Services,277,28/09/2022,2209-00072,0.00,108.00,R,A MOHAMMED,No
Http://opendatacommunities.org/id/metropolitan-district-council/leeds,Leeds City Council,31/10/2022,Communities Housing and Environment,Customer Access,Supplies and Services,Bought In Professional Services,277,28/09/2022,2209-00073,0.00,108.00,R,A MOHAMMED,No
Http://opendatacommunities.org/id/metropolitan-district-council/leeds,Leeds City Council,31/10/2022,Communities Housing and Environment,Customer Access,Supplies and Services,Bought In Professional Services,277,28/09/2022,2209-00074,0.00,126.00,R,A MOHAMMED,No
Http://opendatacommunities.org/id/metropolitan-district-council/leeds,Leeds City Council,31/10/2022,Children and Families,Social Care,Agency Payments,Services Rendered By Other Organisations,511,02/09/2022,2209-00075,0.00,2563.28,R,REDACTED PERSONAL DATA,No
Http://opendatacommunities.org/id/metropolitan-district-council/leeds,Leeds City Council,31/10/2022,Children and Families,Social Care,Agency Payments,Services Rendered By Other Organisations,511,07/09/2022,2209-00076,0.00,108.62,R,REDACTED PERSONAL DATA,No
Http://opendatacommunities.org/id/metropolitan-district-council/leeds,Leeds City Council,31/10/2022,Children and Families,Social Care,Agency Payments,Services Rendered By Voluntary Sector,505,28/09/2022,2209-00077,0.00,4333.33,R,REDACTED PERSONAL DATA,No
Http://opendatacommunities.org/id/metropolitan-district-council/leeds,Leeds City Council,31/10/2022,Communities Housing and Environment,Customer Access,Supplies and Services,Bought In Professional Services,277,01/09/2022,2209-00078,0.00,126.00,R,A NAMAKI,No
Http://opendatacommunities.org/id/metropolitan-district-council/leeds,Leeds City Council,31/10/2022,Communities Housing and Environment,Customer Access,Supplies and Services,Bought In Professional Services,277,01/09/2022,2209-00079,0.00,126.00,R,A NAMAKI,No
Http://opendatacommunities.org/id/metropolitan-district-council/leeds,Leeds City Council,31/10/2022,Communities Housing and Environment,Customer Access,Supplies and Services,Bought In Professional Services,277,01/09/2022,2209-00080,0.00,126.00,R,A NAMAKI,No
Http://opendatacommunities.org/id/metropolitan-district-council/leeds,Leeds City Council,31/10/2022,Communities Housing and Environment,Customer Access,Supplies and Services,Bought In Professional Services,277,08/09/2022,2209-00081,0.00,126.00,R,A NAMAKI,No
Http://opendatacommunities.org/id/metropolitan-district-council/leeds,Leeds City Council,31/10/2022,Communities Housing and Environment,Customer Access,Supplies and Services,Bought In Professional Services,277,08/09/2022,2209-00082,0.00,126.00,R,A NAMAKI,No
Http://opendatacommunities.org/id/metropolitan-district-council/leeds,Leeds City Council,31/10/2022,Communities Housing and Environment,Customer Access,Supplies and Services,Bought In Professional Services,277,08/09/2022,2209-00083,0.00,126.00,R,A NAMAKI,No
Http://opendatacommunities.org/id/metropolitan-district-council/leeds,Leeds City Council,31/10/2022,Communities Housing and Environment,Customer Access,Supplies and Services,Bought In Professional Services,277,08/09/2022,2209-00084,0.00,126.00,R,A NAMAKI,No
Http://opendatacommunities.org/id/metropolitan-district-council/leeds,Leeds City Council,31/10/2022,Communities Housing and Environment,Customer Access,Supplies and Services,Bought In Professional Services,277,08/09/2022,2209-00085,0.00,126.00,R,A NAMAKI,No
Http://opendatacommunities.org/id/metropolitan-district-council/leeds,Leeds City Council,31/10/2022,Communities Housing and Environment,Customer Access,Supplies and Services,Bought In Professional Services,277,08/09/2022,2209-00086,0.00,126.00,R,A NAMAKI,No
Http://opendatacommunities.org/id/metropolitan-district-council/leeds,Leeds City Council,31/10/2022,Communities Housing and Environment,Customer Access,Supplies and Services,Bought In Professional Services,277,14/09/2022,2209-00087,0.00,126.00,R,A NAMAKI,No
Http://opendatacommunities.org/id/metropolitan-district-council/leeds,Leeds City Council,31/10/2022,Communities Housing and Environment,Customer Access,Supplies and Services,Bought In Professional Services,277,14/09/2022,2209-00088,0.00,126.00,R,A NAMAKI,No
Http://opendatacommunities.org/id/metropolitan-district-council/leeds,Leeds City Council,31/10/2022,Communities Housing and Environment,Customer Access,Supplies and Services,Bought In Professional Services,277,14/09/2022,2209-00089,0.00,126.00,R,A NAMAKI,No
Http://opendatacommunities.org/id/metropolitan-district-council/leeds,Leeds City Council,31/10/2022,Communities Housing and Environment,Customer Access,Supplies and Services,Bought In Professional Services,277,14/09/2022,2209-00090,0.00,108.00,R,A NAMAKI,No
Http://opendatacommunities.org/id/metropolitan-district-council/leeds,Leeds City Council,31/10/2022,Communities Housing and Environment,Customer Access,Supplies and Services,Bought In Professional Services,277,14/09/2022,2209-00091,0.00,108.00,R,A NAMAKI,No
Http://opendatacommunities.org/id/metropolitan-district-council/leeds,Leeds City Council,31/10/2022,Communities Housing and Environment,Customer Access,Supplies and Services,Bought In Professional Services,277,22/09/2022,2209-00092,0.00,108.00,R,A NAMAKI,No
Http://opendatacommunities.org/id/metropolitan-district-council/leeds,Leeds City Council,31/10/2022,Communities Housing and Environment,Customer Access,Supplies and Services,Bought In Professional Services,277,22/09/2022,2209-00093,0.00,108.00,R,A NAMAKI,No
Http://opendatacommunities.org/id/metropolitan-district-council/leeds,Leeds City Council,31/10/2022,Communities Housing and Environment,Customer Access,Supplies and Services,Bought In Professional Services,277,22/09/2022,2209-00094,0.00,108.00,R,A NAMAKI,No
Http://opendatacommunities.org/id/metropolitan-district-council/leeds,Leeds City Council,31/10/2022,Communities Housing and Environment,Customer Access,Supplies and Services,Bought In Professional Services,277,22/09/2022,2209-00095,0.00,108.00,R,A NAMAKI,No
Http://opendatacommunities.org/id/metropolitan-district-council/leeds,Leeds City Council,31/10/2022,Communities Housing and Environment,Customer Access,Supplies and Services,Bought In Professional Services,277,22/09/2022,2209-00096,0.00,108.00,R,A NAMAKI,No
Http://opendatacommunities.org/id/metropolitan-district-council/leeds,Leeds City Council,31/10/2022,Communities Housing and Environment,Customer Access,Supplies and Services,Bought In Professional Services,277,22/09/2022,2209-00097,0.00,108.00,R,A NAMAKI,No
Http://opendatacommunities.org/id/metropolitan-district-council/leeds,Leeds City Council,31/10/2022,Communities Housing and Environment,Customer Access,Supplies and Services,Bought In Professional Services,277,28/09/2022,2209-00098,0.00,18.00,R,A NAMAKI,No
Http://opendatacommunities.org/id/metropolitan-district-council/leeds,Leeds City Council,31/10/2022,Communities Housing and Environment,Customer Access,Supplies and Services,Bought In Professional Services,277,28/09/2022,2209-00099,0.00,108.00,R,A NAMAKI,No
Http://opendatacommunities.org/id/metropolitan-district-council/leeds,Leeds City Council,31/10/2022,Communities Housing and Environment,Customer Access,Supplies and Services,Bought In Professional Services,277,28/09/2022,2209-00100,0.00,108.00,R,A NAMAKI,No
Http://opendatacommunities.org/id/metropolitan-district-council/leeds,Leeds City Council,31/10/2022,Children and Families,Social Care,Agency Payments,Services Rendered By Other Organisations,511,02/09/2022,2209-00101,0.00,233.03,R,REDACTED PERSONAL DATA,No
Http://opendatacommunities.org/id/metropolitan-district-council/leeds,Leeds City Council,31/10/2022,Communities Housing and Environment,Parks and Countryside,Supplies and Services,Resaleable Materials,204,16/09/2022,2209-00102,0.00,1612.00,R,A NEWTON,No
Http://opendatacommunities.org/id/metropolitan-district-council/leeds,Leeds City Council,31/10/2022,Communities Housing and Environment,Parks and Countryside,Supplies and Services,Other Hired And Contracted Services,265,20/09/2022,2209-00103,0.00,1081.88,R,A NICHOLLS,No
Http://opendatacommunities.org/id/metropolitan-district-council/leeds,Leeds City Council,31/10/2022,City Development,Libraries Arts & Heritage,Supplies and Services,Publication And Promotion,267,01/09/2022,2209-00104,0.00,175.00,R,A Robling,No
Http://opendatacommunities.org/id/metropolitan-district-council/leeds,Leeds City Council,31/10/2022,Resources,Shared Services,Supplies and Services,Other Hired And Contracted Services,265,09/09/2022,2209-00105,0.00,100.00,R,A Star Couriers Ltd,No
Http://opendatacommunities.org/id/metropolitan-district-council/leeds,Leeds City Council,31/10/2022,Communities Housing and Environment,Customer Access,Supplies and Services,Other Hired And Contracted Services,265,15/09/2022,2209-00106,0.00,30.00,R,REDACTED PERSONAL DATA,No
Http://opendatacommunities.org/id/metropolitan-district-council/leeds,Leeds City Council,31/10/2022,Communities Housing and Environment,Waste Management,Employees,Training & Development,70,15/09/2022,2209-00107,0.00,144.80,R,A T Nerac Ltd,No
Http://opendatacommunities.org/id/metropolitan-district-council/leeds,Leeds City Council,31/10/2022,Communities Housing and Environment,Waste Management,Employees,Training & Development,70,15/09/2022,2209-00108,0.00,238.55,R,A T Nerac Ltd,No
Http://opendatacommunities.org/id/metropolitan-district-council/leeds,Leeds City Council,31/10/2022,Communities Housing and Environment,Waste Management,Employees,Training & Development,70,21/09/2022,2209-00109,0.00,386.50,R,A T Nerac Ltd,No
Http://opendatacommunities.org/id/metropolitan-district-council/leeds,Leeds City Council,31/10/2022,Communities Housing and Environment,Strategic Housing Partnership & Support,Supplies and Services,Other Hired And Contracted Services,265,02/09/2022,2209-00110,0.00,2200.00,R,A Ward,No
Http://opendatacommunities.org/id/metropolitan-district-council/leeds,Leeds City Council,31/10/2022,Children and Families,Social Care,Agency Payments,Services Rendered By Other Organisations,511,02/09/2022,2209-00111,0.00,233.03,R,REDACTED PERSONAL DATA,No
Http://opendatacommunities.org/id/metropolitan-district-council/leeds,Leeds City Council,31/10/2022,Children and Families,Social Care,Appropriations,Leaving Care Allowances,634,08/09/2022,2209-00112,0.00,235.30,R,A Wilderness Way Ltd,No
Http://opendatacommunities.org/id/metropolitan-district-council/leeds,Leeds City Council,31/10/2022,Children and Families,Social Care,Agency Payments,General External Residential Placements,507,30/09/2022,2209-00113,0.00,42742.92,R,A Wilderness Way Ltd,No
Http://opendatacommunities.org/id/metropolitan-district-council/leeds,Leeds City Council,31/10/2022,Strategic Landlord,Housing Management,Supplies and Services,Compensation Claims,200,09/09/2022,2209-00114,0.00,50.00,R,REDACTED PERSONAL DATA,No
Http://opendatacommunities.org/id/metropolitan-district-council/leeds,Leeds City Council,31/10/2022,Communities Housing and Environment,Waste Management,Capital,FURNITURE AND EQUIPMENT,5,01/09/2022,2209-00115,0.00,21111.00,C,A&C Weber Uk Ltd,No
Http://opendatacommunities.org/id/metropolitan-district-council/leeds,Leeds City Council,31/10/2022,Communities Housing and Environment,Waste Management,Capital,FURNITURE AND EQUIPMENT,5,09/09/2022,2209-00116,0.00,12329.00,C,A&C Weber Uk Ltd,No
Http://opendatacommunities.org/id/metropolitan-district-council/leeds,Leeds City Council,31/10/2022,Resources,Commercial Services,Premises,Removal Of Workplace Waste,126,16/09/2022,2209-00117,0.00,553.20,R,A&C Weber Uk Ltd,No
Http://opendatacommunities.org/id/metropolitan-district-council/leeds,Leeds City Council,31/10/2022,Resources,Commercial Services,Supplies and Services,Postages,212,16/09/2022,2209-00118,0.00,57.43,R,A&C Weber Uk Ltd,No
Http://opendatacommunities.org/id/metropolitan-district-council/leeds,Leeds City Council,31/10/2022,Communities Housing and Environment,Waste Management,Capital,FURNITURE AND EQUIPMENT,5,30/09/2022,2209-00119,0.00,11870.00,C,A&C Weber Uk Ltd,No
Http://opendatacommunities.org/id/metropolitan-district-council/leeds,Leeds City Council,31/10/2022,Resources,Leeds Building Services,Supplies and Services,Operational Materials,205,01/09/2022,2209-00120,0.00,1605.00,R,A1 STAIR LIFT SERVICES,No
Http://opendatacommunities.org/id/metropolitan-district-council/leeds,Leeds City Council,31/10/2022,Resources,Leeds Building Services,Supplies and Services,Other Hired And Contracted Services,265,02/09/2022,2209-00121,0.00,3232.84,R,A1 STAIR LIFT SERVICES,No
Http://opendatacommunities.org/id/metropolitan-district-council/leeds,Leeds City Council,31/10/2022,Resources,Leeds Building Services,Supplies and Services,Other Hired And Contracted Services,265,21/09/2022,2209-00122,0.00,1959.50,R,A1 STAIR LIFT SERVICES,No
Http://opendatacommunities.org/id/metropolitan-district-council/leeds,Leeds City Council,31/10/2022,Resources,Leeds Building Services,Supplies and Services,Operational Materials,205,30/09/2022,2209-00123,0.00,1095.00,R,A1 STAIR LIFT SERVICES,No
Http://opendatacommunities.org/id/metropolitan-district-council/leeds,Leeds City Council,31/10/2022,Resources,Leeds Building Services,Supplies and Services,Operational Materials,205,30/09/2022,2209-00124,0.00,716.00,R,A1 STAIR LIFT SERVICES,No
Http://opendatacommunities.org/id/metropolitan-district-council/leeds,Leeds City Council,31/10/2022,Communities Housing and Environment,Communities,Supplies and Services,Non-Recurring Grants,227,29/09/2022,2209-00125,0.00,6004.80,R,Aalfy Ltd,No
Http://opendatacommunities.org/id/metropolitan-district-council/leeds,Leeds City Council,31/10/2022,Communities Housing and Environment,Communities,Supplies and Services,Non-Recurring Grants,227,29/09/2022,2209-00126,0.00,5000.00,R,Aalfy Ltd,No
Http://opendatacommunities.org/id/metropolitan-district-council/leeds,Leeds City Council,31/10/2022,Children and Families,Social Care ,Supplies and Services,Operational Materials,205,09/09/2022,2209-00127,0.00,61.98,R,Aardvark Archery,Yes
Http://opendatacommunities.org/id/metropolitan-district-council/leeds,Leeds City Council,31/10/2022,Children and Families,Social Care,Transport,Fuel (Non LCC Supplies),321,30/09/2022,2209-00128,0.00,75.00,R,REDACTED PERSONAL DATA,No
Http://opendatacommunities.org/id/metropolitan-district-council/leeds,Leeds City Council,31/10/2022,Adults and Health,Services For Older People - 65 And Over,Agency Payments,Residential Care Dementia,571,14/09/2022,2209-00129,0.00,2177.12,R,Aaron Court Care Home,No
Http://opendatacommunities.org/id/metropolitan-district-council/leeds,Leeds City Council as Accountable Body,31/10/2022,Social Services Pooled Budgets,Jcs For People With Learning Disabilitie,Supplies and Services,Other Equipment,203,09/09/2022,2209-00130,0.00,350.00,R,AAT (GB) LTD,No
Http://opendatacommunities.org/id/metropolitan-district-council/leeds,Leeds City Council,31/10/2022,City Development,Libraries Arts & Heritage,Supplies and Services,Operational Furniture And Equipment,203,22/09/2022,2209-00131,0.00,119.00,R,AAT (GB) LTD,No
Http://opendatacommunities.org/id/metropolitan-district-council/leeds,Leeds City Council,31/10/2022,Communities Housing and Environment,Car Parking Services ,Supplies and Services,Postages,212,18/08/2022,2209-00132,0.00,135.00,R,Abacus Express,Yes
Http://opendatacommunities.org/id/metropolitan-district-council/leeds,Leeds City Council,31/10/2022,Children and Families,Social Care ,Appropriations,Leaving Care Grants,635,24/08/2022,2209-00133,0.00,354.17,R,Abakusdirect.Co.Uk,Yes
Http://opendatacommunities.org/id/metropolitan-district-council/leeds,Leeds City Council,31/10/2022,Communities Housing and Environment,Elections Licensing and Registration,External Income,Admissions Booking Fees & Ticket Sales,933,13/09/2022,2209-00134,0.00,70.00,R,Abbas Ali,No
Http://opendatacommunities.org/id/metropolitan-district-council/leeds,Leeds City Council as Accountable Body,31/10/2022,Social Services Pooled Budgets,Jcs For People With Learning Disabilitie,Agency Payments,Residential,580,14/09/2022,2209-00135,0.00,11720.20,R,Abbey Care And Education,No
Http://opendatacommunities.org/id/metropolitan-district-council/leeds,Leeds City Council,31/10/2022,Children and Families,Learning,Supplies and Services,Other Hired And Contracted Services,265,07/09/2022,2209-00136,0.00,750.00,R,Abbey Multi Academy Trust,No
Http://opendatacommunities.org/id/metropolitan-district-council/leeds,Leeds City Council,31/10/2022,Adults and Health,Services For Adults Under 65 Mental/Dis,Agency Payments,Home Care,568,02/09/2022,2209-00137,0.00,460.95,R,Abbeyfield The Dales Limited,No
Http://opendatacommunities.org/id/metropolitan-district-council/leeds,Leeds City Council,31/10/2022,Adults and Health,Services For Adults Under 65 Mental/Dis,Agency Payments,Home Care,568,30/09/2022,2209-00138,0.00,451.50,R,Abbeyfield The Dales Limited,No
Http://opendatacommunities.org/id/metropolitan-district-council/leeds,Leeds City Council,31/10/2022,Children and Families,Social Care,Agency Payments,Allowances,546,29/09/2022,2209-00139,0.00,699.48,R,ABBIE O'MAHONY,No
Http://opendatacommunities.org/id/metropolitan-district-council/leeds,Leeds City Council,31/10/2022,Children and Families,Social Care,Agency Payments,Services Rendered By Other Organisations,511,02/09/2022,2209-00140,0.00,1004.40,R,REDACTED PERSONAL DATA,No
Http://opendatacommunities.org/id/metropolitan-district-council/leeds,Leeds City Council,31/10/2022,Children and Families,Social Care,Internal Recharges,Legal Disbursements,411,02/09/2022,2209-00141,0.00,95.00,R,Abbott Toxicology Ltd.,No
Http://opendatacommunities.org/id/metropolitan-district-council/leeds,Leeds City Council,31/10/2022,Children and Families,Social Care,Internal Recharges,Legal Disbursements,411,15/09/2022,2209-00142,0.00,248.00,R,Abbott Toxicology Ltd.,No
Http://opendatacommunities.org/id/metropolitan-district-council/leeds,Leeds City Council,31/10/2022,Communities Housing and Environment,Parks and Countryside,Supplies and Services,Other Hired And Contracted Services,265,01/09/2022,2209-00143,0.00,1250.00,R,Abbotts Memorials,No
Http://opendatacommunities.org/id/metropolitan-district-council/leeds,Leeds City Council,31/10/2022,Communities Housing and Environment,Parks and Countryside,Supplies and Services,Other Hired And Contracted Services,265,01/09/2022,2209-00144,0.00,3600.00,R,Abbotts Memorials,No
Http://opendatacommunities.org/id/metropolitan-district-council/leeds,Leeds City Council,31/10/2022,Communities Housing and Environment,Parks and Countryside,Supplies and Services,Other Hired And Contracted Services,265,02/09/2022,2209-00145,0.00,1800.00,R,Abbotts Memorials,No
Http://opendatacommunities.org/id/metropolitan-district-council/leeds,Leeds City Council,31/10/2022,Communities Housing and Environment,Parks and Countryside,Supplies and Services,Other Hired And Contracted Services,265,09/09/2022,2209-00146,0.00,2400.00,R,Abbotts Memorials,No
Http://opendatacommunities.org/id/metropolitan-district-council/leeds,Leeds City Council,31/10/2022,Communities Housing and Environment,Parks and Countryside,Supplies and Services,Other Hired And Contracted Services,265,09/09/2022,2209-00147,0.00,3550.00,R,Abbotts Memorials,No
Http://opendatacommunities.org/id/metropolitan-district-council/leeds,Leeds City Council,31/10/2022,Communities Housing and Environment,Parks and Countryside,Supplies and Services,Other Hired And Contracted Services,265,22/09/2022,2209-00148,0.00,600.00,R,Abbotts Memorials,No
Http://opendatacommunities.org/id/metropolitan-district-council/leeds,Leeds City Council,31/10/2022,Communities Housing and Environment,Parks and Countryside,Supplies and Services,Other Hired And Contracted Services,265,23/09/2022,2209-00149,0.00,600.00,R,Abbotts Memorials,No
Http://opendatacommunities.org/id/metropolitan-district-council/leeds,Leeds City Council,31/10/2022,Communities Housing and Environment,Strategic Housing Partnership & Support,Supplies and Services,Other Hired And Contracted Services,265,08/09/2022,2209-00150,0.00,1300.00,R,Abbotts Properties,No
Http://opendatacommunities.org/id/metropolitan-district-council/leeds,Leeds City Council,31/10/2022,Children and Families,Social Care,Agency Payments,General External Residential Placements,507,09/09/2022,2209-00151,0.00,15783.56,R,ABC Care and Educationd LTD,No
Http://opendatacommunities.org/id/metropolitan-district-council/leeds,Leeds City Council,31/10/2022,Children and Families,Social Care,Agency Payments,General External Residential Placements,507,16/09/2022,2209-00152,0.00,3417.11,R,ABC Care and Educationd LTD,No
Http://opendatacommunities.org/id/metropolitan-district-council/leeds,Leeds City Council,31/10/2022,Children and Families,Social Care,Agency Payments,General External Residential Placements,507,16/09/2022,2209-00153,0.00,3542.99,R,ABC Care and Educationd LTD,No
Http://opendatacommunities.org/id/metropolitan-district-council/leeds,Leeds City Council,31/10/2022,Children and Families,Social Care,Agency Payments,Services Rendered By Other Organisations,511,02/09/2022,2209-00154,0.00,6524.70,R,ABC NURSERY AT LUFC,No
Http://opendatacommunities.org/id/metropolitan-district-council/leeds,Leeds City Council,31/10/2022,Children and Families,Social Care,Agency Payments,Services Rendered By Other Organisations,511,07/09/2022,2209-00155,0.00,2986.91,R,ABC NURSERY AT LUFC,No
Http://opendatacommunities.org/id/metropolitan-district-council/leeds,Leeds City Council,31/10/2022,Children and Families,Social Care,Agency Payments,Services Rendered By Other Organisations,511,02/09/2022,2209-00156,0.00,4893.53,R,Abc@D'S Childcare,No
Http://opendatacommunities.org/id/metropolitan-district-council/leeds,Leeds City Council,31/10/2022,Children and Families,Social Care,Agency Payments,Services Rendered By Other Organisations,511,07/09/2022,2209-00157,0.00,1629.23,R,Abc@D'S Childcare,No
Http://opendatacommunities.org/id/metropolitan-district-council/leeds,Leeds City Council,31/10/2022,Communities Housing and Environment,Customer Access,Supplies and Services,Bought In Professional Services,277,22/09/2022,2209-00158,0.00,13.50,R,Abdiqafar Abdullahi,No
Http://opendatacommunities.org/id/metropolitan-district-council/leeds,Leeds City Council,31/10/2022,Communities Housing and Environment,Customer Access,Supplies and Services,Bought In Professional Services,277,28/09/2022,2209-00159,0.00,22.50,R,Abdiqafar Abdullahi,No
Http://opendatacommunities.org/id/metropolitan-district-council/leeds,Leeds City Council,31/10/2022,Communities Housing and Environment,Customer Access,Supplies and Services,Bought In Professional Services,277,14/09/2022,2209-00160,0.00,18.00,R,Abdul Kalam,No
Http://opendatacommunities.org/id/metropolitan-district-council/leeds,Leeds City Council,31/10/2022,Communities Housing and Environment,Customer Access,Supplies and Services,Bought In Professional Services,277,14/09/2022,2209-00161,0.00,24.00,R,Abdul Kalam,No
Http://opendatacommunities.org/id/metropolitan-district-council/leeds,Leeds City Council,31/10/2022,Communities Housing and Environment,Customer Access,Supplies and Services,Bought In Professional Services,277,01/09/2022,2209-00162,0.00,18.00,R,Abdulahad Denha,No
Http://opendatacommunities.org/id/metropolitan-district-council/leeds,Leeds City Council,31/10/2022,Communities Housing and Environment,Customer Access,Supplies and Services,Bought In Professional Services,277,01/09/2022,2209-00163,0.00,27.00,R,Abdulahad Denha,No
Http://opendatacommunities.org/id/metropolitan-district-council/leeds,Leeds City Council,31/10/2022,Communities Housing and Environment,Customer Access,Supplies and Services,Bought In Professional Services,277,01/09/2022,2209-00164,0.00,18.00,R,Abdulahad Denha,No
Http://opendatacommunities.org/id/metropolitan-district-council/leeds,Leeds City Council,31/10/2022,Communities Housing and Environment,Customer Access,Supplies and Services,Bought In Professional Services,277,01/09/2022,2209-00165,0.00,22.50,R,Abdulahad Denha,No
Http://opendatacommunities.org/id/metropolitan-district-council/leeds,Leeds City Council,31/10/2022,Communities Housing and Environment,Customer Access,Supplies and Services,Bought In Professional Services,277,01/09/2022,2209-00166,0.00,18.00,R,Abdulahad Denha,No
Http://opendatacommunities.org/id/metropolitan-district-council/leeds,Leeds City Council,31/10/2022,Communities Housing and Environment,Customer Access,Supplies and Services,Bought In Professional Services,277,28/09/2022,2209-00167,0.00,18.00,R,Abdulahad Denha,No
Http://opendatacommunities.org/id/metropolitan-district-council/leeds,Leeds City Council,31/10/2022,Communities Housing and Environment,Customer Access,Supplies and Services,Bought In Professional Services,277,28/09/2022,2209-00168,0.00,9.00,R,Abdulahad Denha,No
Http://opendatacommunities.org/id/metropolitan-district-council/leeds,Leeds City Council,31/10/2022,Communities Housing and Environment,Customer Access,Supplies and Services,Bought In Professional Services,277,28/09/2022,2209-00169,0.00,18.00,R,Abdulahad Denha,No
Http://opendatacommunities.org/id/metropolitan-district-council/leeds,Leeds City Council,31/10/2022,Communities Housing and Environment,Customer Access,Supplies and Services,Bought In Professional Services,277,01/09/2022,2209-00170,0.00,27.00,R,Abdulrahim Dastyar,No
Http://opendatacommunities.org/id/metropolitan-district-council/leeds,Leeds City Council,31/10/2022,Communities Housing and Environment,Customer Access,Supplies and Services,Bought In Professional Services,277,08/09/2022,2209-00171,0.00,34.50,R,Abdulrahim Dastyar,No
Http://opendatacommunities.org/id/metropolitan-district-council/leeds,Leeds City Council,31/10/2022,Communities Housing and Environment,Customer Access,Supplies and Services,Bought In Professional Services,277,08/09/2022,2209-00172,0.00,27.00,R,Abdulrahim Dastyar,No
Http://opendatacommunities.org/id/metropolitan-district-council/leeds,Leeds City Council,31/10/2022,Communities Housing and Environment,Customer Access,Supplies and Services,Bought In Professional Services,277,14/09/2022,2209-00173,0.00,13.50,R,Abdulrahim Dastyar,No
Http://opendatacommunities.org/id/metropolitan-district-council/leeds,Leeds City Council,31/10/2022,Communities Housing and Environment,Customer Access,Supplies and Services,Bought In Professional Services,277,28/09/2022,2209-00174,0.00,9.00,R,Abdulrahim Dastyar,No
Http://opendatacommunities.org/id/metropolitan-district-council/leeds,Leeds City Council,31/10/2022,Communities Housing and Environment,Customer Access,Supplies and Services,Bought In Professional Services,277,28/09/2022,2209-00175,0.00,18.00,R,Abdulrahim Dastyar,No
Http://opendatacommunities.org/id/metropolitan-district-council/leeds,Leeds City Council,31/10/2022,Children and Families,Social Care,Agency Payments,Placement Support,550,27/09/2022,2209-00176,0.00,1050.00,R,Aberford Childcare Services,No
Http://opendatacommunities.org/id/metropolitan-district-council/leeds,Leeds City Council,31/10/2022,Adults and Health,Services For Older People - 65 And Over,Agency Payments,Nursing Home,570,14/09/2022,2209-00177,0.00,49736.92,R,Aberford Hall,No
Http://opendatacommunities.org/id/metropolitan-district-council/leeds,Leeds City Council,31/10/2022,Adults and Health,Services For Older People - 65 And Over,Agency Payments,Nursing Care Dementia,574,14/09/2022,2209-00178,0.00,1982.00,R,Aberford Hall,No
Http://opendatacommunities.org/id/metropolitan-district-council/leeds,Leeds City Council,31/10/2022,Adults and Health,Services For Older People Under 65 P/Dis,Agency Payments,Nursing Home,570,14/09/2022,2209-00179,0.00,0.00,R,Aberford Hall,No
Http://opendatacommunities.org/id/metropolitan-district-council/leeds,Leeds City Council,31/10/2022,Resources,Leeds Building Services,Supplies and Services,Operational Materials,205,01/09/2022,2209-00180,0.00,390.88,R,ABI GARAGE DOORS LTD,No
Http://opendatacommunities.org/id/metropolitan-district-council/leeds,Leeds City Council,31/10/2022,Resources,Leeds Building Services,Supplies and Services,Operational Materials,205,01/09/2022,2209-00181,0.00,390.87,R,ABI GARAGE DOORS LTD,No
Http://opendatacommunities.org/id/metropolitan-district-council/leeds,Leeds City Council,31/10/2022,Resources,Leeds Building Services,Supplies and Services,Operational Materials,205,02/09/2022,2209-00182,0.00,390.87,R,ABI GARAGE DOORS LTD,No
Http://opendatacommunities.org/id/metropolitan-district-council/leeds,Leeds City Council,31/10/2022,Resources,Leeds Building Services,Supplies and Services,Operational Materials,205,02/09/2022,2209-00183,0.00,390.87,R,ABI GARAGE DOORS LTD,No
Http://opendatacommunities.org/id/metropolitan-district-council/leeds,Leeds City Council,31/10/2022,Resources,Leeds Building Services,Supplies and Services,Operational Materials,205,09/09/2022,2209-00184,0.00,390.88,R,ABI GARAGE DOORS LTD,No
Http://opendatacommunities.org/id/metropolitan-district-council/leeds,Leeds City Council,31/10/2022,Resources,Leeds Building Services,Supplies and Services,Operational Materials,205,09/09/2022,2209-00185,0.00,390.88,R,ABI GARAGE DOORS LTD,No
Http://opendatacommunities.org/id/metropolitan-district-council/leeds,Leeds City Council,31/10/2022,Resources,Leeds Building Services,Supplies and Services,Operational Materials,205,28/09/2022,2209-00186,0.00,390.87,R,ABI GARAGE DOORS LTD,No
Http://opendatacommunities.org/id/metropolitan-district-council/leeds,Leeds City Council,31/10/2022,Resources,Leeds Building Services,Supplies and Services,Operational Materials,205,28/09/2022,2209-00187,0.00,390.87,R,ABI GARAGE DOORS LTD,No
Http://opendatacommunities.org/id/metropolitan-district-council/leeds,Leeds City Council,31/10/2022,Communities Housing and Environment,Customer Access,Supplies and Services,Bought In Professional Services,277,08/09/2022,2209-00188,0.00,14.40,R,Abida Begum,No
Http://opendatacommunities.org/id/metropolitan-district-council/leeds,Leeds City Council,31/10/2022,Communities Housing and Environment,Customer Access,Supplies and Services,Bought In Professional Services,277,22/09/2022,2209-00189,0.00,43.50,R,Abida Begum,No
Http://opendatacommunities.org/id/metropolitan-district-council/leeds,Leeds City Council,31/10/2022,Children and Families,Social Care,Transport,Fuel (Non LCC Supplies),321,27/09/2022,2209-00190,0.00,75.00,R,REDACTED PERSONAL DATA,No
Http://opendatacommunities.org/id/metropolitan-district-council/leeds,Leeds City Council,31/10/2022,Children and Families,Social Care,Agency Payments,Placement Support,550,13/09/2022,2209-00191,0.00,14.86,R,REDACTED PERSONAL DATA,No
Http://opendatacommunities.org/id/metropolitan-district-council/leeds,Leeds City Council,31/10/2022,Children and Families,Social Care,Agency Payments,Placement Support,550,16/09/2022,2209-00192,0.00,10.36,R,REDACTED PERSONAL DATA,No
Http://opendatacommunities.org/id/metropolitan-district-council/leeds,Leeds City Council,31/10/2022,Children and Families,Social Care,Agency Payments,Section 17,551,30/09/2022,2209-00193,0.00,40.00,R,REDACTED PERSONAL DATA,No
Http://opendatacommunities.org/id/metropolitan-district-council/leeds,Leeds City Council,31/10/2022,Children and Families,Social Care,Agency Payments,Contact,548,07/09/2022,2209-00194,0.00,1.15,R,REDACTED PERSONAL DATA,No
Http://opendatacommunities.org/id/metropolitan-district-council/leeds,Leeds City Council,31/10/2022,Children and Families,Social Care,Agency Payments,General External Residential Placements,507,30/09/2022,2209-00195,0.00,17692.01,R,Absolute Children's Services Ltd,No
Http://opendatacommunities.org/id/metropolitan-district-council/leeds,Leeds City Council,31/10/2022,Children and Families,Social Care ,Supplies and Services,Office Furniture & Equipment,201,15/08/2022,2209-00196,0.00,271.32,R,Absolute Home Textiles,Yes
Http://opendatacommunities.org/id/metropolitan-district-council/leeds,Leeds City Council,31/10/2022,City Development,Libraries Arts & Heritage ,Supplies and Services,Other Hired And Contracted Services,265,08/08/2022,2209-00197,0.00,273.11,R,Absoluteproduct.Co,Yes
Http://opendatacommunities.org/id/metropolitan-district-council/leeds,Leeds City Council,31/10/2022,Children and Families,Social Care ,Supplies and Services,Food & Drink,231,09/09/2022,2209-00198,0.00,15.17,R,Abu Bakar,Yes
Http://opendatacommunities.org/id/metropolitan-district-council/leeds,Leeds City Council,31/10/2022,Children and Families,Social Care ,Supplies and Services,Food & Drink,231,14/09/2022,2209-00199,0.00,2.50,R,Abu Bakar,Yes
Http://opendatacommunities.org/id/metropolitan-district-council/leeds,Leeds City Council,31/10/2022,Children and Families,Social Care ,Supplies and Services,Food & Drink,231,30/09/2022,2209-00200,0.00,11.22,R,Abu Bakar,Yes
Http://opendatacommunities.org/id/metropolitan-district-council/leeds,Leeds City Council,31/10/2022,Communities Housing and Environment,Communities,Supplies and Services,Conference Meetings,253,02/09/2022,2209-00201,0.00,6725.00,R,Abundant Life Resources Ltd,No
Http://opendatacommunities.org/id/metropolitan-district-council/leeds,Leeds City Council,31/10/2022,Adults and Health,Service Strategy,Supplies and Services,Other Hired And Contracted Services,265,27/09/2022,2209-00202,0.00,4550.00,R,Acainn Ltd,No
Http://opendatacommunities.org/id/metropolitan-district-council/leeds,Leeds City Council,31/10/2022,Adults and Health,Service Strategy,Supplies and Services,Other Hired And Contracted Services,265,27/09/2022,2209-00203,0.00,1950.00,R,Acainn Ltd,No
Http://opendatacommunities.org/id/metropolitan-district-council/leeds,Leeds City Council,31/10/2022,Communities Housing and Environment,Communities,Supplies and Services,Other Hired And Contracted Services,265,29/09/2022,2209-00204,0.00,1700.00,R,ACCESS DISPLAYS LTD,No
Http://opendatacommunities.org/id/metropolitan-district-council/leeds,Leeds City Council,31/10/2022,Communities Housing and Environment,Parks and Countryside ,Supplies and Services,Operational Materials,205,16/08/2022,2209-00205,0.00,87.55,R,Access Irrigation.Co.Uk,Yes
Http://opendatacommunities.org/id/metropolitan-district-council/leeds,Leeds City Council,31/10/2022,Communities Housing and Environment,Waste Management ,Transport,Repair & Maintenance of  Plant,342,01/08/2022,2209-00206,0.00,80.15,R,Access Locksmiths,Yes
Http://opendatacommunities.org/id/metropolitan-district-council/leeds,Leeds City Council,31/10/2022,Communities Housing and Environment,Parks and Countryside ,Premises,Maintenance Of Buildings,101,09/08/2022,2209-00207,0.00,54.96,R,Access Locksmiths,Yes
Http://opendatacommunities.org/id/metropolitan-district-council/leeds,Leeds City Council,31/10/2022,Resources,Commercial Services ,Supplies and Services,Operational Materials,205,12/08/2022,2209-00208,0.00,695.63,R,Access Locksmiths,Yes
Http://opendatacommunities.org/id/metropolitan-district-council/leeds,Leeds City Council,31/10/2022,Resources,Facilities Management ,Supplies and Services,Operational Materials,205,12/08/2022,2209-00209,0.00,914.88,R,Access Locksmiths,Yes
Http://opendatacommunities.org/id/metropolitan-district-council/leeds,Leeds City Council,31/10/2022,Communities Housing and Environment,Parks and Countryside ,Supplies and Services,Operational Materials,205,22/08/2022,2209-00210,0.00,19.12,R,Access Locksmiths,Yes
Http://opendatacommunities.org/id/metropolitan-district-council/leeds,Leeds City Council,31/10/2022,Communities Housing and Environment,Parks and Countryside ,Supplies and Services,Operational Materials,205,25/08/2022,2209-00211,0.00,38.23,R,Access Locksmiths,Yes
Http://opendatacommunities.org/id/metropolitan-district-council/leeds,Leeds City Council,31/10/2022,Adults and Health,Services For Older People - 65 And Over ,Premises,Maintenance Of Buildings,101,14/09/2022,2209-00212,0.00,41.82,R,Access Locksmiths,Yes
Http://opendatacommunities.org/id/metropolitan-district-council/leeds,Leeds City Council,31/10/2022,Resources,Leeds Building Services,Supplies and Services,Operational Materials,205,07/09/2022,2209-00213,0.00,192.02,R,ACCESS LOCKSMITHS (LEEDS) LIMITED,No
Http://opendatacommunities.org/id/metropolitan-district-council/leeds,Leeds City Council,31/10/2022,Strategic Landlord,HRA Housing Leeds,Capital,OTHER COSTS,7,09/09/2022,2209-00214,0.00,2199.83,C,ACCESS LOCKSMITHS (LEEDS) LIMITED,No
Http://opendatacommunities.org/id/metropolitan-district-council/leeds,Leeds City Council,31/10/2022,Strategic Landlord,HRA Housing Leeds,Capital,OTHER COSTS,7,09/09/2022,2209-00215,0.00,9.60,C,ACCESS LOCKSMITHS (LEEDS) LIMITED,No
Http://opendatacommunities.org/id/metropolitan-district-council/leeds,Leeds City Council,31/10/2022,Strategic Landlord,HRA Housing Leeds,Capital,OTHER COSTS,7,09/09/2022,2209-00216,0.00,64.35,C,ACCESS LOCKSMITHS (LEEDS) LIMITED,No
Http://opendatacommunities.org/id/metropolitan-district-council/leeds,Leeds City Council,31/10/2022,Strategic Landlord,Housing Management,Supplies and Services,Resaleable Materials,204,14/09/2022,2209-00217,0.00,124.00,R,ACCESS LOCKSMITHS (LEEDS) LIMITED,No
Http://opendatacommunities.org/id/metropolitan-district-council/leeds,Leeds City Council,31/10/2022,Strategic Landlord,Housing Management,Premises,General Maintenance,104,15/09/2022,2209-00218,0.00,191.00,R,ACCESS LOCKSMITHS (LEEDS) LIMITED,No
Http://opendatacommunities.org/id/metropolitan-district-council/leeds,Leeds City Council,31/10/2022,Strategic Landlord,HRA Housing Leeds,Capital,CONSTRUCTION,3,21/09/2022,2209-00219,0.00,213.97,C,ACCESS LOCKSMITHS (LEEDS) LIMITED,No
Http://opendatacommunities.org/id/metropolitan-district-council/leeds,Leeds City Council,31/10/2022,Resources,Leeds Building Services,Supplies and Services,Operational Materials,205,21/09/2022,2209-00220,0.00,319.56,R,ACCESS LOCKSMITHS (LEEDS) LIMITED,No
Http://opendatacommunities.org/id/metropolitan-district-council/leeds,Leeds City Council,31/10/2022,Resources,Leeds Building Services,Supplies and Services,Operational Materials,205,21/09/2022,2209-00221,0.00,43.90,R,ACCESS LOCKSMITHS (LEEDS) LIMITED,No
Http://opendatacommunities.org/id/metropolitan-district-council/leeds,Leeds City Council,31/10/2022,Resources,Leeds Building Services,Supplies and Services,Operational Materials,205,21/09/2022,2209-00222,0.00,11.42,R,ACCESS LOCKSMITHS (LEEDS) LIMITED,No
Http://opendatacommunities.org/id/metropolitan-district-council/leeds,Leeds City Council,31/10/2022,Strategic Landlord,Housing Management,Supplies and Services,Resaleable Materials,204,21/09/2022,2209-00223,0.00,74.40,R,ACCESS LOCKSMITHS (LEEDS) LIMITED,No
Http://opendatacommunities.org/id/metropolitan-district-council/leeds,Leeds City Council,31/10/2022,Strategic Landlord,Housing Management,Premises,General Maintenance,104,21/09/2022,2209-00224,0.00,248.00,R,ACCESS LOCKSMITHS (LEEDS) LIMITED,No
Http://opendatacommunities.org/id/metropolitan-district-council/leeds,Leeds City Council,31/10/2022,Resources,Leeds Building Services,Supplies and Services,Operational Materials,205,27/09/2022,2209-00225,0.00,74.36,R,ACCESS LOCKSMITHS (LEEDS) LIMITED,No
Http://opendatacommunities.org/id/metropolitan-district-council/leeds,Leeds City Council,31/10/2022,City Development,Libraries Arts & Heritage,Supplies and Services,Bought In Professional Services,277,22/09/2022,2209-00226,0.00,1000.00,R,ACCESS MOVING IMAGE LTD,No
Http://opendatacommunities.org/id/metropolitan-district-council/leeds,Leeds City Council,31/10/2022,Children and Families,Resources & Strategy,Supplies and Services,Computer Software & Equipment,214,21/09/2022,2209-00227,0.00,1056.00,R,Access Uk Ltd,No
Http://opendatacommunities.org/id/metropolitan-district-council/leeds,Leeds City Council,31/10/2022,Resources,Technology,Supplies and Services,Computer Software & Equipment,214,26/09/2022,2209-00228,0.00,24758.00,R,Access Uk Ltd,No
Http://opendatacommunities.org/id/metropolitan-district-council/leeds,Leeds City Council,31/10/2022,City Development,Libraries Arts & Heritage,Supplies and Services,Bought In Professional Services,277,14/09/2022,2209-00229,0.00,2800.00,R,Accessible By Design Ltd,No
Http://opendatacommunities.org/id/metropolitan-district-council/leeds,Leeds City Council,31/10/2022,City Development,Recreation,Transport,External Hire -Occasional,304,30/09/2022,2209-00230,0.00,124.50,R,ACE CONTAINER SERVICES LIMITED,No
Http://opendatacommunities.org/id/metropolitan-district-council/leeds,Leeds City Council,31/10/2022,Children and Families,Learning,Agency Payments,SEN Placements,566,21/09/2022,2209-00231,0.00,20283.92,R,ACKWORTH SCHOOL,No
Http://opendatacommunities.org/id/metropolitan-district-council/leeds,Leeds City Council,31/10/2022,Communities Housing and Environment,Parks and Countryside ,Supplies and Services,Other Hired And Contracted Services,265,01/09/2022,2209-00232,0.00,1565.60,R,Acme Facilities Group,Yes
Http://opendatacommunities.org/id/metropolitan-district-council/leeds,Leeds City Council,31/10/2022,Children and Families,Social Care,Agency Payments,General External Residential Placements,507,07/09/2022,2209-00233,0.00,-871.57,R,Acorn Care & Education Ltd (Sales),No
Http://opendatacommunities.org/id/metropolitan-district-council/leeds,Leeds City Council,31/10/2022,Children and Families,Social Care,Agency Payments,General External Residential Placements,507,07/09/2022,2209-00234,0.00,13447.06,R,Acorn Care & Education Ltd (Sales),No
Http://opendatacommunities.org/id/metropolitan-district-council/leeds,Leeds City Council,31/10/2022,Children and Families,Learning,Agency Payments,SEN Placements,566,07/09/2022,2209-00235,0.00,13333.33,R,Acorn Care & Education Ltd (Sales),No
Http://opendatacommunities.org/id/metropolitan-district-council/leeds,Leeds City Council,31/10/2022,Children and Families,Learning,Agency Payments,SEN Placements,566,08/09/2022,2209-00236,0.00,19762.66,R,Acorn Care & Education Ltd (Sales),No
Http://opendatacommunities.org/id/metropolitan-district-council/leeds,Leeds City Council,31/10/2022,Children and Families,Social Care,Agency Payments,General External Residential Placements,507,09/09/2022,2209-00237,0.00,15694.99,R,Acorn Care & Education Ltd (Sales),No
Http://opendatacommunities.org/id/metropolitan-district-council/leeds,Leeds City Council,31/10/2022,Children and Families,Social Care,Agency Payments,General External Residential Placements,507,09/09/2022,2209-00238,0.00,15188.70,R,Acorn Care & Education Ltd (Sales),No
Http://opendatacommunities.org/id/metropolitan-district-council/leeds,Leeds City Council,31/10/2022,Children and Families,Social Care,Agency Payments,General External Residential Placements,507,09/09/2022,2209-00239,0.00,15694.99,R,Acorn Care & Education Ltd (Sales),No
Http://opendatacommunities.org/id/metropolitan-district-council/leeds,Leeds City Council,31/10/2022,Children and Families,Social Care,Agency Payments,General External Residential Placements,507,09/09/2022,2209-00240,0.00,15188.70,R,Acorn Care & Education Ltd (Sales),No
Http://opendatacommunities.org/id/metropolitan-district-council/leeds,Leeds City Council,31/10/2022,Children and Families,Learning,Agency Payments,SEN Placements,566,21/09/2022,2209-00241,0.00,363.29,R,Acorn Care & Education Ltd (Sales),No
Http://opendatacommunities.org/id/metropolitan-district-council/leeds,Leeds City Council,31/10/2022,Children and Families,Learning,Agency Payments,SEN Placements,566,21/09/2022,2209-00242,0.00,21797.46,R,Acorn Care & Education Ltd (Sales),No
Http://opendatacommunities.org/id/metropolitan-district-council/leeds,Leeds City Council,31/10/2022,Children and Families,Learning,Agency Payments,SEN Placements,566,21/09/2022,2209-00243,0.00,13333.34,R,Acorn Care & Education Ltd (Sales),No
Http://opendatacommunities.org/id/metropolitan-district-council/leeds,Leeds City Council,31/10/2022,Children and Families,Social Care,Agency Payments,General External Residential Placements,507,21/09/2022,2209-00244,0.00,15314.71,R,Acorn Care & Education Ltd (Sales),No
Http://opendatacommunities.org/id/metropolitan-district-council/leeds,Leeds City Council,31/10/2022,Resources,Commercial Services,Transport,Private Hire,360,28/09/2022,2209-00245,0.00,1440.00,R,Acorn Care & Education Ltd (Sales),No
Http://opendatacommunities.org/id/metropolitan-district-council/leeds,Leeds City Council,31/10/2022,Resources,Commercial Services,Transport,Private Hire,360,28/09/2022,2209-00246,0.00,1280.00,R,Acorn Care & Education Ltd (Sales),No
Http://opendatacommunities.org/id/metropolitan-district-council/leeds,Leeds City Council,31/10/2022,Children and Families,Social Care,Agency Payments,General External Residential Placements,507,30/09/2022,2209-00247,0.00,17249.29,R,Acorn Care & Education Ltd (Sales),No
Http://opendatacommunities.org/id/metropolitan-district-council/leeds,Leeds City Council,31/10/2022,Adults and Health,Services For Older People Under 65 P/Dis,Agency Payments,Nursing Home,570,14/09/2022,2209-00248,0.00,3500.00,R,Acorn Care Home,No
Http://opendatacommunities.org/id/metropolitan-district-council/leeds,Leeds City Council,31/10/2022,Communities Housing and Environment,Strategic Housing Partnership & Support,Supplies and Services,Other Hired And Contracted Services,265,08/09/2022,2209-00249,0.00,2500.00,R,Acorn Housing,No
Http://opendatacommunities.org/id/metropolitan-district-council/leeds,Leeds City Council,31/10/2022,Children and Families,Social Care,Agency Payments,Services Rendered By Other Organisations,511,02/09/2022,2209-00250,0.00,9464.40,R,ACORNS NURSERY,No
Http://opendatacommunities.org/id/metropolitan-district-council/leeds,Leeds City Council,31/10/2022,Children and Families,Social Care,Agency Payments,Services Rendered By Other Organisations,511,07/09/2022,2209-00251,0.00,271.54,R,ACORNS NURSERY,No
Http://opendatacommunities.org/id/metropolitan-district-council/leeds,Leeds City Council,31/10/2022,Children and Families,Social Care,Agency Payments,Services Rendered By Voluntary Sector,505,28/09/2022,2209-00252,0.00,1200.00,R,ACORNS NURSERY,No
Http://opendatacommunities.org/id/metropolitan-district-council/leeds,Leeds City Council,31/10/2022,Adults and Health,Services For Older People - 65 And Over,Agency Payments,Nursing Home,570,14/09/2022,2209-00253,0.00,28601.68,R,Acre Green,No
Http://opendatacommunities.org/id/metropolitan-district-council/leeds,Leeds City Council,31/10/2022,Adults and Health,Services For Older People - 65 And Over,Agency Payments,Residential,580,14/09/2022,2209-00254,0.00,4180.20,R,Acre Green,No
Http://opendatacommunities.org/id/metropolitan-district-council/leeds,Leeds City Council,31/10/2022,Adults and Health,Services For Older People Under 65 P/Dis,Agency Payments,Nursing Home,570,14/09/2022,2209-00255,0.00,-3807.18,R,Acre Green,No
Http://opendatacommunities.org/id/metropolitan-district-council/leeds,Leeds City Council,31/10/2022,Adults and Health,Services For Older People Under 65 P/Dis,Agency Payments,Residential,580,14/09/2022,2209-00256,0.00,1892.20,R,Acre Green,No
Http://opendatacommunities.org/id/metropolitan-district-council/leeds,Leeds City Council,31/10/2022,Children and Families,Social Care,Agency Payments,Services Rendered By Other Organisations,511,02/09/2022,2209-00257,0.00,11651.25,R,Acre Wood Day Nursery,No
Http://opendatacommunities.org/id/metropolitan-district-council/leeds,Leeds City Council,31/10/2022,Children and Families,Social Care,Agency Payments,Services Rendered By Other Organisations,511,07/09/2022,2209-00258,0.00,375.98,R,Acre Wood Day Nursery,No
Http://opendatacommunities.org/id/metropolitan-district-council/leeds,Leeds City Council,31/10/2022,Resources,Technology ,Supplies and Services,Office Consumables,210,15/09/2022,2209-00259,0.00,3252.54,R,Acs Group,Yes
Http://opendatacommunities.org/id/metropolitan-district-council/leeds,Leeds City Council,31/10/2022,Adults and Health,Services For Adults Under 65 Mental/Dis,Agency Payments,Home Care,568,02/09/2022,2209-00260,0.00,6800.00,R,Action First Assessments Ltd,No
Http://opendatacommunities.org/id/metropolitan-district-council/leeds,Leeds City Council,31/10/2022,Adults and Health,Services For Adults Under 65 Mental/Dis,Agency Payments,Home Care,568,23/09/2022,2209-00261,0.00,7290.00,R,Action First Assessments Ltd,No
Http://opendatacommunities.org/id/metropolitan-district-council/leeds,Leeds City Council as Accountable Body,31/10/2022,Social Services Pooled Budgets,Jcs For People With Learning Disabilitie,Agency Payments,Residential,580,14/09/2022,2209-00262,0.00,10702.60,R,Action For Care Contracts Limited,No
Http://opendatacommunities.org/id/metropolitan-district-council/leeds,Leeds City Council,31/10/2022,Children and Families,Social Care,Agency Payments,Independent Fostering Agencies,509,15/09/2022,2209-00263,0.00,4897.20,R,Action For Children Services Ltd,No
Http://opendatacommunities.org/id/metropolitan-district-council/leeds,Leeds City Council,31/10/2022,Children and Families,Social Care,Agency Payments,Independent Fostering Agencies,509,15/09/2022,2209-00264,0.00,5060.44,R,Action For Children Services Ltd,No
Http://opendatacommunities.org/id/metropolitan-district-council/leeds,Leeds City Council,31/10/2022,Children and Families,Social Care,Agency Payments,Independent Fostering Agencies,509,30/09/2022,2209-00265,0.00,5060.44,R,Action For Children Services Ltd,No
Http://opendatacommunities.org/id/metropolitan-district-council/leeds,Leeds City Council,31/10/2022,Adults and Health,Services For Older People - 65 And Over,Agency Payments,Payments To Voluntary Organisations,561,30/09/2022,2209-00266,0.00,45009.02,R,ACTION FOR GIPTON ELDERLY,No
Http://opendatacommunities.org/id/metropolitan-district-council/leeds,Leeds City Council,31/10/2022,Insurance,Insurance,Supplies and Services,Insurance Claims,248,12/09/2022,2209-00267,0.00,9470.45,R,Active Claims Solutions Ltd,No
Http://opendatacommunities.org/id/metropolitan-district-council/leeds,Leeds City Council,31/10/2022,Children and Families,Social Care,Supplies and Services,General Amenity For Clients/Residents,285,09/09/2022,2209-00268,0.00,345.00,R,ACTIVE HIRE (LEEDS) LTD,No
Http://opendatacommunities.org/id/metropolitan-district-council/leeds,Leeds City Council,31/10/2022,Children and Families,Social Care,Agency Payments,Services Rendered By Other Organisations,511,02/09/2022,2209-00269,0.00,5344.04,R,ACTIVE KIDS YEADON LLP,No
Http://opendatacommunities.org/id/metropolitan-district-council/leeds,Leeds City Council,31/10/2022,Children and Families,Social Care,Agency Payments,Services Rendered By Other Organisations,511,07/09/2022,2209-00270,0.00,814.61,R,ACTIVE KIDS YEADON LLP,No
Http://opendatacommunities.org/id/metropolitan-district-council/leeds,Leeds City Council,31/10/2022,Children and Families,Social Care,Agency Payments,Services Rendered By Voluntary Sector,505,26/09/2022,2209-00271,0.00,2166.67,R,ACTIVE KIDS YEADON LLP,No
Http://opendatacommunities.org/id/metropolitan-district-council/leeds,Leeds City Council,31/10/2022,Adults and Health,Services For Adults Under 65 Mental/Dis,Agency Payments,Home Care,568,06/09/2022,2209-00272,0.00,260.00,R,Active Minds Pontefract Ltd,No
Http://opendatacommunities.org/id/metropolitan-district-council/leeds,Leeds City Council,31/10/2022,Adults and Health,Services For Adults Under 65 Mental/Dis,Agency Payments,Home Care,568,22/09/2022,2209-00273,0.00,580.00,R,Active Minds Pontefract Ltd,No
Http://opendatacommunities.org/id/metropolitan-district-council/leeds,Leeds City Council,31/10/2022,Adults and Health,Services For Adults Under 65 Mental/Dis,Agency Payments,Home Care,568,22/09/2022,2209-00274,0.00,515.00,R,Active Minds Pontefract Ltd,No
Http://opendatacommunities.org/id/metropolitan-district-council/leeds,Leeds City Council,31/10/2022,Adults and Health,Services For Adults Under 65 Mental/Dis,Agency Payments,Sheltered Accommodation,569,14/09/2022,2209-00275,0.00,25245.83,R,Active Pathways,No
Http://opendatacommunities.org/id/metropolitan-district-council/leeds,Leeds City Council,31/10/2022,Adults and Health,Services For Older People - 65 And Over,Agency Payments,Sheltered Accommodation,569,14/09/2022,2209-00276,0.00,4154.84,R,Active Pathways,No
Http://opendatacommunities.org/id/metropolitan-district-council/leeds,Leeds City Council as Accountable Body,31/10/2022,Social Services Pooled Budgets,Jcs For People With Learning Disabilitie,Agency Payments,Sheltered Accommodation,569,14/09/2022,2209-00277,0.00,12452.52,R,Active Pathways,No
Http://opendatacommunities.org/id/metropolitan-district-council/leeds,Leeds City Council,31/10/2022,Adults and Health,Services For Older People - 65 And Over,Agency Payments,Residential,580,14/09/2022,2209-00278,0.00,32434.50,R,Active Pathways Limited,No
Http://opendatacommunities.org/id/metropolitan-district-council/leeds,Leeds City Council,31/10/2022,Communities Housing and Environment,Waste Management,Supplies and Services,Recycling & Reuse Charges,234,02/09/2022,2209-00279,0.00,1000.80,R,Acumen Waste Services Ltd,No
Http://opendatacommunities.org/id/metropolitan-district-council/leeds,Leeds City Council,31/10/2022,Communities Housing and Environment,Waste Management,Supplies and Services,Recycling & Reuse Charges,234,02/09/2022,2209-00280,0.00,993.60,R,Acumen Waste Services Ltd,No
Http://opendatacommunities.org/id/metropolitan-district-council/leeds,Leeds City Council,31/10/2022,Communities Housing and Environment,Waste Management,Supplies and Services,Recycling & Reuse Charges,234,07/09/2022,2209-00281,0.00,1018.80,R,Acumen Waste Services Ltd,No
Http://opendatacommunities.org/id/metropolitan-district-council/leeds,Leeds City Council,31/10/2022,Communities Housing and Environment,Waste Management,Supplies and Services,Recycling & Reuse Charges,234,08/09/2022,2209-00282,0.00,993.60,R,Acumen Waste Services Ltd,No
Http://opendatacommunities.org/id/metropolitan-district-council/leeds,Leeds City Council,31/10/2022,Communities Housing and Environment,Waste Management,Supplies and Services,Recycling & Reuse Charges,234,08/09/2022,2209-00283,0.00,994.32,R,Acumen Waste Services Ltd,No
Http://opendatacommunities.org/id/metropolitan-district-council/leeds,Leeds City Council,31/10/2022,Communities Housing and Environment,Waste Management,Supplies and Services,Recycling & Reuse Charges,234,08/09/2022,2209-00284,0.00,972.72,R,Acumen Waste Services Ltd,No
Http://opendatacommunities.org/id/metropolitan-district-council/leeds,Leeds City Council,31/10/2022,Communities Housing and Environment,Waste Management,Supplies and Services,Recycling & Reuse Charges,234,14/09/2022,2209-00285,0.00,1014.48,R,Acumen Waste Services Ltd,No
Http://opendatacommunities.org/id/metropolitan-district-council/leeds,Leeds City Council,31/10/2022,Communities Housing and Environment,Waste Management,Supplies and Services,Recycling & Reuse Charges,234,14/09/2022,2209-00286,0.00,1070.64,R,Acumen Waste Services Ltd,No
Http://opendatacommunities.org/id/metropolitan-district-council/leeds,Leeds City Council,31/10/2022,Communities Housing and Environment,Waste Management,Supplies and Services,Waste Disposal Charges,236,14/09/2022,2209-00287,0.00,797.75,R,Acumen Waste Services Ltd,No
Http://opendatacommunities.org/id/metropolitan-district-council/leeds,Leeds City Council,31/10/2022,Communities Housing and Environment,Waste Management,Supplies and Services,Waste Disposal Charges,236,14/09/2022,2209-00288,0.00,500.00,R,Acumen Waste Services Ltd,No
Http://opendatacommunities.org/id/metropolitan-district-council/leeds,Leeds City Council,31/10/2022,Communities Housing and Environment,Waste Management,Supplies and Services,Waste Disposal Charges,236,14/09/2022,2209-00289,0.00,443.45,R,Acumen Waste Services Ltd,No
Http://opendatacommunities.org/id/metropolitan-district-council/leeds,Leeds City Council,31/10/2022,Communities Housing and Environment,Waste Management,Supplies and Services,Recycling & Reuse Charges,234,14/09/2022,2209-00290,0.00,1001.52,R,Acumen Waste Services Ltd,No
Http://opendatacommunities.org/id/metropolitan-district-council/leeds,Leeds City Council,31/10/2022,Communities Housing and Environment,Waste Management,Supplies and Services,Waste Disposal Charges,236,14/09/2022,2209-00291,0.00,1221.40,R,Acumen Waste Services Ltd,No
Http://opendatacommunities.org/id/metropolitan-district-council/leeds,Leeds City Council,31/10/2022,Communities Housing and Environment,Waste Management,Supplies and Services,Waste Disposal Charges,236,14/09/2022,2209-00292,0.00,1469.40,R,Acumen Waste Services Ltd,No
Http://opendatacommunities.org/id/metropolitan-district-council/leeds,Leeds City Council,31/10/2022,Communities Housing and Environment,Waste Management,Supplies and Services,Recycling & Reuse Charges,234,14/09/2022,2209-00293,0.00,997.92,R,Acumen Waste Services Ltd,No
Http://opendatacommunities.org/id/metropolitan-district-council/leeds,Leeds City Council,31/10/2022,Communities Housing and Environment,Waste Management,Supplies and Services,Waste Disposal Charges,236,16/09/2022,2209-00294,0.00,1092.40,R,Acumen Waste Services Ltd,No
Http://opendatacommunities.org/id/metropolitan-district-council/leeds,Leeds City Council,31/10/2022,Communities Housing and Environment,Waste Management,Supplies and Services,Recycling & Reuse Charges,234,16/09/2022,2209-00295,0.00,1004.40,R,Acumen Waste Services Ltd,No
Http://opendatacommunities.org/id/metropolitan-district-council/leeds,Leeds City Council,31/10/2022,Communities Housing and Environment,Waste Management,Supplies and Services,Recycling & Reuse Charges,234,16/09/2022,2209-00296,0.00,1000.80,R,Acumen Waste Services Ltd,No
Http://opendatacommunities.org/id/metropolitan-district-council/leeds,Leeds City Council,31/10/2022,Communities Housing and Environment,Waste Management,Supplies and Services,Recycling & Reuse Charges,234,16/09/2022,2209-00297,0.00,1001.52,R,Acumen Waste Services Ltd,No
Http://opendatacommunities.org/id/metropolitan-district-council/leeds,Leeds City Council,31/10/2022,Communities Housing and Environment,Waste Management,Supplies and Services,Recycling & Reuse Charges,234,21/09/2022,2209-00298,0.00,995.04,R,Acumen Waste Services Ltd,No
Http://opendatacommunities.org/id/metropolitan-district-council/leeds,Leeds City Council,31/10/2022,Communities Housing and Environment,Waste Management,Supplies and Services,Recycling & Reuse Charges,234,21/09/2022,2209-00299,0.00,1003.68,R,Acumen Waste Services Ltd,No
Http://opendatacommunities.org/id/metropolitan-district-council/leeds,Leeds City Council,31/10/2022,Communities Housing and Environment,Waste Management,Supplies and Services,Recycling & Reuse Charges,234,23/09/2022,2209-00300,0.00,1020.96,R,Acumen Waste Services Ltd,No
Http://opendatacommunities.org/id/metropolitan-district-council/leeds,Leeds City Council,31/10/2022,Communities Housing and Environment,Waste Management,Supplies and Services,Recycling & Reuse Charges,234,23/09/2022,2209-00301,0.00,1010.88,R,Acumen Waste Services Ltd,No
Http://opendatacommunities.org/id/metropolitan-district-council/leeds,Leeds City Council,31/10/2022,Communities Housing and Environment,Waste Management,Supplies and Services,Recycling & Reuse Charges,234,30/09/2022,2209-00302,0.00,995.76,R,Acumen Waste Services Ltd,No
Http://opendatacommunities.org/id/metropolitan-district-council/leeds,Leeds City Council,31/10/2022,Communities Housing and Environment,Waste Management,Supplies and Services,Waste Disposal Charges,236,30/09/2022,2209-00303,0.00,870.20,R,Acumen Waste Services Ltd,No
Http://opendatacommunities.org/id/metropolitan-district-council/leeds,Leeds City Council,31/10/2022,Communities Housing and Environment,Waste Management,Supplies and Services,Waste Disposal Charges,236,30/09/2022,2209-00304,0.00,865.65,R,Acumen Waste Services Ltd,No
Http://opendatacommunities.org/id/metropolitan-district-council/leeds,Leeds City Council,31/10/2022,Communities Housing and Environment,Waste Management,Supplies and Services,Recycling & Reuse Charges,234,30/09/2022,2209-00305,0.00,961.20,R,Acumen Waste Services Ltd,No
Http://opendatacommunities.org/id/metropolitan-district-council/leeds,Leeds City Council,31/10/2022,Communities Housing and Environment,Waste Management,Supplies and Services,Recycling & Reuse Charges,234,30/09/2022,2209-00306,0.00,1008.72,R,Acumen Waste Services Ltd,No
Http://opendatacommunities.org/id/metropolitan-district-council/leeds,Leeds City Council,31/10/2022,Communities Housing and Environment,Waste Management,Supplies and Services,Recycling & Reuse Charges,234,30/09/2022,2209-00307,0.00,893.52,R,Acumen Waste Services Ltd,No
Http://opendatacommunities.org/id/metropolitan-district-council/leeds,Leeds City Council,31/10/2022,City Development,Highways,Capital,OTHER COSTS,7,30/09/2022,2209-00308,0.00,1675.00,C,AD Rural LTD,No
Http://opendatacommunities.org/id/metropolitan-district-council/leeds,Leeds City Council,31/10/2022,Resources,Shared Services,Supplies and Services,Operational Materials,205,02/09/2022,2209-00309,0.00,1492.50,R,AD3 Envelope Printers Limited,No
Http://opendatacommunities.org/id/metropolitan-district-council/leeds,Leeds City Council,31/10/2022,Resources,Shared Services,Supplies and Services,Operational Materials,205,09/09/2022,2209-00310,0.00,1776.00,R,AD3 Envelope Printers Limited,No
Http://opendatacommunities.org/id/metropolitan-district-council/leeds,Leeds City Council,31/10/2022,Resources,Shared Services,Supplies and Services,Other Hired And Contracted Services,265,09/09/2022,2209-00311,0.00,412.25,R,AD3 Envelope Printers Limited,No
Http://opendatacommunities.org/id/metropolitan-district-council/leeds,Leeds City Council,31/10/2022,Resources,Shared Services,Supplies and Services,Other Hired And Contracted Services,265,16/09/2022,2209-00312,0.00,530.00,R,AD3 Envelope Printers Limited,No
Http://opendatacommunities.org/id/metropolitan-district-council/leeds,Leeds City Council,31/10/2022,Resources,Shared Services,Supplies and Services,Other Hired And Contracted Services,265,16/09/2022,2209-00313,0.00,490.80,R,AD3 Envelope Printers Limited,No
Http://opendatacommunities.org/id/metropolitan-district-council/leeds,Leeds City Council,31/10/2022,Communities Housing and Environment,Strategic Housing Partnership & Support,Supplies and Services,Other Hired And Contracted Services,265,27/09/2022,2209-00314,0.00,604.10,R,Adair Paxton LLP,No
Http://opendatacommunities.org/id/metropolitan-district-council/leeds,Leeds City Council,31/10/2022,City Development,Highways,Internal Recharges,Legal Disbursements,411,16/09/2022,2209-00315,0.00,4350.00,R,Adam Aldred,No
Http://opendatacommunities.org/id/metropolitan-district-council/leeds,Leeds City Council,31/10/2022,Children and Families,Social Care,Agency Payments,Contact,548,02/09/2022,2209-00316,0.00,10.40,R,REDACTED PERSONAL DATA,No
Http://opendatacommunities.org/id/metropolitan-district-council/leeds,Leeds City Council,31/10/2022,Children and Families,Social Care,Agency Payments,Contact,548,09/09/2022,2209-00317,0.00,10.40,R,REDACTED PERSONAL DATA,No
Http://opendatacommunities.org/id/metropolitan-district-council/leeds,Leeds City Council,31/10/2022,Children and Families,Social Care,Agency Payments,Contact,548,16/09/2022,2209-00318,0.00,10.40,R,REDACTED PERSONAL DATA,No
Http://opendatacommunities.org/id/metropolitan-district-council/leeds,Leeds City Council,31/10/2022,Communities Housing and Environment,Strategic Housing Partnership & Support,Capital,CONSTRUCTION,3,05/09/2022,2209-00319,0.00,10000.00,C,Adam'S Gas Services,No
Http://opendatacommunities.org/id/metropolitan-district-council/leeds,Leeds City Council,31/10/2022,Children and Families,Social Care ,Appropriations,Payments To Residents,622,07/09/2022,2209-00320,0.00,215.00,R,Adams Phones,Yes
Http://opendatacommunities.org/id/metropolitan-district-council/leeds,Leeds City Council,31/10/2022,Adults and Health,Services For Older People - 65 And Over,Agency Payments,Residential Care Dementia,571,14/09/2022,2209-00321,0.00,2584.00,R,Adbolton Hall,No
Http://opendatacommunities.org/id/metropolitan-district-council/leeds,Leeds City Council,31/10/2022,Children and Families,Social Care,Agency Payments,Services Rendered By Voluntary Sector,505,02/09/2022,2209-00322,0.00,2330.25,R,ADEL PRE SCHOOL,No
Http://opendatacommunities.org/id/metropolitan-district-council/leeds,Leeds City Council,31/10/2022,Children and Families,Social Care,Agency Payments,Services Rendered By Voluntary Sector,505,07/09/2022,2209-00323,0.00,271.54,R,ADEL PRE SCHOOL,No
Http://opendatacommunities.org/id/metropolitan-district-council/leeds,Leeds City Council,31/10/2022,Children and Families,Social Care,Agency Payments,Services Rendered By Voluntary Sector,505,26/09/2022,2209-00324,0.00,4333.34,R,ADEL PRE SCHOOL,No
Http://opendatacommunities.org/id/metropolitan-district-council/leeds,Leeds City Council,31/10/2022,City Development,Recreation,Supplies and Services,Bought In Professional Services,277,23/09/2022,2209-00325,0.00,160.00,R,Adele Battersby,No
Http://opendatacommunities.org/id/metropolitan-district-council/leeds,Leeds City Council,31/10/2022,City Development,Recreation,Supplies and Services,Bought In Professional Services,277,23/09/2022,2209-00326,0.00,300.00,R,Adele Battersby,No
Http://opendatacommunities.org/id/metropolitan-district-council/leeds,Leeds City Council,31/10/2022,City Development,Recreation,Supplies and Services,Bought In Professional Services,277,30/09/2022,2209-00327,0.00,100.00,R,Adele Battersby,No
Http://opendatacommunities.org/id/metropolitan-district-council/leeds,Leeds City Council,31/10/2022,Children and Families,Social Care,Agency Payments,Services Rendered By Other Organisations,511,02/09/2022,2209-00328,0.00,1263.56,R,REDACTED PERSONAL DATA,No
Http://opendatacommunities.org/id/metropolitan-district-council/leeds,Leeds City Council,31/10/2022,Children and Families,Social Care,Agency Payments,Services Rendered By Other Organisations,511,07/09/2022,2209-00329,0.00,271.54,R,REDACTED PERSONAL DATA,No
Http://opendatacommunities.org/id/metropolitan-district-council/leeds,Leeds City Council,31/10/2022,Children and Families,Social Care,Internal Recharges,Legal Disbursements,411,01/09/2022,2209-00330,0.00,625.00,R,Adele Jenkins,No
Http://opendatacommunities.org/id/metropolitan-district-council/leeds,Leeds City Council,31/10/2022,Resources,Commercial Services,Supplies and Services,Other Hired And Contracted Services,265,27/09/2022,2209-00331,0.00,95.75,R,REDACTED PERSONAL DATA,No
Http://opendatacommunities.org/id/metropolitan-district-council/leeds,Leeds City Council,31/10/2022,Adults and Health,Services For Older People - 65 And Over,Agency Payments,Residential Care Dementia,571,15/09/2022,2209-00332,0.00,481.38,R,ADEN HOUSE,No
Http://opendatacommunities.org/id/metropolitan-district-council/leeds,Leeds City Council,31/10/2022,Children and Families,Social Care ,Supplies and Services,Crockery Cutlery & Utensils,221,29/07/2022,2209-00333,0.00,108.98,R,Adexa.Co.Uk,Yes
Http://opendatacommunities.org/id/metropolitan-district-council/leeds,Leeds City Council,31/10/2022,Children and Families,Social Care ,Appropriations,Children's Homes Clothing Allowance,608,17/09/2022,2209-00334,0.00,16.00,R,Adidas (U.K.) Limited,Yes
Http://opendatacommunities.org/id/metropolitan-district-council/leeds,Leeds City Council,31/10/2022,Communities Housing and Environment,Community Safety ,Supplies and Services,Other Hired And Contracted Services,265,07/09/2022,2209-00335,0.00,635.88,R,Adi-Gardiner Ltd,Yes
Http://opendatacommunities.org/id/metropolitan-district-council/leeds,Leeds City Council,31/10/2022,Resources,Leeds Building Services,Supplies and Services,Operational Materials,205,13/09/2022,2209-00336,0.00,1985.88,R,ADI-Gardiner Ltd,No
Http://opendatacommunities.org/id/metropolitan-district-council/leeds,Leeds City Council,31/10/2022,Resources,Leeds Building Services,Supplies and Services,Operational Materials,205,13/09/2022,2209-00337,0.00,2434.32,R,ADI-Gardiner Ltd,No
Http://opendatacommunities.org/id/metropolitan-district-council/leeds,Leeds City Council,31/10/2022,Resources,Leeds Building Services,Supplies and Services,Operational Materials,205,13/09/2022,2209-00338,0.00,43.67,R,ADI-Gardiner Ltd,No
Http://opendatacommunities.org/id/metropolitan-district-council/leeds,Leeds City Council,31/10/2022,Resources,Leeds Building Services,Supplies and Services,Operational Materials,205,21/09/2022,2209-00339,0.00,130.86,R,ADI-Gardiner Ltd,No
Http://opendatacommunities.org/id/metropolitan-district-council/leeds,Leeds City Council,31/10/2022,Resources,Leeds Building Services,Supplies and Services,Operational Materials,205,21/09/2022,2209-00340,0.00,29.64,R,ADI-Gardiner Ltd,No
Http://opendatacommunities.org/id/metropolitan-district-council/leeds,Leeds City Council,31/10/2022,Resources,Leeds Building Services,Supplies and Services,Operational Materials,205,21/09/2022,2209-00341,0.00,83.56,R,ADI-Gardiner Ltd,No
Http://opendatacommunities.org/id/metropolitan-district-council/leeds,Leeds City Council,31/10/2022,Resources,Leeds Building Services,Supplies and Services,Operational Materials,205,21/09/2022,2209-00342,0.00,60.08,R,ADI-Gardiner Ltd,No
Http://opendatacommunities.org/id/metropolitan-district-council/leeds,Leeds City Council,31/10/2022,Resources,Leeds Building Services,Supplies and Services,Operational Materials,205,21/09/2022,2209-00343,0.00,12.89,R,ADI-Gardiner Ltd,No
Http://opendatacommunities.org/id/metropolitan-district-council/leeds,Leeds City Council,31/10/2022,Resources,Leeds Building Services,Supplies and Services,Operational Materials,205,21/09/2022,2209-00344,0.00,12.89,R,ADI-Gardiner Ltd,No
Http://opendatacommunities.org/id/metropolitan-district-council/leeds,Leeds City Council,31/10/2022,Resources,Leeds Building Services,Supplies and Services,Operational Materials,205,21/09/2022,2209-00345,0.00,6315.98,R,ADI-Gardiner Ltd,No
Http://opendatacommunities.org/id/metropolitan-district-council/leeds,Leeds City Council,31/10/2022,Resources,Leeds Building Services,Premises,Cleaning Maintenance & Toiletries,127,21/09/2022,2209-00346,0.00,8.85,R,ADI-Gardiner Ltd,No
Http://opendatacommunities.org/id/metropolitan-district-council/leeds,Leeds City Council,31/10/2022,Resources,Leeds Building Services,Supplies and Services,Operational Materials,205,21/09/2022,2209-00347,0.00,9.58,R,ADI-Gardiner Ltd,No
Http://opendatacommunities.org/id/metropolitan-district-council/leeds,Leeds City Council,31/10/2022,Resources,Leeds Building Services,Supplies and Services,Operational Materials,205,21/09/2022,2209-00348,0.00,961.05,R,ADI-Gardiner Ltd,No
Http://opendatacommunities.org/id/metropolitan-district-council/leeds,Leeds City Council,31/10/2022,Resources,Leeds Building Services,Supplies and Services,Operational Materials,205,21/09/2022,2209-00349,0.00,1353.00,R,ADI-Gardiner Ltd,No
Http://opendatacommunities.org/id/metropolitan-district-council/leeds,Leeds City Council,31/10/2022,Resources,Leeds Building Services,Supplies and Services,Operational Materials,205,21/09/2022,2209-00350,0.00,840.70,R,ADI-Gardiner Ltd,No
Http://opendatacommunities.org/id/metropolitan-district-council/leeds,Leeds City Council,31/10/2022,Resources,Leeds Building Services,Supplies and Services,Operational Materials,205,21/09/2022,2209-00351,0.00,8.64,R,ADI-Gardiner Ltd,No
Http://opendatacommunities.org/id/metropolitan-district-council/leeds,Leeds City Council,31/10/2022,Resources,Leeds Building Services,Supplies and Services,Operational Materials,205,21/09/2022,2209-00352,0.00,41.34,R,ADI-Gardiner Ltd,No
Http://opendatacommunities.org/id/metropolitan-district-council/leeds,Leeds City Council,31/10/2022,Resources,Leeds Building Services,Supplies and Services,Operational Materials,205,21/09/2022,2209-00353,0.00,4.79,R,ADI-Gardiner Ltd,No
Http://opendatacommunities.org/id/metropolitan-district-council/leeds,Leeds City Council,31/10/2022,Resources,Leeds Building Services,Supplies and Services,Operational Materials,205,21/09/2022,2209-00354,0.00,688.47,R,ADI-Gardiner Ltd,No
Http://opendatacommunities.org/id/metropolitan-district-council/leeds,Leeds City Council,31/10/2022,Resources,Leeds Building Services,Supplies and Services,Operational Materials,205,21/09/2022,2209-00355,0.00,884.26,R,ADI-Gardiner Ltd,No
Http://opendatacommunities.org/id/metropolitan-district-council/leeds,Leeds City Council,31/10/2022,Resources,Leeds Building Services,Supplies and Services,Operational Materials,205,21/09/2022,2209-00356,0.00,29.18,R,ADI-Gardiner Ltd,No
Http://opendatacommunities.org/id/metropolitan-district-council/leeds,Leeds City Council,31/10/2022,Resources,Leeds Building Services,Supplies and Services,Operational Materials,205,21/09/2022,2209-00357,0.00,254.17,R,ADI-Gardiner Ltd,No
Http://opendatacommunities.org/id/metropolitan-district-council/leeds,Leeds City Council,31/10/2022,Resources,Leeds Building Services,Supplies and Services,Operational Materials,205,21/09/2022,2209-00358,0.00,1353.00,R,ADI-Gardiner Ltd,No
Http://opendatacommunities.org/id/metropolitan-district-council/leeds,Leeds City Council,31/10/2022,Insurance,Insurance,Supplies and Services,Insurance Claims,248,23/09/2022,2209-00359,0.00,45000.00,R,Admiral Law,No
Http://opendatacommunities.org/id/metropolitan-district-council/leeds,Leeds City Council,31/10/2022,City Development,Recreation ,Supplies and Services,Computer Software & Equipment,214,21/09/2022,2209-00360,0.00,298.02,R,Adobe Creative Cloud,Yes
Http://opendatacommunities.org/id/metropolitan-district-council/leeds,Leeds City Council,31/10/2022,Children and Families,Social Care,Agency Payments,Independent Fostering Agencies,509,02/09/2022,2209-00361,0.00,3565.00,R,Adolescent And Childrens Trust,No
Http://opendatacommunities.org/id/metropolitan-district-council/leeds,Leeds City Council,31/10/2022,Children and Families,Social Care,Agency Payments,Independent Fostering Agencies,509,02/09/2022,2209-00362,0.00,3565.00,R,Adolescent And Childrens Trust,No
Http://opendatacommunities.org/id/metropolitan-district-council/leeds,Leeds City Council,31/10/2022,Children and Families,Social Care,Agency Payments,Independent Fostering Agencies,509,02/09/2022,2209-00363,0.00,3565.00,R,Adolescent And Childrens Trust,No
Http://opendatacommunities.org/id/metropolitan-district-council/leeds,Leeds City Council,31/10/2022,Children and Families,Social Care,Agency Payments,Independent Fostering Agencies,509,02/09/2022,2209-00364,0.00,3751.00,R,Adolescent And Childrens Trust,No
Http://opendatacommunities.org/id/metropolitan-district-council/leeds,Leeds City Council,31/10/2022,Children and Families,Social Care,Agency Payments,Independent Fostering Agencies,509,02/09/2022,2209-00365,0.00,1573.00,R,Adolescent And Childrens Trust,No
Http://opendatacommunities.org/id/metropolitan-district-council/leeds,Leeds City Council,31/10/2022,Children and Families,Social Care,Agency Payments,Independent Fostering Agencies,509,02/09/2022,2209-00366,0.00,3751.00,R,Adolescent And Childrens Trust,No
Http://opendatacommunities.org/id/metropolitan-district-council/leeds,Leeds City Council,31/10/2022,Children and Families,Social Care,Agency Payments,Independent Fostering Agencies,509,02/09/2022,2209-00367,0.00,3551.67,R,Adolescent And Childrens Trust,No
Http://opendatacommunities.org/id/metropolitan-district-council/leeds,Leeds City Council,31/10/2022,Children and Families,Social Care,Agency Payments,Independent Fostering Agencies,509,02/09/2022,2209-00368,0.00,3751.00,R,Adolescent And Childrens Trust,No
Http://opendatacommunities.org/id/metropolitan-district-council/leeds,Leeds City Council,31/10/2022,Children and Families,Social Care,Agency Payments,Independent Fostering Agencies,509,02/09/2022,2209-00369,0.00,3565.00,R,Adolescent And Childrens Trust,No
Http://opendatacommunities.org/id/metropolitan-district-council/leeds,Leeds City Council,31/10/2022,Children and Families,Social Care,Agency Payments,Independent Fostering Agencies,509,02/09/2022,2209-00370,0.00,3658.00,R,Adolescent And Childrens Trust,No
Http://opendatacommunities.org/id/metropolitan-district-council/leeds,Leeds City Council,31/10/2022,Children and Families,Social Care,Agency Payments,Independent Fostering Agencies,509,02/09/2022,2209-00371,0.00,3830.67,R,Adolescent And Childrens Trust,No
Http://opendatacommunities.org/id/metropolitan-district-council/leeds,Leeds City Council,31/10/2022,Children and Families,Social Care,Agency Payments,Independent Fostering Agencies,509,02/09/2022,2209-00372,0.00,3658.00,R,Adolescent And Childrens Trust,No
Http://opendatacommunities.org/id/metropolitan-district-council/leeds,Leeds City Council,31/10/2022,Children and Families,Social Care,Agency Payments,Independent Fostering Agencies,509,02/09/2022,2209-00373,0.00,3830.67,R,Adolescent And Childrens Trust,No
Http://opendatacommunities.org/id/metropolitan-district-council/leeds,Leeds City Council,31/10/2022,Children and Families,Social Care,Agency Payments,Independent Fostering Agencies,509,02/09/2022,2209-00374,0.00,3534.00,R,Adolescent And Childrens Trust,No
Http://opendatacommunities.org/id/metropolitan-district-council/leeds,Leeds City Council,31/10/2022,Adults and Health,Services For Adults Under 65 Mental/Dis,Agency Payments,Home Care,568,07/09/2022,2209-00375,0.00,410.25,R,Adopt Healthcare,No
Http://opendatacommunities.org/id/metropolitan-district-council/leeds,Leeds City Council,31/10/2022,Adults and Health,Services For Adults Under 65 Mental/Dis,Agency Payments,Home Care,568,07/09/2022,2209-00376,0.00,189.00,R,Adopt Healthcare,No
Http://opendatacommunities.org/id/metropolitan-district-council/leeds,Leeds City Council,31/10/2022,Adults and Health,Services For Adults Under 65 Mental/Dis,Agency Payments,Home Care,568,07/09/2022,2209-00377,0.00,66.00,R,Adopt Healthcare,No
Http://opendatacommunities.org/id/metropolitan-district-council/leeds,Leeds City Council,31/10/2022,Adults and Health,Services For Adults Under 65 Mental/Dis,Agency Payments,Home Care,568,07/09/2022,2209-00378,0.00,148.50,R,Adopt Healthcare,No
Http://opendatacommunities.org/id/metropolitan-district-council/leeds,Leeds City Council,31/10/2022,Adults and Health,Services For Adults Under 65 Mental/Dis,Agency Payments,Home Care,568,14/09/2022,2209-00379,0.00,410.25,R,Adopt Healthcare,No
Http://opendatacommunities.org/id/metropolitan-district-council/leeds,Leeds City Council,31/10/2022,Adults and Health,Services For Adults Under 65 Mental/Dis,Agency Payments,Home Care,568,14/09/2022,2209-00380,0.00,189.00,R,Adopt Healthcare,No
Http://opendatacommunities.org/id/metropolitan-district-council/leeds,Leeds City Council,31/10/2022,Adults and Health,Services For Adults Under 65 Mental/Dis,Agency Payments,Home Care,568,14/09/2022,2209-00381,0.00,148.50,R,Adopt Healthcare,No
Http://opendatacommunities.org/id/metropolitan-district-council/leeds,Leeds City Council,31/10/2022,Adults and Health,Services For Adults Under 65 Mental/Dis,Agency Payments,Home Care,568,21/09/2022,2209-00382,0.00,410.25,R,Adopt Healthcare,No
Http://opendatacommunities.org/id/metropolitan-district-council/leeds,Leeds City Council,31/10/2022,Adults and Health,Services For Adults Under 65 Mental/Dis,Agency Payments,Home Care,568,21/09/2022,2209-00383,0.00,189.00,R,Adopt Healthcare,No
Http://opendatacommunities.org/id/metropolitan-district-council/leeds,Leeds City Council,31/10/2022,Adults and Health,Services For Adults Under 65 Mental/Dis,Agency Payments,Home Care,568,21/09/2022,2209-00384,0.00,148.50,R,Adopt Healthcare,No
Http://opendatacommunities.org/id/metropolitan-district-council/leeds,Leeds City Council,31/10/2022,Adults and Health,Services For Adults Under 65 Mental/Dis,Agency Payments,Home Care,568,29/09/2022,2209-00385,0.00,410.25,R,Adopt Healthcare,No
Http://opendatacommunities.org/id/metropolitan-district-council/leeds,Leeds City Council,31/10/2022,Adults and Health,Services For Adults Under 65 Mental/Dis,Agency Payments,Home Care,568,29/09/2022,2209-00386,0.00,189.00,R,Adopt Healthcare,No
Http://opendatacommunities.org/id/metropolitan-district-council/leeds,Leeds City Council,31/10/2022,Adults and Health,Services For Adults Under 65 Mental/Dis,Agency Payments,Home Care,568,29/09/2022,2209-00387,0.00,148.50,R,Adopt Healthcare,No
Http://opendatacommunities.org/id/metropolitan-district-council/leeds,Leeds City Council,31/10/2022,Children and Families,Social Care,Agency Payments,Placement Support,550,09/09/2022,2209-00388,0.00,76.67,R,REDACTED PERSONAL DATA,No
Http://opendatacommunities.org/id/metropolitan-district-council/leeds,Leeds City Council,31/10/2022,Children and Families,Social Care,Agency Payments,Placement Support,550,09/09/2022,2209-00389,0.00,21.15,R,REDACTED PERSONAL DATA,No
Http://opendatacommunities.org/id/metropolitan-district-council/leeds,Leeds City Council,31/10/2022,Children and Families,Social Care,Agency Payments,Placement Support,550,16/09/2022,2209-00390,0.00,21.15,R,REDACTED PERSONAL DATA,No
Http://opendatacommunities.org/id/metropolitan-district-council/leeds,Leeds City Council,31/10/2022,Children and Families,Social Care,Agency Payments,Placement Support,550,23/09/2022,2209-00391,0.00,21.15,R,REDACTED PERSONAL DATA,No
Http://opendatacommunities.org/id/metropolitan-district-council/leeds,Leeds City Council,31/10/2022,Children and Families,Social Care,Agency Payments,Placement Support,550,30/09/2022,2209-00392,0.00,21.15,R,REDACTED PERSONAL DATA,No
Http://opendatacommunities.org/id/metropolitan-district-council/leeds,Leeds City Council as Accountable Body,31/10/2022,Social Services Pooled Budgets,Jcs For People With Learning Disabilitie,Agency Payments,Residential,580,14/09/2022,2209-00393,0.00,2609.36,R,ADRIAN HOUSE,No
Http://opendatacommunities.org/id/metropolitan-district-council/leeds,Leeds City Council,31/10/2022,City Development,Libraries Arts & Heritage,Supplies and Services,External Audit Fees,261,13/09/2022,2209-00394,0.00,100.00,R,ADVANCE STOCKS LTD,No
Http://opendatacommunities.org/id/metropolitan-district-council/leeds,Leeds City Council,31/10/2022,Children and Families,Social Care,Internal Recharges,Legal Disbursements,411,14/09/2022,2209-00395,0.00,153.50,R,ADVANCED CHILD CARE ASSESSMENTS LTD,No
Http://opendatacommunities.org/id/metropolitan-district-council/leeds,Leeds City Council,31/10/2022,Adults and Health,Services For Adults Under 65 Learn/Dis,Agency Payments,Home Care,568,07/09/2022,2209-00396,0.00,573.72,R,Advanced Medcare Ltd,No
Http://opendatacommunities.org/id/metropolitan-district-council/leeds,Leeds City Council,31/10/2022,Adults and Health,Services For Older People - 65 And Over,Agency Payments,Home Care,568,07/09/2022,2209-00397,0.00,27272.32,R,Advanced Medcare Ltd,No
Http://opendatacommunities.org/id/metropolitan-district-council/leeds,Leeds City Council,31/10/2022,Adults and Health,Services For Older People - 65 And Over,Agency Payments,HCAIT Community Support,575,07/09/2022,2209-00398,0.00,1393.32,R,Advanced Medcare Ltd,No
Http://opendatacommunities.org/id/metropolitan-district-council/leeds,Leeds City Council,31/10/2022,Adults and Health,Services For Older People - 65 And Over,Agency Payments,HCAIT Other,577,07/09/2022,2209-00399,0.00,1311.36,R,Advanced Medcare Ltd,No
Http://opendatacommunities.org/id/metropolitan-district-council/leeds,Leeds City Council,31/10/2022,Adults and Health,Services For Older People Under 65 P/Dis,Agency Payments,Home Care,568,07/09/2022,2209-00400,0.00,1639.20,R,Advanced Medcare Ltd,No
Http://opendatacommunities.org/id/metropolitan-district-council/leeds,Leeds City Council as Accountable Body,31/10/2022,Social Services Pooled Budgets,Jcs For People With Learning Disabilitie,Agency Payments,Home Care,568,07/09/2022,2209-00401,0.00,1311.36,R,Advanced Medcare Ltd,No
Http://opendatacommunities.org/id/metropolitan-district-council/leeds,Leeds City Council,31/10/2022,Adults and Health,Assessment And Care Management,Agency Payments,Home Care,568,14/09/2022,2209-00402,0.00,286.86,R,Advanced Medcare Ltd,No
Http://opendatacommunities.org/id/metropolitan-district-council/leeds,Leeds City Council,31/10/2022,Adults and Health,Services For Adults Under 65 Learn/Dis,Agency Payments,Home Care,568,14/09/2022,2209-00403,0.00,573.72,R,Advanced Medcare Ltd,No
Http://opendatacommunities.org/id/metropolitan-district-council/leeds,Leeds City Council,31/10/2022,Adults and Health,Services For Older People - 65 And Over,Agency Payments,Home Care,568,14/09/2022,2209-00404,0.00,21197.00,R,Advanced Medcare Ltd,No
Http://opendatacommunities.org/id/metropolitan-district-council/leeds,Leeds City Council,31/10/2022,Adults and Health,Services For Older People - 65 And Over,Agency Payments,HCAIT Community Support,575,14/09/2022,2209-00405,0.00,1147.44,R,Advanced Medcare Ltd,No
Http://opendatacommunities.org/id/metropolitan-district-council/leeds,Leeds City Council,31/10/2022,Adults and Health,Services For Older People - 65 And Over,Agency Payments,HCAIT Other,577,14/09/2022,2209-00406,0.00,655.68,R,Advanced Medcare Ltd,No
Http://opendatacommunities.org/id/metropolitan-district-council/leeds,Leeds City Council,31/10/2022,Adults and Health,Services For Older People Under 65 P/Dis,Agency Payments,Home Care,568,14/09/2022,2209-00407,0.00,1639.20,R,Advanced Medcare Ltd,No
Http://opendatacommunities.org/id/metropolitan-district-council/leeds,Leeds City Council as Accountable Body,31/10/2022,Social Services Pooled Budgets,Jcs For People With Learning Disabilitie,Agency Payments,Home Care,568,14/09/2022,2209-00408,0.00,1311.36,R,Advanced Medcare Ltd,No
Http://opendatacommunities.org/id/metropolitan-district-council/leeds,Leeds City Council as Accountable Body,31/10/2022,Social Services Pooled Budgets,Jcs For People With Learning Disabilitie,Agency Payments,Home Care,568,02/09/2022,2209-00409,0.00,8194.25,R,Advantage Healthcare Ltd,No
Http://opendatacommunities.org/id/metropolitan-district-council/leeds,Leeds City Council,31/10/2022,Resources,Technology ,Employees,Agency Staff,8,23/08/2022,2209-00410,0.00,15.18,R,Advertising Charges To Au,Yes
Http://opendatacommunities.org/id/metropolitan-district-council/leeds,Leeds City Council,31/10/2022,City Development,Recreation ,Employees,Agency Staff,8,01/09/2022,2209-00411,0.00,48.00,R,Advertising Charges To Ju,Yes
Http://opendatacommunities.org/id/metropolitan-district-council/leeds,Leeds City Council,31/10/2022,Resources,Technology ,Employees,Agency Staff,8,01/09/2022,2209-00412,0.00,38.13,R,Advertising Charges To Se,Yes
Http://opendatacommunities.org/id/metropolitan-district-council/leeds,Leeds City Council as Accountable Body,31/10/2022,Social Services Pooled Budgets,Jcs For People With Learning Disabilitie,Supplies and Services,Other Hired And Contracted Services,265,22/09/2022,2209-00413,0.00,155.10,R,Advonet,No
Http://opendatacommunities.org/id/metropolitan-district-council/leeds,Leeds City Council as Accountable Body,31/10/2022,Social Services Pooled Budgets,Jcs For People With Learning Disabilitie,Supplies and Services,Other Hired And Contracted Services,265,22/09/2022,2209-00414,0.00,267.60,R,Advonet,No
Http://opendatacommunities.org/id/metropolitan-district-council/leeds,Leeds City Council as Accountable Body,31/10/2022,Social Services Pooled Budgets,Jcs For People With Learning Disabilitie,Supplies and Services,Other Hired And Contracted Services,265,22/09/2022,2209-00415,0.00,112.50,R,Advonet,No
Http://opendatacommunities.org/id/metropolitan-district-council/leeds,Leeds City Council as Accountable Body,31/10/2022,Social Services Pooled Budgets,Jcs For People With Learning Disabilitie,Supplies and Services,Other Hired And Contracted Services,265,22/09/2022,2209-00416,0.00,142.80,R,Advonet,No
Http://opendatacommunities.org/id/metropolitan-district-council/leeds,Leeds City Council as Accountable Body,31/10/2022,Social Services Pooled Budgets,Jcs For People With Learning Disabilitie,Supplies and Services,Other Hired And Contracted Services,265,22/09/2022,2209-00417,0.00,84.90,R,Advonet,No
Http://opendatacommunities.org/id/metropolitan-district-council/leeds,Leeds City Council as Accountable Body,31/10/2022,Social Services Pooled Budgets,Jcs For People With Learning Disabilitie,Supplies and Services,Other Hired And Contracted Services,265,22/09/2022,2209-00418,0.00,108.45,R,Advonet,No
Http://opendatacommunities.org/id/metropolitan-district-council/leeds,Leeds City Council,31/10/2022,Adults and Health,Services For Adults Under 65 Mental/Dis,Agency Payments,Home Care,568,22/09/2022,2209-00419,0.00,159.90,R,Advonet,No
Http://opendatacommunities.org/id/metropolitan-district-council/leeds,Leeds City Council,31/10/2022,Adults and Health,Services For Adults Under 65 Mental/Dis,Agency Payments,Fees - Level 4,520,27/09/2022,2209-00420,0.00,236.12,R,AE BIA Assessments Limited,No
Http://opendatacommunities.org/id/metropolitan-district-council/leeds,Leeds City Council,31/10/2022,Adults and Health,Services For Adults Under 65 Mental/Dis,Agency Payments,Fees - Level 4,520,30/09/2022,2209-00421,0.00,242.14,R,AE BIA Assessments Limited,No
Http://opendatacommunities.org/id/metropolitan-district-council/leeds,Leeds City Council,31/10/2022,City Development,Highways,Supplies and Services,Other Hired And Contracted Services,265,02/09/2022,2209-00422,0.00,5215.83,R,Aecom Limited,No
Http://opendatacommunities.org/id/metropolitan-district-council/leeds,Leeds City Council,31/10/2022,City Development,Highways,Capital,OTHER COSTS,7,21/09/2022,2209-00423,0.00,19254.63,C,Aecom Limited,No
Http://opendatacommunities.org/id/metropolitan-district-council/leeds,Leeds City Council,31/10/2022,Adults and Health,Assessment And Care Management,Agency Payments,Home Care,568,01/09/2022,2209-00424,0.00,122.94,R,Aegis Care Solutions Ltd,No
Http://opendatacommunities.org/id/metropolitan-district-council/leeds,Leeds City Council,31/10/2022,Adults and Health,Services For Older People - 65 And Over,Agency Payments,Home Care,568,01/09/2022,2209-00425,0.00,48004.50,R,Aegis Care Solutions Ltd,No
Http://opendatacommunities.org/id/metropolitan-district-council/leeds,Leeds City Council,31/10/2022,Adults and Health,Services For Older People - 65 And Over,Agency Payments,HCAIT Community Support,575,01/09/2022,2209-00426,0.00,81.83,R,Aegis Care Solutions Ltd,No
Http://opendatacommunities.org/id/metropolitan-district-council/leeds,Leeds City Council,31/10/2022,Adults and Health,Services For Older People - 65 And Over,Agency Payments,HCAIT Other,577,01/09/2022,2209-00427,0.00,2662.04,R,Aegis Care Solutions Ltd,No
Http://opendatacommunities.org/id/metropolitan-district-council/leeds,Leeds City Council,31/10/2022,Adults and Health,Services For Older People Under 65 P/Dis,Agency Payments,Home Care,568,01/09/2022,2209-00428,0.00,8167.47,R,Aegis Care Solutions Ltd,No
Http://opendatacommunities.org/id/metropolitan-district-council/leeds,Leeds City Council as Accountable Body,31/10/2022,Social Services Pooled Budgets,Jcs For People With Learning Disabilitie,Agency Payments,Home Care,568,01/09/2022,2209-00429,0.00,3278.40,R,Aegis Care Solutions Ltd,No
Http://opendatacommunities.org/id/metropolitan-district-council/leeds,Leeds City Council,31/10/2022,Adults and Health,Services For Older People - 65 And Over,Agency Payments,Home Care,568,01/09/2022,2209-00430,0.00,235.64,R,Aegis Care Solutions Ltd,No
Http://opendatacommunities.org/id/metropolitan-district-council/leeds,Leeds City Council,31/10/2022,Adults and Health,Services For Older People - 65 And Over,Agency Payments,Home Care,568,21/09/2022,2209-00431,0.00,262.32,R,Aegis Care Solutions Ltd,No
Http://opendatacommunities.org/id/metropolitan-district-council/leeds,Leeds City Council,31/10/2022,Adults and Health,Services For Older People - 65 And Over,Agency Payments,Home Care,568,22/09/2022,2209-00432,0.00,46822.82,R,Aegis Care Solutions Ltd,No
Http://opendatacommunities.org/id/metropolitan-district-council/leeds,Leeds City Council,31/10/2022,Adults and Health,Services For Older People - 65 And Over,Agency Payments,HCAIT Community Support,575,22/09/2022,2209-00433,0.00,507.72,R,Aegis Care Solutions Ltd,No
Http://opendatacommunities.org/id/metropolitan-district-council/leeds,Leeds City Council,31/10/2022,Adults and Health,Services For Older People - 65 And Over,Agency Payments,HCAIT Other,577,22/09/2022,2209-00434,0.00,3316.64,R,Aegis Care Solutions Ltd,No
Http://opendatacommunities.org/id/metropolitan-district-council/leeds,Leeds City Council,31/10/2022,Adults and Health,Services For Older People Under 65 P/Dis,Agency Payments,Home Care,568,22/09/2022,2209-00435,0.00,10334.80,R,Aegis Care Solutions Ltd,No
Http://opendatacommunities.org/id/metropolitan-district-council/leeds,Leeds City Council as Accountable Body,31/10/2022,Social Services Pooled Budgets,Jcs For People With Learning Disabilitie,Agency Payments,Home Care,568,22/09/2022,2209-00436,0.00,3278.40,R,Aegis Care Solutions Ltd,No
Http://opendatacommunities.org/id/metropolitan-district-council/leeds,Leeds City Council,31/10/2022,Adults and Health,Services For Older People - 65 And Over,Agency Payments,Home Care,568,28/09/2022,2209-00437,0.00,48763.79,R,Aegis Care Solutions Ltd,No
Http://opendatacommunities.org/id/metropolitan-district-council/leeds,Leeds City Council,31/10/2022,Adults and Health,Services For Older People - 65 And Over,Agency Payments,HCAIT Community Support,575,28/09/2022,2209-00438,0.00,589.68,R,Aegis Care Solutions Ltd,No
Http://opendatacommunities.org/id/metropolitan-district-council/leeds,Leeds City Council,31/10/2022,Adults and Health,Services For Older People - 65 And Over,Agency Payments,HCAIT Other,577,28/09/2022,2209-00439,0.00,4246.29,R,Aegis Care Solutions Ltd,No
Http://opendatacommunities.org/id/metropolitan-district-council/leeds,Leeds City Council,31/10/2022,Adults and Health,Services For Older People Under 65 P/Dis,Agency Payments,Home Care,568,28/09/2022,2209-00440,0.00,9078.29,R,Aegis Care Solutions Ltd,No
Http://opendatacommunities.org/id/metropolitan-district-council/leeds,Leeds City Council as Accountable Body,31/10/2022,Social Services Pooled Budgets,Jcs For People With Learning Disabilitie,Agency Payments,Home Care,568,28/09/2022,2209-00441,0.00,3278.40,R,Aegis Care Solutions Ltd,No
Http://opendatacommunities.org/id/metropolitan-district-council/leeds,Leeds City Council,31/10/2022,Adults and Health,Services For Older People - 65 And Over,Agency Payments,Home Care,568,28/09/2022,2209-00442,0.00,-0.02,R,Aegis Care Solutions Ltd,No
Http://opendatacommunities.org/id/metropolitan-district-council/leeds,Leeds City Council,31/10/2022,Adults and Health,Services For Older People - 65 And Over,Agency Payments,HCAIT Other,577,28/09/2022,2209-00443,0.00,1331.87,R,Aegis Care Solutions Ltd,No
Http://opendatacommunities.org/id/metropolitan-district-council/leeds,Leeds City Council,31/10/2022,Adults and Health,Services For Adults Under 65 Mental/Dis,Agency Payments,Home Care,568,30/09/2022,2209-00444,0.00,732.80,R,Aegis Care Solutions Ltd,No
Http://opendatacommunities.org/id/metropolitan-district-council/leeds,Leeds City Council,31/10/2022,Adults and Health,Services For Adults Under 65 Mental/Dis,Agency Payments,Home Care,568,30/09/2022,2209-00445,0.00,1416.40,R,Aegis Care Solutions Ltd,No
Http://opendatacommunities.org/id/metropolitan-district-council/leeds,Leeds City Council,31/10/2022,Adults and Health,Services For Adults Under 65 Mental/Dis,Agency Payments,Home Care,568,30/09/2022,2209-00446,0.00,475.20,R,Aegis Care Solutions Ltd,No
Http://opendatacommunities.org/id/metropolitan-district-council/leeds,Leeds City Council,31/10/2022,Adults and Health,Services For Adults Under 65 Mental/Dis,Agency Payments,Home Care,568,30/09/2022,2209-00447,0.00,1215.90,R,Aegis Care Solutions Ltd,No
Http://opendatacommunities.org/id/metropolitan-district-council/leeds,Leeds City Council,31/10/2022,Adults and Health,Services For Adults Under 65 Mental/Dis,Agency Payments,Home Care,568,30/09/2022,2209-00448,0.00,4542.40,R,Aegis Care Solutions Ltd,No
Http://opendatacommunities.org/id/metropolitan-district-council/leeds,Leeds City Council,31/10/2022,Adults and Health,Services For Adults Under 65 Mental/Dis,Agency Payments,Home Care,568,30/09/2022,2209-00449,0.00,1303.50,R,Aegis Care Solutions Ltd,No
Http://opendatacommunities.org/id/metropolitan-district-council/leeds,Leeds City Council,31/10/2022,Adults and Health,Services For Adults Under 65 Mental/Dis,Agency Payments,Home Care,568,30/09/2022,2209-00450,0.00,1417.20,R,Aegis Care Solutions Ltd,No
Http://opendatacommunities.org/id/metropolitan-district-council/leeds,Leeds City Council,31/10/2022,Adults and Health,Services For Adults Under 65 Mental/Dis,Agency Payments,Home Care,568,30/09/2022,2209-00451,0.00,1303.50,R,Aegis Care Solutions Ltd,No
Http://opendatacommunities.org/id/metropolitan-district-council/leeds,Leeds City Council,31/10/2022,Adults and Health,Services For Adults Under 65 Mental/Dis,Agency Payments,Home Care,568,30/09/2022,2209-00452,0.00,1694.18,R,Aegis Care Solutions Ltd,No
Http://opendatacommunities.org/id/metropolitan-district-council/leeds,Leeds City Council,31/10/2022,Adults and Health,Services For Adults Under 65 Mental/Dis,Agency Payments,Home Care,568,30/09/2022,2209-00453,0.00,1415.30,R,Aegis Care Solutions Ltd,No
Http://opendatacommunities.org/id/metropolitan-district-council/leeds,Leeds City Council,31/10/2022,Adults and Health,Services For Adults Under 65 Mental/Dis,Agency Payments,Home Care,568,30/09/2022,2209-00454,0.00,1135.60,R,Aegis Care Solutions Ltd,No
Http://opendatacommunities.org/id/metropolitan-district-council/leeds,Leeds City Council,31/10/2022,Adults and Health,Services For Adults Under 65 Mental/Dis,Agency Payments,Home Care,568,30/09/2022,2209-00455,0.00,320.40,R,Aegis Care Solutions Ltd,No
Http://opendatacommunities.org/id/metropolitan-district-council/leeds,Leeds City Council as Accountable Body,31/10/2022,Social Services Pooled Budgets,Jcs For People With Learning Disabilitie,Agency Payments,Day Centre,564,21/09/2022,2209-00456,0.00,13783.98,R,Affinity Trust,No
Http://opendatacommunities.org/id/metropolitan-district-council/leeds,Leeds City Council,31/10/2022,Adults and Health,Services For Adults Under 65 Mental/Dis,Agency Payments,Home Care,568,21/09/2022,2209-00457,0.00,141.92,R,Affinity Trust,No
Http://opendatacommunities.org/id/metropolitan-district-council/leeds,Leeds City Council,31/10/2022,Adults and Health,Assessment And Care Management,Agency Payments,Home Care,568,21/09/2022,2209-00458,0.00,674.12,R,Affinity Trust,No
Http://opendatacommunities.org/id/metropolitan-district-council/leeds,Leeds City Council,31/10/2022,Adults and Health,Services For Older People - 65 And Over,Agency Payments,Home Care,568,21/09/2022,2209-00459,0.00,567.68,R,Affinity Trust,No
Http://opendatacommunities.org/id/metropolitan-district-council/leeds,Leeds City Council as Accountable Body,31/10/2022,Social Services Pooled Budgets,Jcs For People With Learning Disabilitie,Agency Payments,Day Centre,564,23/09/2022,2209-00460,0.00,3335.12,R,Affinity Trust,No
Http://opendatacommunities.org/id/metropolitan-district-council/leeds,Leeds City Council as Accountable Body,31/10/2022,Social Services Pooled Budgets,Jcs For People With Learning Disabilitie,Agency Payments,Sheltered Accommodation,569,14/09/2022,2209-00461,0.00,108234.49,R,Affinity Trust North Divisional Office,No
Http://opendatacommunities.org/id/metropolitan-district-council/leeds,Leeds City Council,31/10/2022,Communities Housing and Environment,Parks and Countryside ,Supplies and Services,Other Hired And Contracted Services,265,10/08/2022,2209-00462,0.00,1230.00,R,Afi Uplift,Yes
Http://opendatacommunities.org/id/metropolitan-district-council/leeds,Leeds City Council,31/10/2022,Communities Housing and Environment,Parks and Countryside ,Supplies and Services,Other Hired And Contracted Services,265,10/08/2022,2209-00463,0.00,-330.00,R,Afi Uplift,Yes
Http://opendatacommunities.org/id/metropolitan-district-council/leeds,Leeds City Council,31/10/2022,Communities Housing and Environment,Parks and Countryside ,Transport,Hire Of Movable Plant & Machinery,315,22/08/2022,2209-00464,0.00,4750.00,R,Afi Uplift,Yes
Http://opendatacommunities.org/id/metropolitan-district-council/leeds,Leeds City Council,31/10/2022,Communities Housing and Environment,Parks and Countryside ,Transport,Hire Of Movable Plant & Machinery,315,22/09/2022,2209-00465,0.00,3800.00,R,Afi Uplift,Yes
Http://opendatacommunities.org/id/metropolitan-district-council/leeds,Leeds City Council,31/10/2022,Children and Families,Social Care,Agency Payments,Placement Support,550,14/09/2022,2209-00466,0.00,2760.00,R,AFRUCA - Safeguarding Children,No
Http://opendatacommunities.org/id/metropolitan-district-council/leeds,Leeds City Council,31/10/2022,Resources,Commercial Services,Supplies and Services,Other Hired And Contracted Services,265,07/09/2022,2209-00467,0.00,728.00,R,REDACTED PERSONAL DATA,No
Http://opendatacommunities.org/id/metropolitan-district-council/leeds,Leeds City Council,31/10/2022,Communities Housing and Environment,Communities,Supplies and Services,Other Hired And Contracted Services,265,09/09/2022,2209-00468,0.00,100.00,R,Age Uk Leeds,No
Http://opendatacommunities.org/id/metropolitan-district-council/leeds,Leeds City Council,31/10/2022,Communities Housing and Environment,Communities,Supplies and Services,Other Hired And Contracted Services,265,28/09/2022,2209-00469,0.00,100.00,R,Age Uk Leeds,No
Http://opendatacommunities.org/id/metropolitan-district-council/leeds,Leeds City Council,31/10/2022,Adults and Health,Services For Older People - 65 And Over,Agency Payments,Payments To Voluntary Organisations,561,30/09/2022,2209-00470,0.00,9539.75,R,Age Uk Leeds,No
Http://opendatacommunities.org/id/metropolitan-district-council/leeds,Leeds City Council,31/10/2022,City Development,Highways,Capital,CONSTRUCTION,3,02/09/2022,2209-00471,0.00,223100.00,C,AGGREGATE INDUSTRIES UK LTD,No
Http://opendatacommunities.org/id/metropolitan-district-council/leeds,Leeds City Council,31/10/2022,City Development,Highways,Supplies and Services,Operational Materials,205,16/09/2022,2209-00472,0.00,3068.96,R,AGGREGATE INDUSTRIES UK LTD,No
Http://opendatacommunities.org/id/metropolitan-district-council/leeds,Leeds City Council,31/10/2022,City Development,Highways,Supplies and Services,Operational Materials,205,16/09/2022,2209-00473,0.00,1448.06,R,AGGREGATE INDUSTRIES UK LTD,No
Http://opendatacommunities.org/id/metropolitan-district-council/leeds,Leeds City Council,31/10/2022,City Development,Highways,Supplies and Services,Operational Materials,205,16/09/2022,2209-00474,0.00,1391.70,R,AGGREGATE INDUSTRIES UK LTD,No
Http://opendatacommunities.org/id/metropolitan-district-council/leeds,Leeds City Council,31/10/2022,City Development,Highways,Supplies and Services,Operational Materials,205,16/09/2022,2209-00475,0.00,827.42,R,AGGREGATE INDUSTRIES UK LTD,No
Http://opendatacommunities.org/id/metropolitan-district-council/leeds,Leeds City Council,31/10/2022,City Development,Highways,Supplies and Services,Operational Materials,205,16/09/2022,2209-00476,0.00,1178.32,R,AGGREGATE INDUSTRIES UK LTD,No
Http://opendatacommunities.org/id/metropolitan-district-council/leeds,Leeds City Council,31/10/2022,City Development,Highways,Supplies and Services,Operational Materials,205,16/09/2022,2209-00477,0.00,812.74,R,AGGREGATE INDUSTRIES UK LTD,No
Http://opendatacommunities.org/id/metropolitan-district-council/leeds,Leeds City Council,31/10/2022,City Development,Highways,Supplies and Services,Operational Materials,205,16/09/2022,2209-00478,0.00,1438.77,R,AGGREGATE INDUSTRIES UK LTD,No
Http://opendatacommunities.org/id/metropolitan-district-council/leeds,Leeds City Council,31/10/2022,City Development,Highways,Supplies and Services,Operational Materials,205,16/09/2022,2209-00479,0.00,4150.42,R,AGGREGATE INDUSTRIES UK LTD,No
Http://opendatacommunities.org/id/metropolitan-district-council/leeds,Leeds City Council,31/10/2022,City Development,Highways,Supplies and Services,Operational Materials,205,16/09/2022,2209-00480,0.00,35.04,R,AGGREGATE INDUSTRIES UK LTD,No
Http://opendatacommunities.org/id/metropolitan-district-council/leeds,Leeds City Council,31/10/2022,City Development,Highways,Supplies and Services,Operational Materials,205,16/09/2022,2209-00481,0.00,1517.22,R,AGGREGATE INDUSTRIES UK LTD,No
Http://opendatacommunities.org/id/metropolitan-district-council/leeds,Leeds City Council,31/10/2022,City Development,Highways,Supplies and Services,Operational Materials,205,16/09/2022,2209-00482,0.00,3818.95,R,AGGREGATE INDUSTRIES UK LTD,No
Http://opendatacommunities.org/id/metropolitan-district-council/leeds,Leeds City Council,31/10/2022,City Development,Highways,Supplies and Services,Operational Materials,205,16/09/2022,2209-00483,0.00,175.00,R,AGGREGATE INDUSTRIES UK LTD,No
Http://opendatacommunities.org/id/metropolitan-district-council/leeds,Leeds City Council,31/10/2022,City Development,Highways,Supplies and Services,Operational Materials,205,16/09/2022,2209-00484,0.00,150.00,R,AGGREGATE INDUSTRIES UK LTD,No
Http://opendatacommunities.org/id/metropolitan-district-council/leeds,Leeds City Council,31/10/2022,City Development,Highways,Supplies and Services,Operational Materials,205,16/09/2022,2209-00485,0.00,75.00,R,AGGREGATE INDUSTRIES UK LTD,No
Http://opendatacommunities.org/id/metropolitan-district-council/leeds,Leeds City Council,31/10/2022,City Development,Highways,Supplies and Services,Operational Materials,205,16/09/2022,2209-00486,0.00,3293.23,R,AGGREGATE INDUSTRIES UK LTD,No
Http://opendatacommunities.org/id/metropolitan-district-council/leeds,Leeds City Council,31/10/2022,City Development,Highways,Supplies and Services,Operational Materials,205,16/09/2022,2209-00487,0.00,5106.33,R,AGGREGATE INDUSTRIES UK LTD,No
Http://opendatacommunities.org/id/metropolitan-district-council/leeds,Leeds City Council,31/10/2022,City Development,Highways,Supplies and Services,Operational Materials,205,16/09/2022,2209-00488,0.00,1369.65,R,AGGREGATE INDUSTRIES UK LTD,No
Http://opendatacommunities.org/id/metropolitan-district-council/leeds,Leeds City Council,31/10/2022,City Development,Highways,Supplies and Services,Operational Materials,205,16/09/2022,2209-00489,0.00,928.94,R,AGGREGATE INDUSTRIES UK LTD,No
Http://opendatacommunities.org/id/metropolitan-district-council/leeds,Leeds City Council,31/10/2022,City Development,Highways,Supplies and Services,Operational Materials,205,16/09/2022,2209-00490,0.00,1432.11,R,AGGREGATE INDUSTRIES UK LTD,No
Http://opendatacommunities.org/id/metropolitan-district-council/leeds,Leeds City Council,31/10/2022,City Development,Highways,Supplies and Services,Operational Materials,205,16/09/2022,2209-00491,0.00,98.80,R,AGGREGATE INDUSTRIES UK LTD,No
Http://opendatacommunities.org/id/metropolitan-district-council/leeds,Leeds City Council,31/10/2022,City Development,Highways,Supplies and Services,Operational Materials,205,16/09/2022,2209-00492,0.00,1167.68,R,AGGREGATE INDUSTRIES UK LTD,No
Http://opendatacommunities.org/id/metropolitan-district-council/leeds,Leeds City Council,31/10/2022,City Development,Highways,Supplies and Services,Operational Materials,205,16/09/2022,2209-00493,0.00,882.79,R,AGGREGATE INDUSTRIES UK LTD,No
Http://opendatacommunities.org/id/metropolitan-district-council/leeds,Leeds City Council,31/10/2022,City Development,Highways,Supplies and Services,Operational Materials,205,16/09/2022,2209-00494,0.00,4025.72,R,AGGREGATE INDUSTRIES UK LTD,No
Http://opendatacommunities.org/id/metropolitan-district-council/leeds,Leeds City Council,31/10/2022,City Development,Highways,Supplies and Services,Operational Materials,205,16/09/2022,2209-00495,0.00,3565.54,R,AGGREGATE INDUSTRIES UK LTD,No
Http://opendatacommunities.org/id/metropolitan-district-council/leeds,Leeds City Council,31/10/2022,City Development,Highways,Supplies and Services,Operational Materials,205,23/09/2022,2209-00496,0.00,39.84,R,AGGREGATE INDUSTRIES UK LTD,No
Http://opendatacommunities.org/id/metropolitan-district-council/leeds,Leeds City Council,31/10/2022,City Development,Highways,Supplies and Services,Operational Materials,205,23/09/2022,2209-00497,0.00,25.00,R,AGGREGATE INDUSTRIES UK LTD,No
Http://opendatacommunities.org/id/metropolitan-district-council/leeds,Leeds City Council,31/10/2022,City Development,Highways,Supplies and Services,Operational Materials,205,23/09/2022,2209-00498,0.00,1489.26,R,AGGREGATE INDUSTRIES UK LTD,No
Http://opendatacommunities.org/id/metropolitan-district-council/leeds,Leeds City Council,31/10/2022,City Development,Highways,Supplies and Services,Operational Materials,205,23/09/2022,2209-00499,0.00,1678.76,R,AGGREGATE INDUSTRIES UK LTD,No
Http://opendatacommunities.org/id/metropolitan-district-council/leeds,Leeds City Council,31/10/2022,City Development,Highways,Supplies and Services,Operational Materials,205,23/09/2022,2209-00500,0.00,50.40,R,AGGREGATE INDUSTRIES UK LTD,No
Http://opendatacommunities.org/id/metropolitan-district-council/leeds,Leeds City Council,31/10/2022,City Development,Highways,Supplies and Services,Operational Materials,205,23/09/2022,2209-00501,0.00,839.38,R,AGGREGATE INDUSTRIES UK LTD,No
Http://opendatacommunities.org/id/metropolitan-district-council/leeds,Leeds City Council,31/10/2022,City Development,Highways,Supplies and Services,Operational Materials,205,23/09/2022,2209-00502,0.00,2261.16,R,AGGREGATE INDUSTRIES UK LTD,No
Http://opendatacommunities.org/id/metropolitan-district-council/leeds,Leeds City Council,31/10/2022,City Development,Highways,Supplies and Services,Operational Materials,205,23/09/2022,2209-00503,0.00,1485.40,R,AGGREGATE INDUSTRIES UK LTD,No
Http://opendatacommunities.org/id/metropolitan-district-council/leeds,Leeds City Council,31/10/2022,City Development,Highways,Supplies and Services,Operational Materials,205,23/09/2022,2209-00504,0.00,2088.62,R,AGGREGATE INDUSTRIES UK LTD,No
Http://opendatacommunities.org/id/metropolitan-district-council/leeds,Leeds City Council,31/10/2022,City Development,Highways,Supplies and Services,Operational Materials,205,23/09/2022,2209-00505,0.00,1768.27,R,AGGREGATE INDUSTRIES UK LTD,No
Http://opendatacommunities.org/id/metropolitan-district-council/leeds,Leeds City Council,31/10/2022,City Development,Highways,Supplies and Services,Operational Materials,205,23/09/2022,2209-00506,0.00,54.96,R,AGGREGATE INDUSTRIES UK LTD,No
Http://opendatacommunities.org/id/metropolitan-district-council/leeds,Leeds City Council,31/10/2022,City Development,Highways,Supplies and Services,Operational Materials,205,23/09/2022,2209-00507,0.00,4426.36,R,AGGREGATE INDUSTRIES UK LTD,No
Http://opendatacommunities.org/id/metropolitan-district-council/leeds,Leeds City Council,31/10/2022,City Development,Highways,Supplies and Services,Operational Materials,205,23/09/2022,2209-00508,0.00,3828.12,R,AGGREGATE INDUSTRIES UK LTD,No
Http://opendatacommunities.org/id/metropolitan-district-council/leeds,Leeds City Council,31/10/2022,City Development,Highways,Supplies and Services,Operational Materials,205,23/09/2022,2209-00509,0.00,350.00,R,AGGREGATE INDUSTRIES UK LTD,No
Http://opendatacommunities.org/id/metropolitan-district-council/leeds,Leeds City Council,31/10/2022,City Development,Highways,Supplies and Services,Operational Materials,205,23/09/2022,2209-00510,0.00,3003.68,R,AGGREGATE INDUSTRIES UK LTD,No
Http://opendatacommunities.org/id/metropolitan-district-council/leeds,Leeds City Council,31/10/2022,City Development,Highways,Supplies and Services,Operational Materials,205,23/09/2022,2209-00511,0.00,1379.11,R,AGGREGATE INDUSTRIES UK LTD,No
Http://opendatacommunities.org/id/metropolitan-district-council/leeds,Leeds City Council,31/10/2022,City Development,Highways,Supplies and Services,Operational Materials,205,23/09/2022,2209-00512,0.00,50.40,R,AGGREGATE INDUSTRIES UK LTD,No
Http://opendatacommunities.org/id/metropolitan-district-council/leeds,Leeds City Council,31/10/2022,City Development,Highways,Supplies and Services,Operational Materials,205,23/09/2022,2209-00513,0.00,902.55,R,AGGREGATE INDUSTRIES UK LTD,No
Http://opendatacommunities.org/id/metropolitan-district-council/leeds,Leeds City Council,31/10/2022,City Development,Highways,Supplies and Services,Operational Materials,205,23/09/2022,2209-00514,0.00,855.33,R,AGGREGATE INDUSTRIES UK LTD,No
Http://opendatacommunities.org/id/metropolitan-district-council/leeds,Leeds City Council,31/10/2022,City Development,Highways,Supplies and Services,Operational Materials,205,29/09/2022,2209-00515,0.00,2778.25,R,AGGREGATE INDUSTRIES UK LTD,No
Http://opendatacommunities.org/id/metropolitan-district-council/leeds,Leeds City Council,31/10/2022,City Development,Highways,Supplies and Services,Operational Materials,205,29/09/2022,2209-00516,0.00,3729.52,R,AGGREGATE INDUSTRIES UK LTD,No
Http://opendatacommunities.org/id/metropolitan-district-council/leeds,Leeds City Council,31/10/2022,City Development,Highways,Supplies and Services,Operational Materials,205,29/09/2022,2209-00517,0.00,2808.51,R,AGGREGATE INDUSTRIES UK LTD,No
Http://opendatacommunities.org/id/metropolitan-district-council/leeds,Leeds City Council,31/10/2022,City Development,Highways,Supplies and Services,Operational Materials,205,29/09/2022,2209-00518,0.00,2745.75,R,AGGREGATE INDUSTRIES UK LTD,No
Http://opendatacommunities.org/id/metropolitan-district-council/leeds,Leeds City Council,31/10/2022,Communities Housing and Environment,Customer Access,Supplies and Services,Bought In Professional Services,277,01/09/2022,2209-00519,0.00,27.00,R,Agnieszka J Collier,No
Http://opendatacommunities.org/id/metropolitan-district-council/leeds,Leeds City Council,31/10/2022,Communities Housing and Environment,Customer Access,Supplies and Services,Bought In Professional Services,277,01/09/2022,2209-00520,0.00,18.00,R,Agnieszka J Collier,No
Http://opendatacommunities.org/id/metropolitan-district-council/leeds,Leeds City Council,31/10/2022,Communities Housing and Environment,Customer Access,Supplies and Services,Bought In Professional Services,277,01/09/2022,2209-00521,0.00,13.50,R,Agnieszka J Collier,No
Http://opendatacommunities.org/id/metropolitan-district-council/leeds,Leeds City Council,31/10/2022,Communities Housing and Environment,Customer Access,Supplies and Services,Bought In Professional Services,277,01/09/2022,2209-00522,0.00,19.50,R,Agnieszka J Collier,No
Http://opendatacommunities.org/id/metropolitan-district-council/leeds,Leeds City Council,31/10/2022,Communities Housing and Environment,Customer Access,Supplies and Services,Bought In Professional Services,277,01/09/2022,2209-00523,0.00,9.00,R,Agnieszka J Collier,No
Http://opendatacommunities.org/id/metropolitan-district-council/leeds,Leeds City Council,31/10/2022,Communities Housing and Environment,Customer Access,Supplies and Services,Bought In Professional Services,277,01/09/2022,2209-00524,0.00,9.00,R,Agnieszka J Collier,No
Http://opendatacommunities.org/id/metropolitan-district-council/leeds,Leeds City Council,31/10/2022,Communities Housing and Environment,Customer Access,Supplies and Services,Bought In Professional Services,277,01/09/2022,2209-00525,0.00,15.00,R,Agnieszka J Collier,No
Http://opendatacommunities.org/id/metropolitan-district-council/leeds,Leeds City Council,31/10/2022,Communities Housing and Environment,Customer Access,Supplies and Services,Bought In Professional Services,277,01/09/2022,2209-00526,0.00,18.00,R,Agnieszka J Collier,No
Http://opendatacommunities.org/id/metropolitan-district-council/leeds,Leeds City Council,31/10/2022,Communities Housing and Environment,Customer Access,Supplies and Services,Bought In Professional Services,277,08/09/2022,2209-00527,0.00,9.60,R,Agnieszka J Collier,No
Http://opendatacommunities.org/id/metropolitan-district-council/leeds,Leeds City Council,31/10/2022,Communities Housing and Environment,Customer Access,Supplies and Services,Bought In Professional Services,277,08/09/2022,2209-00528,0.00,18.00,R,Agnieszka J Collier,No
Http://opendatacommunities.org/id/metropolitan-district-council/leeds,Leeds City Council,31/10/2022,Communities Housing and Environment,Customer Access,Supplies and Services,Bought In Professional Services,277,08/09/2022,2209-00529,0.00,9.00,R,Agnieszka J Collier,No
Http://opendatacommunities.org/id/metropolitan-district-council/leeds,Leeds City Council,31/10/2022,Communities Housing and Environment,Customer Access,Supplies and Services,Bought In Professional Services,277,08/09/2022,2209-00530,0.00,9.00,R,Agnieszka J Collier,No
Http://opendatacommunities.org/id/metropolitan-district-council/leeds,Leeds City Council,31/10/2022,Communities Housing and Environment,Customer Access,Supplies and Services,Bought In Professional Services,277,08/09/2022,2209-00531,0.00,14.10,R,Agnieszka J Collier,No
Http://opendatacommunities.org/id/metropolitan-district-council/leeds,Leeds City Council,31/10/2022,Communities Housing and Environment,Customer Access,Supplies and Services,Bought In Professional Services,277,08/09/2022,2209-00532,0.00,13.50,R,Agnieszka J Collier,No
Http://opendatacommunities.org/id/metropolitan-district-council/leeds,Leeds City Council,31/10/2022,Communities Housing and Environment,Customer Access,Supplies and Services,Bought In Professional Services,277,08/09/2022,2209-00533,0.00,18.00,R,Agnieszka J Collier,No
Http://opendatacommunities.org/id/metropolitan-district-council/leeds,Leeds City Council,31/10/2022,Communities Housing and Environment,Customer Access,Supplies and Services,Bought In Professional Services,277,14/09/2022,2209-00534,0.00,502.64,R,Agnieszka J Collier,No
Http://opendatacommunities.org/id/metropolitan-district-council/leeds,Leeds City Council,31/10/2022,Communities Housing and Environment,Customer Access,Supplies and Services,Bought In Professional Services,277,14/09/2022,2209-00535,0.00,19.20,R,Agnieszka J Collier,No
Http://opendatacommunities.org/id/metropolitan-district-council/leeds,Leeds City Council,31/10/2022,Communities Housing and Environment,Customer Access,Supplies and Services,Bought In Professional Services,277,14/09/2022,2209-00536,0.00,9.00,R,Agnieszka J Collier,No
Http://opendatacommunities.org/id/metropolitan-district-council/leeds,Leeds City Council,31/10/2022,Communities Housing and Environment,Customer Access,Supplies and Services,Bought In Professional Services,277,14/09/2022,2209-00537,0.00,13.50,R,Agnieszka J Collier,No
Http://opendatacommunities.org/id/metropolitan-district-council/leeds,Leeds City Council,31/10/2022,Communities Housing and Environment,Customer Access,Supplies and Services,Bought In Professional Services,277,14/09/2022,2209-00538,0.00,9.00,R,Agnieszka J Collier,No
Http://opendatacommunities.org/id/metropolitan-district-council/leeds,Leeds City Council,31/10/2022,Communities Housing and Environment,Customer Access,Supplies and Services,Bought In Professional Services,277,22/09/2022,2209-00539,0.00,107.92,R,Agnieszka J Collier,No
Http://opendatacommunities.org/id/metropolitan-district-council/leeds,Leeds City Council,31/10/2022,Communities Housing and Environment,Customer Access,Supplies and Services,Bought In Professional Services,277,22/09/2022,2209-00540,0.00,9.00,R,Agnieszka J Collier,No
Http://opendatacommunities.org/id/metropolitan-district-council/leeds,Leeds City Council,31/10/2022,Communities Housing and Environment,Customer Access,Supplies and Services,Bought In Professional Services,277,22/09/2022,2209-00541,0.00,18.00,R,Agnieszka J Collier,No
Http://opendatacommunities.org/id/metropolitan-district-council/leeds,Leeds City Council,31/10/2022,Communities Housing and Environment,Customer Access,Supplies and Services,Bought In Professional Services,277,22/09/2022,2209-00542,0.00,19.50,R,Agnieszka J Collier,No
Http://opendatacommunities.org/id/metropolitan-district-council/leeds,Leeds City Council,31/10/2022,Communities Housing and Environment,Customer Access,Supplies and Services,Bought In Professional Services,277,22/09/2022,2209-00543,0.00,27.00,R,Agnieszka J Collier,No
Http://opendatacommunities.org/id/metropolitan-district-council/leeds,Leeds City Council,31/10/2022,Communities Housing and Environment,Customer Access,Supplies and Services,Bought In Professional Services,277,22/09/2022,2209-00544,0.00,9.00,R,Agnieszka J Collier,No
Http://opendatacommunities.org/id/metropolitan-district-council/leeds,Leeds City Council,31/10/2022,Communities Housing and Environment,Customer Access,Supplies and Services,Bought In Professional Services,277,28/09/2022,2209-00545,0.00,15.30,R,Agnieszka J Collier,No
Http://opendatacommunities.org/id/metropolitan-district-council/leeds,Leeds City Council,31/10/2022,Communities Housing and Environment,Customer Access,Supplies and Services,Bought In Professional Services,277,14/09/2022,2209-00546,0.00,18.00,R,Ahamat Hassan,No
Http://opendatacommunities.org/id/metropolitan-district-council/leeds,Leeds City Council,31/10/2022,Children and Families,Social Care,Appropriations,Leaving Care Grants,635,30/09/2022,2209-00547,0.00,130.31,R,REDACTED PERSONAL DATA,No
Http://opendatacommunities.org/id/metropolitan-district-council/leeds,Leeds City Council,31/10/2022,Communities Housing and Environment,Customer Access,Supplies and Services,Bought In Professional Services,277,08/09/2022,2209-00548,0.00,18.00,R,Ahmed Moustafa Moustafa Mousa,No
Http://opendatacommunities.org/id/metropolitan-district-council/leeds,Leeds City Council,31/10/2022,Children and Families,Social Care ,Appropriations,Leaving Care Allowances,634,31/08/2022,2209-00549,0.00,37.00,R,Ahs Store Ltd,Yes
Http://opendatacommunities.org/id/metropolitan-district-council/leeds,Leeds City Council as Accountable Body,31/10/2022,Social Services Pooled Budgets,Leeds Community Equip Store Pooled Budgt,Supplies and Services,Other Equipment,203,02/09/2022,2209-00550,0.00,2421.50,R,AIDAPT BATHROOMS LTD,No
Http://opendatacommunities.org/id/metropolitan-district-council/leeds,Leeds City Council as Accountable Body,31/10/2022,Social Services Pooled Budgets,Leeds Community Equip Store Pooled Budgt,Supplies and Services,Other Equipment,203,09/09/2022,2209-00551,0.00,1800.00,R,AIDAPT BATHROOMS LTD,No
Http://opendatacommunities.org/id/metropolitan-district-council/leeds,Leeds City Council as Accountable Body,31/10/2022,Social Services Pooled Budgets,Leeds Community Equip Store Pooled Budgt,Supplies and Services,Other Equipment,203,16/09/2022,2209-00552,0.00,900.00,R,AIDAPT BATHROOMS LTD,No
Http://opendatacommunities.org/id/metropolitan-district-council/leeds,Leeds City Council as Accountable Body,31/10/2022,Social Services Pooled Budgets,Leeds Community Equip Store Pooled Budgt,Supplies and Services,Other Equipment,203,16/09/2022,2209-00553,0.00,463.00,R,AIDAPT BATHROOMS LTD,No
Http://opendatacommunities.org/id/metropolitan-district-council/leeds,Leeds City Council as Accountable Body,31/10/2022,Social Services Pooled Budgets,Leeds Community Equip Store Pooled Budgt,Supplies and Services,Other Equipment,203,27/09/2022,2209-00554,0.00,-90.00,R,AIDAPT BATHROOMS LTD,No
Http://opendatacommunities.org/id/metropolitan-district-council/leeds,Leeds City Council as Accountable Body,31/10/2022,Social Services Pooled Budgets,Leeds Community Equip Store Pooled Budgt,Supplies and Services,Other Equipment,203,27/09/2022,2209-00555,0.00,108.00,R,AIDAPT BATHROOMS LTD,No
Http://opendatacommunities.org/id/metropolitan-district-council/leeds,Leeds City Council,31/10/2022,Children and Families,Social Care,Appropriations,Leaving Care Allowances,634,06/09/2022,2209-00556,0.00,50.00,R,REDACTED PERSONAL DATA,No
Http://opendatacommunities.org/id/metropolitan-district-council/leeds,Leeds City Council,31/10/2022,City Development,Libraries Arts & Heritage,Supplies and Services,Publication And Promotion,267,27/09/2022,2209-00557,0.00,2070.00,R,AIMediaData Limited,No
Http://opendatacommunities.org/id/metropolitan-district-council/leeds,Leeds City Council,31/10/2022,City Development,Recreation,External Income,Swimming Bath Charges,923,08/09/2022,2209-00558,0.00,26.50,R,REDACTED PERSONAL DATA,No
Http://opendatacommunities.org/id/metropolitan-district-council/leeds,Leeds City Council,31/10/2022,Communities Housing and Environment,Strategic Housing Partnership & Support,Supplies and Services,Other Hired And Contracted Services,265,22/09/2022,2209-00559,0.00,1050.00,R,Aina Florence,No
Http://opendatacommunities.org/id/metropolitan-district-council/leeds,Leeds City Council,31/10/2022,Resources,Leeds Building Services,Supplies and Services,Operational Materials,205,27/09/2022,2209-00560,0.00,1900.05,R,Air Conditioning Accessories,No
Http://opendatacommunities.org/id/metropolitan-district-council/leeds,Leeds City Council,31/10/2022,Resources,Commercial Services ,Supplies and Services,Operational Materials,205,21/09/2022,2209-00561,0.00,41.50,R,Air Force Pneumatics And,Yes
Http://opendatacommunities.org/id/metropolitan-district-council/leeds,Leeds City Council,31/10/2022,Communities Housing and Environment,Environmental Health,Supplies and Services,Other Hired And Contracted Services,265,01/09/2022,2209-00562,0.00,11.75,R,AIR LIQUIDE UK,No
Http://opendatacommunities.org/id/metropolitan-district-council/leeds,Leeds City Council,31/10/2022,Communities Housing and Environment,Environmental Health,Supplies and Services,Other Hired And Contracted Services,265,01/09/2022,2209-00563,0.00,11.75,R,AIR LIQUIDE UK,No
Http://opendatacommunities.org/id/metropolitan-district-council/leeds,Leeds City Council,31/10/2022,Communities Housing and Environment,Environmental Health,Supplies and Services,Other Hired And Contracted Services,265,01/09/2022,2209-00564,0.00,18.16,R,AIR LIQUIDE UK,No
Http://opendatacommunities.org/id/metropolitan-district-council/leeds,Leeds City Council,31/10/2022,Communities Housing and Environment,Environmental Health,Supplies and Services,Other Hired And Contracted Services,265,01/09/2022,2209-00565,0.00,94.00,R,AIR LIQUIDE UK,No
Http://opendatacommunities.org/id/metropolitan-district-council/leeds,Leeds City Council,31/10/2022,Communities Housing and Environment,Environmental Health,Supplies and Services,Other Hired And Contracted Services,265,16/09/2022,2209-00566,0.00,11.75,R,AIR LIQUIDE UK,No
Http://opendatacommunities.org/id/metropolitan-district-council/leeds,Leeds City Council,31/10/2022,Communities Housing and Environment,Environmental Health,Supplies and Services,Other Hired And Contracted Services,265,16/09/2022,2209-00567,0.00,11.75,R,AIR LIQUIDE UK,No
Http://opendatacommunities.org/id/metropolitan-district-council/leeds,Leeds City Council,31/10/2022,Communities Housing and Environment,Environmental Health,Supplies and Services,Other Hired And Contracted Services,265,16/09/2022,2209-00568,0.00,18.16,R,AIR LIQUIDE UK,No
Http://opendatacommunities.org/id/metropolitan-district-council/leeds,Leeds City Council,31/10/2022,Communities Housing and Environment,Environmental Health,Supplies and Services,Other Hired And Contracted Services,265,16/09/2022,2209-00569,0.00,82.25,R,AIR LIQUIDE UK,No
Http://opendatacommunities.org/id/metropolitan-district-council/leeds,Leeds City Council,31/10/2022,Communities Housing and Environment,Environmental Health,Supplies and Services,Other Hired And Contracted Services,265,30/09/2022,2209-00570,0.00,11.75,R,AIR LIQUIDE UK,No
Http://opendatacommunities.org/id/metropolitan-district-council/leeds,Leeds City Council,31/10/2022,Communities Housing and Environment,Environmental Health,Supplies and Services,Other Hired And Contracted Services,265,30/09/2022,2209-00571,0.00,11.75,R,AIR LIQUIDE UK,No
Http://opendatacommunities.org/id/metropolitan-district-council/leeds,Leeds City Council,31/10/2022,Communities Housing and Environment,Environmental Health,Supplies and Services,Other Hired And Contracted Services,265,30/09/2022,2209-00572,0.00,18.16,R,AIR LIQUIDE UK,No
Http://opendatacommunities.org/id/metropolitan-district-council/leeds,Leeds City Council,31/10/2022,Communities Housing and Environment,Environmental Health,Supplies and Services,Other Hired And Contracted Services,265,30/09/2022,2209-00573,0.00,94.00,R,AIR LIQUIDE UK,No
Http://opendatacommunities.org/id/metropolitan-district-council/leeds,Leeds City Council,31/10/2022,Strategic Landlord,Property and Contracts ,Premises,HRA Major Repairs,107,08/08/2022,2209-00574,0.00,173.57,R,Airbnb * Hmat88bcmf,Yes
Http://opendatacommunities.org/id/metropolitan-district-council/leeds,Leeds City Council,31/10/2022,Children and Families,Social Care ,Agency Payments,Placement Support,550,15/09/2022,2209-00575,0.00,672.42,R,Airbnb * Hmn2w2f45r,Yes
Http://opendatacommunities.org/id/metropolitan-district-council/leeds,Leeds City Council,31/10/2022,Children and Families,Social Care ,Transport,Public Transport Expenses,310,18/09/2022,2209-00576,0.00,105.25,R,Airbnb * Hmybfp2zyp,Yes
Http://opendatacommunities.org/id/metropolitan-district-council/leeds,Leeds City Council,31/10/2022,Children and Families,Social Care ,Transport,Public Transport Expenses,310,01/09/2022,2209-00577,0.00,660.72,R,Airbnb * Hmyr4few5x,Yes
Http://opendatacommunities.org/id/metropolitan-district-council/leeds,Leeds City Council,31/10/2022,Adults and Health,Public Health,Supplies and Services,Computer Software & Equipment,214,15/09/2022,2209-00578,0.00,1575.00,R,Aire Logic Ltd,No
Http://opendatacommunities.org/id/metropolitan-district-council/leeds,Leeds City Council,31/10/2022,Communities Housing and Environment,Parks and Countryside,Supplies and Services,Other Hired And Contracted Services,265,02/09/2022,2209-00579,0.00,129.00,R,Aire Valley Tree Services Ltd,No
Http://opendatacommunities.org/id/metropolitan-district-council/leeds,Leeds City Council,31/10/2022,Communities Housing and Environment,Parks and Countryside,Supplies and Services,Other Hired And Contracted Services,265,07/09/2022,2209-00580,0.00,905.00,R,Aire Valley Tree Services Ltd,No
Http://opendatacommunities.org/id/metropolitan-district-council/leeds,Leeds City Council,31/10/2022,Communities Housing and Environment,Parks and Countryside,Supplies and Services,Other Hired And Contracted Services,265,08/09/2022,2209-00581,0.00,960.00,R,Aire Valley Tree Services Ltd,No
Http://opendatacommunities.org/id/metropolitan-district-council/leeds,Leeds City Council,31/10/2022,Communities Housing and Environment,Parks and Countryside,Supplies and Services,Other Hired And Contracted Services,265,09/09/2022,2209-00582,0.00,1991.00,R,Aire Valley Tree Services Ltd,No
Http://opendatacommunities.org/id/metropolitan-district-council/leeds,Leeds City Council,31/10/2022,Communities Housing and Environment,Parks and Countryside,Supplies and Services,Other Hired And Contracted Services,265,23/09/2022,2209-00583,0.00,819.00,R,Aire Valley Tree Services Ltd,No
Http://opendatacommunities.org/id/metropolitan-district-council/leeds,Leeds City Council,31/10/2022,Adults and Health,Services For Older People - 65 And Over,Agency Payments,Residential Care Dementia,571,14/09/2022,2209-00584,0.00,47585.62,R,Aire View Residential Home,No
Http://opendatacommunities.org/id/metropolitan-district-council/leeds,Leeds City Council,31/10/2022,Adults and Health,Services For Older People - 65 And Over,Agency Payments,Residential,580,14/09/2022,2209-00585,0.00,7909.23,R,Aire View Residential Home,No
Http://opendatacommunities.org/id/metropolitan-district-council/leeds,Leeds City Council,31/10/2022,City Development,Recreation ,Supplies and Services,Hospitality,255,12/08/2022,2209-00586,0.00,2.33,R,Aireborough Leisure Centr,Yes
Http://opendatacommunities.org/id/metropolitan-district-council/leeds,Leeds City Council,31/10/2022,City Development,Recreation ,Supplies and Services,Hospitality,255,12/08/2022,2209-00587,0.00,10.33,R,Aireborough Leisure Centr,Yes
Http://opendatacommunities.org/id/metropolitan-district-council/leeds,Leeds City Council,31/10/2022,City Development,Recreation ,Supplies and Services,Hospitality,255,25/08/2022,2209-00588,0.00,19.00,R,Aireborough Leisure Centr,Yes
Http://opendatacommunities.org/id/metropolitan-district-council/leeds,Leeds City Council,31/10/2022,City Development,Recreation ,Supplies and Services,Hospitality,255,26/08/2022,2209-00589,0.00,4.29,R,Aireborough Leisure Centr,Yes
Http://opendatacommunities.org/id/metropolitan-district-council/leeds,Leeds City Council,31/10/2022,City Development,Recreation ,Supplies and Services,Hospitality,255,15/09/2022,2209-00590,0.00,2.25,R,Aireborough Leisure Centr,Yes
Http://opendatacommunities.org/id/metropolitan-district-council/leeds,Leeds City Council,31/10/2022,City Development,Recreation ,Supplies and Services,Subsistence,256,15/09/2022,2209-00591,0.00,4.08,R,Aireborough Leisure Centr,Yes
Http://opendatacommunities.org/id/metropolitan-district-council/leeds,Leeds City Council,31/10/2022,City Development,Recreation ,Supplies and Services,Hospitality,255,15/09/2022,2209-00592,0.00,5.00,R,Aireborough Leisure Centr,Yes
Http://opendatacommunities.org/id/metropolitan-district-council/leeds,Leeds City Council,31/10/2022,Adults and Health,Services For Older People - 65 And Over,Agency Payments,Residential Care Dementia,571,14/09/2022,2209-00593,0.00,5194.77,R,Airedale Residential Home,No
Http://opendatacommunities.org/id/metropolitan-district-council/leeds,Leeds City Council,31/10/2022,Adults and Health,Services For Older People - 65 And Over,Agency Payments,Residential,580,14/09/2022,2209-00594,0.00,28979.17,R,Airedale Residential Home,No
Http://opendatacommunities.org/id/metropolitan-district-council/leeds,Leeds City Council,31/10/2022,Adults and Health,Services For Older People Under 65 P/Dis,Agency Payments,Residential,580,14/09/2022,2209-00595,0.00,2094.92,R,Airedale Residential Home,No
Http://opendatacommunities.org/id/metropolitan-district-council/leeds,Leeds City Council,31/10/2022,Communities Housing and Environment,Parks and Countryside,Supplies and Services,Other Hired And Contracted Services,265,30/09/2022,2209-00596,0.00,500.00,R,Airedon Limited,No
Http://opendatacommunities.org/id/metropolitan-district-council/leeds,Leeds City Council,31/10/2022,Children and Families,Social Care ,Appropriations,Leaving Care Allowances,634,31/07/2022,2209-00597,0.00,27.85,R,Airpay 42732359-Amber Car,Yes
Http://opendatacommunities.org/id/metropolitan-district-council/leeds,Leeds City Council,31/10/2022,Children and Families,Social Care ,Appropriations,Leaving Care Allowances,634,31/07/2022,2209-00598,0.00,26.15,R,Airpay 42732877-Amber Car,Yes
Http://opendatacommunities.org/id/metropolitan-district-council/leeds,Leeds City Council,31/10/2022,Children and Families,Social Care ,Transport,Public Transport Expenses,310,02/08/2022,2209-00599,0.00,14.75,R,Airpay 42751168-Amber Car,Yes
Http://opendatacommunities.org/id/metropolitan-district-council/leeds,Leeds City Council,31/10/2022,Children and Families,Social Care ,Transport,Public Transport Expenses,310,02/08/2022,2209-00600,0.00,15.05,R,Airpay 42758548-Amber Car,Yes
Http://opendatacommunities.org/id/metropolitan-district-council/leeds,Leeds City Council,31/10/2022,City Development,Economic Development ,Transport,Public Transport Expenses,310,06/08/2022,2209-00601,0.00,19.65,R,Airpay 42800265-Amber Car,Yes
Http://opendatacommunities.org/id/metropolitan-district-council/leeds,Leeds City Council,31/10/2022,Children and Families,Social Care ,Transport,Public Transport Expenses,310,09/08/2022,2209-00602,0.00,4.87,R,Airpay 42860738-Amber Car,Yes
Http://opendatacommunities.org/id/metropolitan-district-council/leeds,Leeds City Council,31/10/2022,Children and Families,Social Care ,Appropriations,Leaving Care Allowances,634,18/08/2022,2209-00603,0.00,6.55,R,Airpay 42979141-Amber Car,Yes
Http://opendatacommunities.org/id/metropolitan-district-council/leeds,Leeds City Council,31/10/2022,Children and Families,Social Care ,Agency Payments,Section 17,551,03/09/2022,2209-00604,0.00,7.85,R,Airpay 43205330-Amber Car,Yes
Http://opendatacommunities.org/id/metropolitan-district-council/leeds,Leeds City Council,31/10/2022,Children and Families,Social Care ,Agency Payments,Placement Support,550,07/09/2022,2209-00605,0.00,38.95,R,Airpay 43243595-Amber Car,Yes
Http://opendatacommunities.org/id/metropolitan-district-council/leeds,Leeds City Council,31/10/2022,Children and Families,Social Care ,Agency Payments,Placement Support,550,08/09/2022,2209-00606,0.00,40.05,R,Airpay 43256259-Amber Car,Yes
Http://opendatacommunities.org/id/metropolitan-district-council/leeds,Leeds City Council,31/10/2022,Children and Families,Social Care ,Appropriations,Leaving Care Allowances,634,29/09/2022,2209-00607,0.00,14.35,R,Airpay 43549820-Amber Car,Yes
Http://opendatacommunities.org/id/metropolitan-district-council/leeds,Leeds City Council,31/10/2022,Children and Families,Social Care ,Appropriations,Leaving Care Allowances,634,29/09/2022,2209-00608,0.00,12.15,R,Airpay 43551757-Amber Car,Yes
Http://opendatacommunities.org/id/metropolitan-district-council/leeds,Leeds City Council,31/10/2022,City Development,Recreation,Supplies and Services,Other Hired And Contracted Services,265,22/09/2022,2209-00609,0.00,320.00,R,Airspace Solutions.Com Limited,No
Http://opendatacommunities.org/id/metropolitan-district-council/leeds,Leeds City Council,31/10/2022,Adults and Health,Services For Adults Under 65 Learn/Dis,Internal Recharges,Legal Disbursements,411,02/09/2022,2209-00610,0.00,300.00,R,Aisling Campbell,No
Http://opendatacommunities.org/id/metropolitan-district-council/leeds,Leeds City Council,31/10/2022,Adults and Health,Services For Adults Under 65 Mental/Dis,Agency Payments,Fees - Level 4,520,01/09/2022,2209-00611,0.00,175.00,R,AIT Mitra Limited,No
Http://opendatacommunities.org/id/metropolitan-district-council/leeds,Leeds City Council,31/10/2022,Adults and Health,Services For Adults Under 65 Mental/Dis,Agency Payments,Fees - Level 4,520,09/09/2022,2209-00612,0.00,175.00,R,AIT Mitra Limited,No
Http://opendatacommunities.org/id/metropolitan-district-council/leeds,Leeds City Council,31/10/2022,Adults and Health,Services For Adults Under 65 Mental/Dis,Agency Payments,Fees - Level 4,520,26/09/2022,2209-00613,0.00,175.00,R,AIT Mitra Limited,No
Http://opendatacommunities.org/id/metropolitan-district-council/leeds,Leeds City Council,31/10/2022,Adults and Health,Services For Adults Under 65 Mental/Dis,Agency Payments,Fees - Level 4,520,26/09/2022,2209-00614,0.00,175.00,R,AIT Mitra Limited,No
Http://opendatacommunities.org/id/metropolitan-district-council/leeds,Leeds City Council as Accountable Body,31/10/2022,Social Services Pooled Budgets,Jcs For People With Learning Disabilitie,Agency Payments,Residential,580,14/09/2022,2209-00615,0.00,7082.20,R,AITCH care homes,No
Http://opendatacommunities.org/id/metropolitan-district-council/leeds,Leeds City Council,31/10/2022,Communities Housing and Environment,Parks and Countryside ,Supplies and Services,Operational Materials,205,06/09/2022,2209-00616,0.00,99.17,R,Aitkens Sportsturf Limite,Yes
Http://opendatacommunities.org/id/metropolitan-district-council/leeds,Leeds City Council,31/10/2022,Resources,Commercial Services,Supplies and Services,Other Hired And Contracted Services,265,01/09/2022,2209-00617,0.00,450.00,R,REDACTED PERSONAL DATA,No
Http://opendatacommunities.org/id/metropolitan-district-council/leeds,Leeds City Council as Accountable Body,31/10/2022,Social Services Pooled Budgets,Jcs For People With Learning Disabilitie,Agency Payments,Home Care,568,02/09/2022,2209-00618,0.00,92.85,R,Aj Social Care Recruitment Ltd,No
Http://opendatacommunities.org/id/metropolitan-district-council/leeds,Leeds City Council as Accountable Body,31/10/2022,Social Services Pooled Budgets,Jcs For People With Learning Disabilitie,Agency Payments,Home Care,568,02/09/2022,2209-00619,0.00,185.70,R,Aj Social Care Recruitment Ltd,No
Http://opendatacommunities.org/id/metropolitan-district-council/leeds,Leeds City Council as Accountable Body,31/10/2022,Social Services Pooled Budgets,Jcs For People With Learning Disabilitie,Agency Payments,Home Care,568,15/09/2022,2209-00620,0.00,185.70,R,Aj Social Care Recruitment Ltd,No
Http://opendatacommunities.org/id/metropolitan-district-council/leeds,Leeds City Council,31/10/2022,Resources,Leeds Building Services,Supplies and Services,Operational Furniture And Equipment,203,02/09/2022,2209-00621,0.00,1092.41,R,AJM FIXINGS & POWER TOOLS LTD,No
Http://opendatacommunities.org/id/metropolitan-district-council/leeds,Leeds City Council,31/10/2022,Resources,Leeds Building Services,Supplies and Services,Operational Furniture And Equipment,203,07/09/2022,2209-00622,0.00,324.95,R,AJM FIXINGS & POWER TOOLS LTD,No
Http://opendatacommunities.org/id/metropolitan-district-council/leeds,Leeds City Council,31/10/2022,Resources,Leeds Building Services,Supplies and Services,Operational Furniture And Equipment,203,07/09/2022,2209-00623,0.00,324.95,R,AJM FIXINGS & POWER TOOLS LTD,No
Http://opendatacommunities.org/id/metropolitan-district-council/leeds,Leeds City Council,31/10/2022,Resources,Leeds Building Services,Supplies and Services,Operational Furniture And Equipment,203,07/09/2022,2209-00624,0.00,279.00,R,AJM FIXINGS & POWER TOOLS LTD,No
Http://opendatacommunities.org/id/metropolitan-district-council/leeds,Leeds City Council,31/10/2022,Resources,Leeds Building Services,Supplies and Services,Operational Furniture And Equipment,203,07/09/2022,2209-00625,0.00,324.95,R,AJM FIXINGS & POWER TOOLS LTD,No
Http://opendatacommunities.org/id/metropolitan-district-council/leeds,Leeds City Council,31/10/2022,Resources,Leeds Building Services,Supplies and Services,Operational Furniture And Equipment,203,07/09/2022,2209-00626,0.00,49.00,R,AJM FIXINGS & POWER TOOLS LTD,No
Http://opendatacommunities.org/id/metropolitan-district-council/leeds,Leeds City Council,31/10/2022,Resources,Leeds Building Services,Supplies and Services,Operational Furniture And Equipment,203,09/09/2022,2209-00627,0.00,509.80,R,AJM FIXINGS & POWER TOOLS LTD,No
Http://opendatacommunities.org/id/metropolitan-district-council/leeds,Leeds City Council,31/10/2022,Resources,Leeds Building Services,Supplies and Services,Operational Furniture And Equipment,203,09/09/2022,2209-00628,0.00,259.00,R,AJM FIXINGS & POWER TOOLS LTD,No
Http://opendatacommunities.org/id/metropolitan-district-council/leeds,Leeds City Council,31/10/2022,Resources,Leeds Building Services,Supplies and Services,Operational Furniture And Equipment,203,15/09/2022,2209-00629,0.00,557.00,R,AJM FIXINGS & POWER TOOLS LTD,No
Http://opendatacommunities.org/id/metropolitan-district-council/leeds,Leeds City Council,31/10/2022,Resources,Leeds Building Services,Premises,Cleaning Maintenance & Toiletries,127,15/09/2022,2209-00630,0.00,16.84,R,AJM FIXINGS & POWER TOOLS LTD,No
Http://opendatacommunities.org/id/metropolitan-district-council/leeds,Leeds City Council,31/10/2022,Resources,Leeds Building Services,Supplies and Services,Operational Furniture And Equipment,203,15/09/2022,2209-00631,0.00,882.50,R,AJM FIXINGS & POWER TOOLS LTD,No
Http://opendatacommunities.org/id/metropolitan-district-council/leeds,Leeds City Council,31/10/2022,Resources,Leeds Building Services,Supplies and Services,Operational Materials,205,27/09/2022,2209-00632,0.00,650.00,R,AJM FIXINGS & POWER TOOLS LTD,No
Http://opendatacommunities.org/id/metropolitan-district-council/leeds,Leeds City Council,31/10/2022,Resources,Leeds Building Services,Supplies and Services,Operational Furniture And Equipment,203,27/09/2022,2209-00633,0.00,1143.16,R,AJM FIXINGS & POWER TOOLS LTD,No
Http://opendatacommunities.org/id/metropolitan-district-council/leeds,Leeds City Council,31/10/2022,Resources,Leeds Building Services,Supplies and Services,Operational Furniture And Equipment,203,27/09/2022,2209-00634,0.00,525.00,R,AJM FIXINGS & POWER TOOLS LTD,No
Http://opendatacommunities.org/id/metropolitan-district-council/leeds,Leeds City Council,31/10/2022,Resources,Leeds Building Services,Supplies and Services,Operational Furniture And Equipment,203,27/09/2022,2209-00635,0.00,1143.16,R,AJM FIXINGS & POWER TOOLS LTD,No
Http://opendatacommunities.org/id/metropolitan-district-council/leeds,Leeds City Council,31/10/2022,Resources,Leeds Building Services,Supplies and Services,Operational Furniture And Equipment,203,27/09/2022,2209-00636,0.00,192.46,R,AJM FIXINGS & POWER TOOLS LTD,No
Http://opendatacommunities.org/id/metropolitan-district-council/leeds,Leeds City Council,31/10/2022,Resources,Leeds Building Services,Premises,Cleaning Maintenance & Toiletries,127,27/09/2022,2209-00637,0.00,204.20,R,AJM FIXINGS & POWER TOOLS LTD,No
Http://opendatacommunities.org/id/metropolitan-district-council/leeds,Leeds City Council,31/10/2022,Resources,Leeds Building Services,Supplies and Services,Operational Furniture And Equipment,203,27/09/2022,2209-00638,0.00,929.99,R,AJM FIXINGS & POWER TOOLS LTD,No
Http://opendatacommunities.org/id/metropolitan-district-council/leeds,Leeds City Council,31/10/2022,Resources,Leeds Building Services,Supplies and Services,Operational Furniture And Equipment,203,27/09/2022,2209-00639,0.00,192.46,R,AJM FIXINGS & POWER TOOLS LTD,No
Http://opendatacommunities.org/id/metropolitan-district-council/leeds,Leeds City Council,31/10/2022,Resources,Leeds Building Services,Premises,Cleaning Maintenance & Toiletries,127,27/09/2022,2209-00640,0.00,49.74,R,AJM FIXINGS & POWER TOOLS LTD,No
Http://opendatacommunities.org/id/metropolitan-district-council/leeds,Leeds City Council,31/10/2022,Resources,Leeds Building Services,Supplies and Services,Operational Furniture And Equipment,203,27/09/2022,2209-00641,0.00,36.40,R,AJM FIXINGS & POWER TOOLS LTD,No
Http://opendatacommunities.org/id/metropolitan-district-council/leeds,Leeds City Council,31/10/2022,Resources,Leeds Building Services,Premises,Cleaning Maintenance & Toiletries,127,27/09/2022,2209-00642,0.00,77.50,R,AJM FIXINGS & POWER TOOLS LTD,No
Http://opendatacommunities.org/id/metropolitan-district-council/leeds,Leeds City Council,31/10/2022,Resources,Leeds Building Services,Supplies and Services,Operational Furniture And Equipment,203,27/09/2022,2209-00643,0.00,375.00,R,AJM FIXINGS & POWER TOOLS LTD,No
Http://opendatacommunities.org/id/metropolitan-district-council/leeds,Leeds City Council,31/10/2022,Resources,Leeds Building Services,Supplies and Services,Operational Furniture And Equipment,203,27/09/2022,2209-00644,0.00,876.45,R,AJM FIXINGS & POWER TOOLS LTD,No
Http://opendatacommunities.org/id/metropolitan-district-council/leeds,Leeds City Council,31/10/2022,Resources,Leeds Building Services,Supplies and Services,Operational Furniture And Equipment,203,27/09/2022,2209-00645,0.00,214.50,R,AJM FIXINGS & POWER TOOLS LTD,No
Http://opendatacommunities.org/id/metropolitan-district-council/leeds,Leeds City Council,31/10/2022,Resources,Leeds Building Services,Premises,Cleaning Maintenance & Toiletries,127,27/09/2022,2209-00646,0.00,345.00,R,AJM FIXINGS & POWER TOOLS LTD,No
Http://opendatacommunities.org/id/metropolitan-district-council/leeds,Leeds City Council,31/10/2022,Resources,Leeds Building Services,Supplies and Services,Operational Furniture And Equipment,203,27/09/2022,2209-00647,0.00,259.00,R,AJM FIXINGS & POWER TOOLS LTD,No
Http://opendatacommunities.org/id/metropolitan-district-council/leeds,Leeds City Council,31/10/2022,Resources,Leeds Building Services,Supplies and Services,Operational Furniture And Equipment,203,27/09/2022,2209-00648,0.00,259.00,R,AJM FIXINGS & POWER TOOLS LTD,No
Http://opendatacommunities.org/id/metropolitan-district-council/leeds,Leeds City Council,31/10/2022,Resources,Leeds Building Services,Supplies and Services,Operational Furniture And Equipment,203,27/09/2022,2209-00649,0.00,562.00,R,AJM FIXINGS & POWER TOOLS LTD,No
Http://opendatacommunities.org/id/metropolitan-district-council/leeds,Leeds City Council,31/10/2022,Resources,Leeds Building Services,Supplies and Services,Operational Furniture And Equipment,203,27/09/2022,2209-00650,0.00,44.79,R,AJM FIXINGS & POWER TOOLS LTD,No
Http://opendatacommunities.org/id/metropolitan-district-council/leeds,Leeds City Council,31/10/2022,Resources,Leeds Building Services,Premises,Cleaning Maintenance & Toiletries,127,27/09/2022,2209-00651,0.00,280.00,R,AJM FIXINGS & POWER TOOLS LTD,No
Http://opendatacommunities.org/id/metropolitan-district-council/leeds,Leeds City Council,31/10/2022,City Development,Libraries Arts & Heritage,Supplies and Services,Other Hired And Contracted Services,265,27/09/2022,2209-00652,0.00,4800.00,R,REDACTED PERSONAL DATA,No
Http://opendatacommunities.org/id/metropolitan-district-council/leeds,Leeds City Council,31/10/2022,City Development,Libraries Arts & Heritage,Supplies and Services,Bought In Professional Services,277,02/09/2022,2209-00653,0.00,300.00,R,Akeim Toussaint Buck,No
Http://opendatacommunities.org/id/metropolitan-district-council/leeds,Leeds City Council,31/10/2022,Communities Housing and Environment,Strategic Housing Partnership & Support,Capital,CONSTRUCTION,3,23/09/2022,2209-00654,0.00,10000.00,C,AKR Construction Ltd,No
Http://opendatacommunities.org/id/metropolitan-district-council/leeds,Leeds City Council,31/10/2022,Communities Housing and Environment,Strategic Housing Partnership & Support,Capital,CONSTRUCTION,3,29/09/2022,2209-00655,0.00,5000.00,C,AKR Construction Ltd,No
Http://opendatacommunities.org/id/metropolitan-district-council/leeds,Leeds City Council,31/10/2022,Communities Housing and Environment,Strategic Housing Partnership & Support,Capital,CONSTRUCTION,3,29/09/2022,2209-00656,0.00,7000.00,C,AKR Construction Ltd,No
Http://opendatacommunities.org/id/metropolitan-district-council/leeds,Leeds City Council,31/10/2022,Children and Families,Social Care,Appropriations,16 Plus Top Up Allowance,625,09/09/2022,2209-00657,0.00,20.00,R,REDACTED PERSONAL DATA,No
Http://opendatacommunities.org/id/metropolitan-district-council/leeds,Leeds City Council,31/10/2022,Children and Families,Social Care,Appropriations,Leaving Care Allowances,634,09/09/2022,2209-00658,0.00,51.05,R,REDACTED PERSONAL DATA,No
Http://opendatacommunities.org/id/metropolitan-district-council/leeds,Leeds City Council,31/10/2022,Resources,Commercial Services,Supplies and Services,Compensation Claims,200,02/09/2022,2209-00659,0.00,2100.00,R,REDACTED PERSONAL DATA,No
Http://opendatacommunities.org/id/metropolitan-district-council/leeds,Leeds City Council,31/10/2022,Adults and Health,Services For Older People - 65 And Over,Agency Payments,Payments To Voluntary Organisations,561,30/09/2022,2209-00660,0.00,2700.00,R,Al Khidmat Centre,No
Http://opendatacommunities.org/id/metropolitan-district-council/leeds,Leeds City Council,31/10/2022,City Development,Libraries Arts & Heritage,Supplies and Services,Other Hired And Contracted Services,265,07/09/2022,2209-00661,0.00,35.10,R,ALAA Enterprises,No
Http://opendatacommunities.org/id/metropolitan-district-council/leeds,Leeds City Council,31/10/2022,Resources,Commercial Services,Supplies and Services,Clothing & Uniforms,241,09/09/2022,2209-00662,0.00,30.00,R,REDACTED PERSONAL DATA,No
Http://opendatacommunities.org/id/metropolitan-district-council/leeds,Leeds City Council,31/10/2022,Resources,Democratic Services ,Appropriations,Civic Allowances,651,29/07/2022,2209-00663,0.00,50.00,R,Alan Brown Flowers,Yes
Http://opendatacommunities.org/id/metropolitan-district-council/leeds,Leeds City Council,31/10/2022,Communities Housing and Environment,Benefits Wlefare and Poverty,Supplies and Services,Grant Related Expenditure,290,26/09/2022,2209-00664,0.00,100.00,R,REDACTED PERSONAL DATA,No
Http://opendatacommunities.org/id/metropolitan-district-council/leeds,Leeds City Council,31/10/2022,Children and Families,Social Care,Appropriations,Leaving Care Allowances,634,05/09/2022,2209-00665,0.00,13.05,R,REDACTED PERSONAL DATA,No
Http://opendatacommunities.org/id/metropolitan-district-council/leeds,Leeds City Council,31/10/2022,Children and Families,Social Care,Appropriations,Leaving Care Allowances,634,02/09/2022,2209-00666,0.00,51.05,R,REDACTED PERSONAL DATA,No
Http://opendatacommunities.org/id/metropolitan-district-council/leeds,Leeds City Council,31/10/2022,Children and Families,Social Care,Appropriations,Leaving Care Allowances,634,09/09/2022,2209-00667,0.00,51.05,R,REDACTED PERSONAL DATA,No
Http://opendatacommunities.org/id/metropolitan-district-council/leeds,Leeds City Council,31/10/2022,Children and Families,Social Care,Appropriations,Leaving Care Allowances,634,16/09/2022,2209-00668,0.00,51.05,R,REDACTED PERSONAL DATA,No
Http://opendatacommunities.org/id/metropolitan-district-council/leeds,Leeds City Council,31/10/2022,Children and Families,Social Care,Appropriations,Leaving Care Allowances,634,23/09/2022,2209-00669,0.00,51.05,R,REDACTED PERSONAL DATA,No
Http://opendatacommunities.org/id/metropolitan-district-council/leeds,Leeds City Council,31/10/2022,Children and Families,Social Care ,Supplies and Services,Computer Software & Equipment,214,14/09/2022,2209-00670,0.00,33.12,R,Albelli Bonusprint,Yes
Http://opendatacommunities.org/id/metropolitan-district-council/leeds,Leeds City Council,31/10/2022,Children and Families,Social Care ,Supplies and Services,Holidays-  Service Users,284,15/08/2022,2209-00671,0.00,31.05,R,Albert And The Lio,Yes
Http://opendatacommunities.org/id/metropolitan-district-council/leeds,Leeds City Council,31/10/2022,Communities Housing and Environment,Communities,Supplies and Services,Other Hired And Contracted Services,265,23/09/2022,2209-00672,0.00,1228.33,R,Alcium Software Ltd,No
Http://opendatacommunities.org/id/metropolitan-district-council/leeds,Leeds City Council,31/10/2022,Communities Housing and Environment,Customer Access ,Supplies and Services,Office Consumables,210,08/08/2022,2209-00673,0.00,8.79,R,Aldi,Yes
Http://opendatacommunities.org/id/metropolitan-district-council/leeds,Leeds City Council,31/10/2022,Communities Housing and Environment,Communities ,Supplies and Services,'Well Being' Large Grants Projects,230,10/08/2022,2209-00674,0.00,6.47,R,Aldi,Yes
Http://opendatacommunities.org/id/metropolitan-district-council/leeds,Leeds City Council,31/10/2022,Children and Families,Resources & Strategy ,Supplies and Services,Food & Drink,231,23/09/2022,2209-00675,0.00,3.65,R,Aldi,Yes
Http://opendatacommunities.org/id/metropolitan-district-council/leeds,Leeds City Council,31/10/2022,Children and Families,Social Care ,Supplies and Services,Food & Drink,231,23/08/2022,2209-00676,0.00,29.64,R,Aldi 103 779,Yes
Http://opendatacommunities.org/id/metropolitan-district-council/leeds,Leeds City Council,31/10/2022,Children and Families,Social Care ,Supplies and Services,Food & Drink,231,01/08/2022,2209-00677,0.00,13.87,R,Aldi 104 774,Yes
Http://opendatacommunities.org/id/metropolitan-district-council/leeds,Leeds City Council,31/10/2022,Communities Housing and Environment,Communities ,Supplies and Services,Operational Materials,205,23/08/2022,2209-00678,0.00,17.31,R,Aldi 40 779,Yes
Http://opendatacommunities.org/id/metropolitan-district-council/leeds,Leeds City Council,31/10/2022,Children and Families,Social Care ,Appropriations,Leaving Care Allowances,634,25/08/2022,2209-00679,0.00,43.93,R,Aldi 40 779,Yes
Http://opendatacommunities.org/id/metropolitan-district-council/leeds,Leeds City Council,31/10/2022,Children and Families,Social Care ,Supplies and Services,Food & Drink,231,05/09/2022,2209-00680,0.00,12.18,R,Aldi 40 779,Yes
Http://opendatacommunities.org/id/metropolitan-district-council/leeds,Leeds City Council,31/10/2022,Children and Families,Social Care ,Supplies and Services,Food & Drink,231,10/09/2022,2209-00681,0.00,35.63,R,Aldi 40 779,Yes
Http://opendatacommunities.org/id/metropolitan-district-council/leeds,Leeds City Council,31/10/2022,Children and Families,Social Care ,Appropriations,Leaving Care Allowances,634,16/09/2022,2209-00682,0.00,30.75,R,Aldi 46 779,Yes
Http://opendatacommunities.org/id/metropolitan-district-council/leeds,Leeds City Council,31/10/2022,Children and Families,Social Care ,Appropriations,Leaving Care Allowances,634,16/09/2022,2209-00683,0.00,50.00,R,Aldi 46 779,Yes
Http://opendatacommunities.org/id/metropolitan-district-council/leeds,Leeds City Council,31/10/2022,Children and Families,Social Care ,Supplies and Services,Food & Drink,231,04/08/2022,2209-00684,0.00,2.57,R,Aldi 49 779,Yes
Http://opendatacommunities.org/id/metropolitan-district-council/leeds,Leeds City Council,31/10/2022,Children and Families,Social Care ,Supplies and Services,Food & Drink,231,04/08/2022,2209-00685,0.00,39.20,R,Aldi 49 779,Yes
Http://opendatacommunities.org/id/metropolitan-district-council/leeds,Leeds City Council,31/10/2022,Children and Families,Social Care ,Supplies and Services,Food & Drink,231,18/08/2022,2209-00686,0.00,5.83,R,Aldi 49 779,Yes
Http://opendatacommunities.org/id/metropolitan-district-council/leeds,Leeds City Council,31/10/2022,Children and Families,Social Care ,Supplies and Services,Food & Drink,231,05/09/2022,2209-00687,0.00,12.93,R,Aldi 49 779,Yes
Http://opendatacommunities.org/id/metropolitan-district-council/leeds,Leeds City Council,31/10/2022,Children and Families,Social Care ,Appropriations,Young Peoples Rewards,653,10/09/2022,2209-00688,0.00,100.00,R,Aldi 49 779,Yes
Http://opendatacommunities.org/id/metropolitan-district-council/leeds,Leeds City Council,31/10/2022,Children and Families,Social Care ,Agency Payments,Section 17,551,21/09/2022,2209-00689,0.00,34.14,R,Aldi 49 779,Yes
Http://opendatacommunities.org/id/metropolitan-district-council/leeds,Leeds City Council,31/10/2022,Children and Families,Social Care ,Supplies and Services,Food & Drink,231,30/09/2022,2209-00690,0.00,29.91,R,Aldi 49 779,Yes
Http://opendatacommunities.org/id/metropolitan-district-council/leeds,Leeds City Council,31/10/2022,Children and Families,Social Care ,Supplies and Services,Food & Drink,231,02/10/2022,2209-00691,0.00,0.49,R,Aldi 49 779,Yes
Http://opendatacommunities.org/id/metropolitan-district-council/leeds,Leeds City Council,31/10/2022,Children and Families,Social Care ,Appropriations,Leaving Care Allowances,634,29/07/2022,2209-00692,0.00,19.88,R,Aldi 71 779,Yes
Http://opendatacommunities.org/id/metropolitan-district-council/leeds,Leeds City Council,31/10/2022,Children and Families,Social Care ,Agency Payments,Section 17,551,23/08/2022,2209-00693,0.00,34.72,R,Aldi 71 779,Yes
Http://opendatacommunities.org/id/metropolitan-district-council/leeds,Leeds City Council,31/10/2022,Children and Families,Social Care ,Agency Payments,Placement Support,550,08/09/2022,2209-00694,0.00,39.03,R,Aldi 71 779,Yes
Http://opendatacommunities.org/id/metropolitan-district-council/leeds,Leeds City Council,31/10/2022,Children and Families,Social Care ,Supplies and Services,Food & Drink,231,09/09/2022,2209-00695,0.00,22.56,R,Aldi 71 779,Yes
Http://opendatacommunities.org/id/metropolitan-district-council/leeds,Leeds City Council,31/10/2022,Children and Families,Social Care ,Agency Payments,Section 17,551,09/09/2022,2209-00696,0.00,12.19,R,Aldi 71 779,Yes
Http://opendatacommunities.org/id/metropolitan-district-council/leeds,Leeds City Council,31/10/2022,Children and Families,Social Care ,Agency Payments,Placement Support,550,09/09/2022,2209-00697,0.00,14.25,R,Aldi 71 779,Yes
Http://opendatacommunities.org/id/metropolitan-district-council/leeds,Leeds City Council,31/10/2022,Children and Families,Social Care ,Agency Payments,Placement Support,550,09/09/2022,2209-00698,0.00,12.19,R,Aldi 71 779,Yes
Http://opendatacommunities.org/id/metropolitan-district-council/leeds,Leeds City Council,31/10/2022,Children and Families,Social Care ,Agency Payments,Section 17,551,12/09/2022,2209-00699,0.00,10.61,R,Aldi 71 779,Yes
Http://opendatacommunities.org/id/metropolitan-district-council/leeds,Leeds City Council,31/10/2022,Communities Housing and Environment,Customer Access ,Supplies and Services,Grant Related Expenditure,290,12/09/2022,2209-00700,0.00,100.00,R,Aldi 71 779,Yes
Http://opendatacommunities.org/id/metropolitan-district-council/leeds,Leeds City Council,31/10/2022,Children and Families,Social Care ,Agency Payments,Section 17,551,23/09/2022,2209-00701,0.00,21.16,R,Aldi 71 779,Yes
Http://opendatacommunities.org/id/metropolitan-district-council/leeds,Leeds City Council,31/10/2022,Communities Housing and Environment,Customer Access ,Supplies and Services,Grant Related Expenditure,290,26/09/2022,2209-00702,0.00,100.00,R,Aldi 71 779,Yes
Http://opendatacommunities.org/id/metropolitan-district-council/leeds,Leeds City Council,31/10/2022,Children and Families,Social Care ,Appropriations,Leaving Care Allowances,634,19/08/2022,2209-00703,0.00,41.69,R,Aldi 779-126,Yes
Http://opendatacommunities.org/id/metropolitan-district-council/leeds,Leeds City Council,31/10/2022,Adults and Health,Services For Older People - 65 And Over ,Supplies and Services,Operational Materials,205,20/08/2022,2209-00704,0.00,33.25,R,Aldi 779-126,Yes
Http://opendatacommunities.org/id/metropolitan-district-council/leeds,Leeds City Council,31/10/2022,Children and Families,Social Care ,Appropriations,Young Peoples Activities,652,24/08/2022,2209-00705,0.00,10.37,R,Aldi 779-126,Yes
Http://opendatacommunities.org/id/metropolitan-district-council/leeds,Leeds City Council,31/10/2022,Adults and Health,Services For Older People - 65 And Over ,Supplies and Services,Operational Materials,205,25/09/2022,2209-00706,0.00,14.17,R,Aldi 779-126,Yes
Http://opendatacommunities.org/id/metropolitan-district-council/leeds,Leeds City Council,31/10/2022,Children and Families,Social Care ,Supplies and Services,Food & Drink,231,15/09/2022,2209-00707,0.00,50.00,R,Aldi 779148,Yes
Http://opendatacommunities.org/id/metropolitan-district-council/leeds,Leeds City Council,31/10/2022,Children and Families,Social Care ,Supplies and Services,Food & Drink,231,30/07/2022,2209-00708,0.00,10.02,R,Aldi 85 779,Yes
Http://opendatacommunities.org/id/metropolitan-district-council/leeds,Leeds City Council,31/10/2022,Children and Families,Social Care ,Supplies and Services,Food & Drink,231,11/08/2022,2209-00709,0.00,8.32,R,Aldi 85 779,Yes
Http://opendatacommunities.org/id/metropolitan-district-council/leeds,Leeds City Council,31/10/2022,City Development,Recreation ,Supplies and Services,Hospitality,255,12/08/2022,2209-00710,0.00,7.19,R,Aldi 85 779,Yes
Http://opendatacommunities.org/id/metropolitan-district-council/leeds,Leeds City Council,31/10/2022,Children and Families,Social Care ,Supplies and Services,Food & Drink,231,16/08/2022,2209-00711,0.00,26.21,R,Aldi 85 779,Yes
Http://opendatacommunities.org/id/metropolitan-district-council/leeds,Leeds City Council,31/10/2022,Children and Families,Social Care ,Supplies and Services,Food & Drink,231,18/08/2022,2209-00712,0.00,10.06,R,Aldi 85 779,Yes
Http://opendatacommunities.org/id/metropolitan-district-council/leeds,Leeds City Council,31/10/2022,Children and Families,Social Care ,Supplies and Services,Food & Drink,231,31/08/2022,2209-00713,0.00,24.09,R,Aldi 85 779,Yes
Http://opendatacommunities.org/id/metropolitan-district-council/leeds,Leeds City Council,31/10/2022,Children and Families,Social Care ,Supplies and Services,Food & Drink,231,14/09/2022,2209-00714,0.00,7.98,R,Aldi 85 779,Yes
Http://opendatacommunities.org/id/metropolitan-district-council/leeds,Leeds City Council,31/10/2022,Children and Families,Social Care ,Supplies and Services,Food & Drink,231,21/09/2022,2209-00715,0.00,32.21,R,Aldi 85 779,Yes
Http://opendatacommunities.org/id/metropolitan-district-council/leeds,Leeds City Council,31/10/2022,Children and Families,Social Care ,Supplies and Services,Food & Drink,231,22/09/2022,2209-00716,0.00,14.27,R,Aldi 85 779,Yes
Http://opendatacommunities.org/id/metropolitan-district-council/leeds,Leeds City Council,31/10/2022,Children and Families,Social Care ,Supplies and Services,Food & Drink,231,27/09/2022,2209-00717,0.00,139.14,R,Aldi 85 779,Yes
Http://opendatacommunities.org/id/metropolitan-district-council/leeds,Leeds City Council,31/10/2022,Children and Families,Social Care ,Supplies and Services,Food & Drink,231,28/09/2022,2209-00718,0.00,21.72,R,Aldi 85 779,Yes
Http://opendatacommunities.org/id/metropolitan-district-council/leeds,Leeds City Council,31/10/2022,Children and Families,Social Care ,Supplies and Services,Food & Drink,231,20/09/2022,2209-00719,0.00,16.35,R,Aldi 88 779,Yes
Http://opendatacommunities.org/id/metropolitan-district-council/leeds,Leeds City Council,31/10/2022,Children and Families,Social Care ,Supplies and Services,Food & Drink,231,02/08/2022,2209-00720,0.00,1.39,R,Aldi 89 779,Yes
Http://opendatacommunities.org/id/metropolitan-district-council/leeds,Leeds City Council,31/10/2022,Children and Families,Social Care ,Supplies and Services,Food & Drink,231,14/08/2022,2209-00721,0.00,5.93,R,Aldi 89 779,Yes
Http://opendatacommunities.org/id/metropolitan-district-council/leeds,Leeds City Council,31/10/2022,Children and Families,Social Care ,Supplies and Services,Food & Drink,231,28/08/2022,2209-00722,0.00,16.77,R,Aldi 89 779,Yes
Http://opendatacommunities.org/id/metropolitan-district-council/leeds,Leeds City Council,31/10/2022,Children and Families,Social Care ,Supplies and Services,Food & Drink,231,02/09/2022,2209-00723,0.00,15.59,R,Aldi 89 779,Yes
Http://opendatacommunities.org/id/metropolitan-district-council/leeds,Leeds City Council,31/10/2022,Children and Families,Social Care ,Supplies and Services,Food & Drink,231,05/09/2022,2209-00724,0.00,106.21,R,Aldi 89 779,Yes
Http://opendatacommunities.org/id/metropolitan-district-council/leeds,Leeds City Council,31/10/2022,City Development,Libraries Arts & Heritage ,Supplies and Services,Food & Drink,231,10/09/2022,2209-00725,0.00,3.38,R,Aldi 89 779,Yes
Http://opendatacommunities.org/id/metropolitan-district-council/leeds,Leeds City Council,31/10/2022,Children and Families,Social Care ,Supplies and Services,Food & Drink,231,12/09/2022,2209-00726,0.00,167.85,R,Aldi 89 779,Yes
Http://opendatacommunities.org/id/metropolitan-district-council/leeds,Leeds City Council,31/10/2022,Children and Families,Social Care ,Supplies and Services,Food & Drink,231,13/09/2022,2209-00727,0.00,13.16,R,Aldi 89 779,Yes
Http://opendatacommunities.org/id/metropolitan-district-council/leeds,Leeds City Council,31/10/2022,Children and Families,Social Care ,Supplies and Services,Food & Drink,231,24/09/2022,2209-00728,0.00,6.04,R,Aldi 89 779,Yes
Http://opendatacommunities.org/id/metropolitan-district-council/leeds,Leeds City Council,31/10/2022,Children and Families,Social Care ,Supplies and Services,Food & Drink,231,26/09/2022,2209-00729,0.00,188.99,R,Aldi 89 779,Yes
Http://opendatacommunities.org/id/metropolitan-district-council/leeds,Leeds City Council,31/10/2022,Children and Families,Social Care ,Supplies and Services,Food & Drink,231,30/09/2022,2209-00730,0.00,10.32,R,Aldi 89 779,Yes
Http://opendatacommunities.org/id/metropolitan-district-council/leeds,Leeds City Council,31/10/2022,Communities Housing and Environment,Parks and Countryside ,Supplies and Services,Food & Drink,231,24/09/2022,2209-00731,0.00,5.40,R,Aldi 99 779,Yes
Http://opendatacommunities.org/id/metropolitan-district-council/leeds,Leeds City Council,31/10/2022,Children and Families,Social Care ,Appropriations,Leaving Care Allowances,634,03/08/2022,2209-00732,0.00,45.06,R,Aldi Stores,Yes
Http://opendatacommunities.org/id/metropolitan-district-council/leeds,Leeds City Council,31/10/2022,Children and Families,Social Care ,Appropriations,Leaving Care Allowances,634,19/08/2022,2209-00733,0.00,10.00,R,Aldi Stores,Yes
Http://opendatacommunities.org/id/metropolitan-district-council/leeds,Leeds City Council,31/10/2022,Children and Families,Social Care ,Appropriations,Leaving Care Allowances,634,19/08/2022,2209-00734,0.00,10.00,R,Aldi Stores,Yes
Http://opendatacommunities.org/id/metropolitan-district-council/leeds,Leeds City Council,31/10/2022,Communities Housing and Environment,Parks and Countryside ,Supplies and Services,Food & Drink,231,22/08/2022,2209-00735,0.00,74.44,R,Aldi Stores,Yes
Http://opendatacommunities.org/id/metropolitan-district-council/leeds,Leeds City Council,31/10/2022,Communities Housing and Environment,Parks and Countryside ,Supplies and Services,Food & Drink,231,24/08/2022,2209-00736,0.00,65.17,R,Aldi Stores,Yes
Http://opendatacommunities.org/id/metropolitan-district-council/leeds,Leeds City Council,31/10/2022,Children and Families,Social Care ,Supplies and Services,Teaching Materials,202,12/09/2022,2209-00737,0.00,3.12,R,Aldi Stores,Yes
Http://opendatacommunities.org/id/metropolitan-district-council/leeds,Leeds City Council,31/10/2022,Children and Families,Social Care ,Supplies and Services,Operational Furniture And Equipment,203,21/09/2022,2209-00738,0.00,43.30,R,Aldi Stores,Yes
Http://opendatacommunities.org/id/metropolitan-district-council/leeds,Leeds City Council,31/10/2022,Children and Families,Social Care ,Appropriations,Leaving Care Allowances,634,23/09/2022,2209-00739,0.00,23.03,R,Aldi Stores,Yes
Http://opendatacommunities.org/id/metropolitan-district-council/leeds,Leeds City Council,31/10/2022,Children and Families,Social Care ,Appropriations,Leaving Care Allowances,634,27/09/2022,2209-00740,0.00,5.42,R,Aldi Stores,Yes
Http://opendatacommunities.org/id/metropolitan-district-council/leeds,Leeds City Council,31/10/2022,Communities Housing and Environment,Customer Access ,Supplies and Services,Food & Drink,231,01/10/2022,2209-00741,0.00,72.98,R,Aldi Stores,Yes
Http://opendatacommunities.org/id/metropolitan-district-council/leeds,Leeds City Council,31/10/2022,Children and Families,Social Care,Agency Payments,Contact,548,06/09/2022,2209-00742,0.00,36.90,R,REDACTED PERSONAL DATA,No
Http://opendatacommunities.org/id/metropolitan-district-council/leeds,Leeds City Council,31/10/2022,Children and Families,Social Care,Agency Payments,Contact,548,12/09/2022,2209-00743,0.00,36.90,R,REDACTED PERSONAL DATA,No
Http://opendatacommunities.org/id/metropolitan-district-council/leeds,Leeds City Council,31/10/2022,Children and Families,Social Care,Agency Payments,Contact,548,16/09/2022,2209-00744,0.00,36.90,R,REDACTED PERSONAL DATA,No
Http://opendatacommunities.org/id/metropolitan-district-council/leeds,Leeds City Council,31/10/2022,Children and Families,Social Care,Agency Payments,Contact,548,26/09/2022,2209-00745,0.00,36.90,R,REDACTED PERSONAL DATA,No
Http://opendatacommunities.org/id/metropolitan-district-council/leeds,Leeds City Council,31/10/2022,Communities Housing and Environment,Customer Access,Supplies and Services,Bought In Professional Services,277,01/09/2022,2209-00746,0.00,18.00,R,Alena Zueva,No
Http://opendatacommunities.org/id/metropolitan-district-council/leeds,Leeds City Council,31/10/2022,Children and Families,Social Care,Supplies and Services,General Amenity For Clients/Residents,285,07/09/2022,2209-00747,0.00,20.55,R,REDACTED PERSONAL DATA,No
Http://opendatacommunities.org/id/metropolitan-district-council/leeds,Leeds City Council,31/10/2022,City Development,Recreation,External Income,Sporting & Other Recreational Fees,928,22/09/2022,2209-00748,0.00,26.50,R,REDACTED PERSONAL DATA,No
Http://opendatacommunities.org/id/metropolitan-district-council/leeds,Leeds City Council,31/10/2022,Communities Housing and Environment,Parks and Countryside,Transport,Car & Motorcycle Allowances,311,30/09/2022,2209-00749,0.00,85.01,R,REDACTED PERSONAL DATA,No
Http://opendatacommunities.org/id/metropolitan-district-council/leeds,Leeds City Council,31/10/2022,Communities Housing and Environment,Parks and Countryside,Transport,Car & Motorcycle Allowances,311,30/09/2022,2209-00750,0.00,74.77,R,REDACTED PERSONAL DATA,No
Http://opendatacommunities.org/id/metropolitan-district-council/leeds,Leeds City Council,31/10/2022,Children and Families,Social Care,Internal Recharges,Legal Disbursements,411,06/09/2022,2209-00751,0.00,2787.00,R,Alex Taylor,No
Http://opendatacommunities.org/id/metropolitan-district-council/leeds,Leeds City Council,31/10/2022,Children and Families,Social Care,Internal Recharges,Legal Disbursements,411,16/09/2022,2209-00752,0.00,316.00,R,Alex Taylor,No
Http://opendatacommunities.org/id/metropolitan-district-council/leeds,Leeds City Council,31/10/2022,Resources,Commercial Services,Supplies and Services,Other Hired And Contracted Services,265,09/09/2022,2209-00753,0.00,80.00,R,ALEX WAGG,No
Http://opendatacommunities.org/id/metropolitan-district-council/leeds,Leeds City Council,31/10/2022,Resources,Commercial Services,Supplies and Services,Other Hired And Contracted Services,265,09/09/2022,2209-00754,0.00,280.00,R,ALEX WAGG,No
Http://opendatacommunities.org/id/metropolitan-district-council/leeds,Leeds City Council,31/10/2022,Resources,Commercial Services,Supplies and Services,Other Hired And Contracted Services,265,09/09/2022,2209-00755,0.00,80.00,R,ALEX WAGG,No
Http://opendatacommunities.org/id/metropolitan-district-council/leeds,Leeds City Council,31/10/2022,Resources,Commercial Services,Supplies and Services,Other Hired And Contracted Services,265,09/09/2022,2209-00756,0.00,100.00,R,ALEX WAGG,No
Http://opendatacommunities.org/id/metropolitan-district-council/leeds,Leeds City Council,31/10/2022,Resources,Commercial Services,Supplies and Services,Other Hired And Contracted Services,265,09/09/2022,2209-00757,0.00,120.00,R,ALEX WAGG,No
Http://opendatacommunities.org/id/metropolitan-district-council/leeds,Leeds City Council,31/10/2022,Resources,Commercial Services,Supplies and Services,Other Hired And Contracted Services,265,09/09/2022,2209-00758,0.00,140.00,R,ALEX WAGG,No
Http://opendatacommunities.org/id/metropolitan-district-council/leeds,Leeds City Council,31/10/2022,Resources,Commercial Services,Supplies and Services,Other Hired And Contracted Services,265,09/09/2022,2209-00759,0.00,277.00,R,ALEX WAGG,No
Http://opendatacommunities.org/id/metropolitan-district-council/leeds,Leeds City Council,31/10/2022,Resources,Commercial Services,Supplies and Services,Other Hired And Contracted Services,265,20/09/2022,2209-00760,0.00,70.00,R,ALEX WAGG,No
Http://opendatacommunities.org/id/metropolitan-district-council/leeds,Leeds City Council,31/10/2022,Resources,Commercial Services,Supplies and Services,Other Hired And Contracted Services,265,20/09/2022,2209-00761,0.00,70.00,R,ALEX WAGG,No
Http://opendatacommunities.org/id/metropolitan-district-council/leeds,Leeds City Council,31/10/2022,Resources,Commercial Services,Supplies and Services,Other Hired And Contracted Services,265,20/09/2022,2209-00762,0.00,70.00,R,ALEX WAGG,No
Http://opendatacommunities.org/id/metropolitan-district-council/leeds,Leeds City Council,31/10/2022,Resources,Commercial Services,Supplies and Services,Other Hired And Contracted Services,265,20/09/2022,2209-00763,0.00,60.00,R,ALEX WAGG,No
Http://opendatacommunities.org/id/metropolitan-district-council/leeds,Leeds City Council,31/10/2022,Resources,Commercial Services,Supplies and Services,Other Hired And Contracted Services,265,20/09/2022,2209-00764,0.00,80.00,R,ALEX WAGG,No
Http://opendatacommunities.org/id/metropolitan-district-council/leeds,Leeds City Council,31/10/2022,Resources,Commercial Services,Supplies and Services,Other Hired And Contracted Services,265,22/09/2022,2209-00765,0.00,60.00,R,ALEX WAGG,No
Http://opendatacommunities.org/id/metropolitan-district-council/leeds,Leeds City Council,31/10/2022,Adults and Health,Services For Older People - 65 And Over,Agency Payments,Residential Care Dementia,571,14/09/2022,2209-00766,0.00,1635.68,R,ALEXANDER RESIDENTIAL HOME,No
Http://opendatacommunities.org/id/metropolitan-district-council/leeds,Leeds City Council,31/10/2022,Adults and Health,Services For Older People - 65 And Over,Agency Payments,Residential,580,14/09/2022,2209-00767,0.00,20201.24,R,ALEXANDER RESIDENTIAL HOME,No
Http://opendatacommunities.org/id/metropolitan-district-council/leeds,Leeds City Council,31/10/2022,Children and Families,Social Care,Transport,Public Transport Expenses,310,27/09/2022,2209-00768,0.00,24.40,R,REDACTED PERSONAL DATA,No
Http://opendatacommunities.org/id/metropolitan-district-council/leeds,Leeds City Council,31/10/2022,Children and Families,Social Care,Appropriations,Leaving Care Grants,635,29/09/2022,2209-00769,0.00,91.50,R,REDACTED PERSONAL DATA,No
Http://opendatacommunities.org/id/metropolitan-district-council/leeds,Leeds City Council,31/10/2022,Adults and Health,Services For Older People - 65 And Over,Agency Payments,Residential Care Dementia,571,14/09/2022,2209-00770,0.00,6738.60,R,ALEXANDRA COURT,No
Http://opendatacommunities.org/id/metropolitan-district-council/leeds,Leeds City Council,31/10/2022,Adults and Health,Services For Older People - 65 And Over,Agency Payments,Residential,580,14/09/2022,2209-00771,0.00,7188.24,R,ALEXANDRA COURT,No
Http://opendatacommunities.org/id/metropolitan-district-council/leeds,Leeds City Council,31/10/2022,Children and Families,Social Care,Agency Payments,Services Rendered By Other Organisations,511,02/09/2022,2209-00772,0.00,233.03,R,REDACTED PERSONAL DATA,No
Http://opendatacommunities.org/id/metropolitan-district-council/leeds,Leeds City Council,31/10/2022,Adults and Health,Home Care Services ,Supplies and Services,Clothing & Uniforms,241,03/08/2022,2209-00773,0.00,277.11,R,Alexandra Website,Yes
Http://opendatacommunities.org/id/metropolitan-district-council/leeds,Leeds City Council,31/10/2022,Adults and Health,Home Care Services ,Supplies and Services,Clothing & Uniforms,241,09/08/2022,2209-00774,0.00,41.40,R,Alexandra Website,Yes
Http://opendatacommunities.org/id/metropolitan-district-council/leeds,Leeds City Council,31/10/2022,Adults and Health,Home Care Services ,Supplies and Services,Clothing & Uniforms,241,09/08/2022,2209-00775,0.00,20.70,R,Alexandra Website,Yes
Http://opendatacommunities.org/id/metropolitan-district-council/leeds,Leeds City Council,31/10/2022,Adults and Health,Services For Older People - 65 And Over ,Supplies and Services,Clothing & Uniforms,241,10/08/2022,2209-00776,0.00,21.86,R,Alexandra Website,Yes
Http://opendatacommunities.org/id/metropolitan-district-council/leeds,Leeds City Council,31/10/2022,Adults and Health,Home Care Services ,Supplies and Services,Clothing & Uniforms,241,11/08/2022,2209-00777,0.00,347.76,R,Alexandra Website,Yes
Http://opendatacommunities.org/id/metropolitan-district-council/leeds,Leeds City Council,31/10/2022,Adults and Health,Services For Older People - 65 And Over ,Supplies and Services,Clothing & Uniforms,241,09/09/2022,2209-00778,0.00,43.73,R,Alexandra Website,Yes
Http://opendatacommunities.org/id/metropolitan-district-council/leeds,Leeds City Council,31/10/2022,Adults and Health,Services For Older People - 65 And Over ,Supplies and Services,Clothing & Uniforms,241,09/09/2022,2209-00779,0.00,43.73,R,Alexandra Website,Yes
Http://opendatacommunities.org/id/metropolitan-district-council/leeds,Leeds City Council,31/10/2022,Adults and Health,Services For Older People - 65 And Over ,Supplies and Services,Clothing & Uniforms,241,21/09/2022,2209-00780,0.00,87.46,R,Alexandra Website,Yes
Http://opendatacommunities.org/id/metropolitan-district-council/leeds,Leeds City Council,31/10/2022,Adults and Health,Services For Older People - 65 And Over ,Supplies and Services,Clothing & Uniforms,241,21/09/2022,2209-00781,0.00,-21.86,R,Alexandra Website,Yes
Http://opendatacommunities.org/id/metropolitan-district-council/leeds,Leeds City Council,31/10/2022,Adults and Health,Services For Older People - 65 And Over ,Supplies and Services,Clothing & Uniforms,241,28/09/2022,2209-00782,0.00,293.76,R,Alexandra Website,Yes
Http://opendatacommunities.org/id/metropolitan-district-council/leeds,Leeds City Council,31/10/2022,Resources,Commercial Services,Supplies and Services,Compensation Claims,200,30/09/2022,2209-00783,0.00,2016.00,R,REDACTED PERSONAL DATA,No
Http://opendatacommunities.org/id/metropolitan-district-council/leeds,Leeds City Council,31/10/2022,Communities Housing and Environment,Customer Access,Supplies and Services,Bought In Professional Services,277,22/09/2022,2209-00784,0.00,65.00,R,ALEXIA BLOHM-PAIN,No
Http://opendatacommunities.org/id/metropolitan-district-council/leeds,Leeds City Council,31/10/2022,Resources,Leeds Building Services,Supplies and Services,Other Hired And Contracted Services,265,01/09/2022,2209-00785,0.00,18037.06,R,Alfred Bagnall & Sons (Leeds) Ltd,No
Http://opendatacommunities.org/id/metropolitan-district-council/leeds,Leeds City Council,31/10/2022,City Development,Libraries Arts & Heritage,Supplies and Services,Bought In Professional Services,277,01/09/2022,2209-00786,0.00,2350.00,R,Alfred Bagnall & Sons (Leeds) Ltd,No
Http://opendatacommunities.org/id/metropolitan-district-council/leeds,Leeds City Council,31/10/2022,Resources,Leeds Building Services,Supplies and Services,Other Hired And Contracted Services,265,02/09/2022,2209-00787,0.00,6790.00,R,Alfred Bagnall & Sons (Leeds) Ltd,No
Http://opendatacommunities.org/id/metropolitan-district-council/leeds,Leeds City Council,31/10/2022,Resources,Facilities Management,Premises,Maintenance Of Buildings,101,02/09/2022,2209-00788,0.00,420.00,R,Alfred Bagnall & Sons (Leeds) Ltd,No
